Workbook

Sheet Aktualisierungen (hidden)

Sheet Erläuterungen (hidden)

Sheet Eingabe
AK1: Jahreseinkommen | AL1: 25000 | AM1: =M29*0.015 -> 730.35 | AN1: =20.68/100*AM1 -> 151.03638 | AO1: =AM1*AQ9/100 -> 255.6225 | AP1: =SUM(AN1:AO1) -> 406.65888
B2: E-Mobilitätsrechner E_MOB_Rechner_0325_Vers.7.2 | AL2: Jahr der Anschaffung | AM2: CO2 Grenzwert | AO2: Einkommen | AP2: Einkommenssteuer
AL3: 2016 | AM3: 130 | AO3: 11000 | AP3: 0
C4: 1. Fahrzeugauswahl | V4: 7. Ausfüllhilfe | AL4: 2017 | AM4: 127 | AO4: 18000 | AP4: 25
AL5: 2018 | AM5: 124 | AO5: 31000 | AP5: 35
C6: Allgemeine Angaben | V6: Alle weißen Felder sind veränderbar und mit überschreibbaren Defaultwerten befüllt. Tragen Sie in der ersten Kategorie "Fahrzeugwahl" die allgemeinen Eingaben ein und wählen Sie ein Fahrzeug, das Sie vergleichen wollen, aus. Scrollen Sie nach unten und kontrollieren Sie die Defaultwerte aus den Kategorien 2-5. Passen Sie diese Ihren individuellen Gegebenheiten an und entnehmen Sie aus den Grafiken die Ergebnisse. Viel Erfolg wünscht Ihr strommobil-Team | AL6: 2019 | AM6: 121 | AO6: 60000 | AP6: 42
D7: Jahreskilometerleistung: | G7: 4000 | H7: [km/a] | N7: Betrachtungszeitraum1: | Q7: 12 | R7: [a] | AL7: 2020 | AM7: 118 | AO7: 90000 | AP7: 48
D8: =IF(G8="privat","Nutzung (Privater Investor):",IF(G8="betrieblich","Nutzung (Betrieb ist Investor):",IF(G8="betrieblich + privat (<6000km/a):","Nutzung (Betrieb ist Investor):","Nutzung (Betrieb ist Investor):"))) -> Nutzung (Privater Investor): | G8: privat | AE8: Laufzeit | AF8: =Q7 -> 12 | AO8: 1000000 | AP8: 50
AF9: Benzinfahrzeug | AO9: >1000000 | AP9: 55 | AQ9: =IF(AL1<AO3,AP3,IF(AL1<AO4,AP4,IF(AL1<AO5,AP5,IF(AL1<AO6,AP6,IF(AL1<AO7,AP7,IF(AL1<AO8,AP8,AP9)))))) -> 35
C10: Auswahl | F10: Elektrofahrzeug | L10: Verbrennungs-Kfz | AE10: =IF(VLOOKUP($G$12,'Daten-Elektrofahrzeug'!C23:M79,'Daten-Elektrofahrzeug'!K5,FALSE)="","ja",IF(VLOOKUP($G$12,'Daten-Elektrofahrzeug'!C23:M79,'Daten-Elektrofahrzeug'!L5,FALSE)="","nein",H13)) -> 
O11: * | AE11: Investition | AF11: =M29/AF8 -> 4057.5 | AG11: =AF11/$AF$16 -> 0.7469541942
D12: =IF(H141="","Neuwagen (inkl.Akku):","Neuwagen:") -> Neuwagen (inkl.Akku): | G12: Cupra Born | M12: VW Touran R-Line TDI - Diesel | AE12: Heimladestation | AF12: =M31/10 -> 0 | AG12: =AF12/$AF$16 -> 0
D13: Batterie mieten oder kaufen: | G13: Akku kaufen! | AE13: Motorbez. Versicherungssteuer | AF13: =M47 -> 509.76 | AG13: =AF13/$AF$16 -> 0.09384285151
D14: Batterieleasing Laufzeit: | G14: 36 | H14: [Monate] | AE14: Wartung | AF14: =M49 -> 500 | AG14: =AF14/$AF$16 -> 0.09204611142
C15: Leistungsdaten | V15: 8. Vollkosten pro Kilometer | AE15: Verbrauch | AF15: =M65 -> 364.8 | AG15: =AF15/$AF$16 -> 0.06715684289
D16: Kraftstoff: | G16: =VLOOKUP($G$12,'Daten-Elektrofahrzeug'!C6:M79,'Daten-Elektrofahrzeug'!F5,FALSE) -> Elektrizität | M16: =VLOOKUP($M$12,'Daten-Benzin-Dieselfahrzeug'!C6:M25,'Daten-Benzin-Dieselfahrzeug'!E5,FALSE) -> Diesel | P16: Leistungsunterschied | AF16: =SUM(AF11:AF15) -> 5432.06
D17: Leistung: | G17: =VLOOKUP($G$12,'Daten-Elektrofahrzeug'!C6:M79,'Daten-Elektrofahrzeug'!E5,FALSE) -> 150 | I17: [kW] | M17: =VLOOKUP($M$12,'Daten-Benzin-Dieselfahrzeug'!C6:M25,'Daten-Benzin-Dieselfahrzeug'!D5,FALSE) -> 90 | N17: [kW] | Q17: =IF(M17-G17<0,(M17-G17)*-1,M17-G17) -> 60 | R17: [kW]
G18: =G17*1.3596216 -> 203.94324 | I18: [PS] | M18: =M17*1.3596216 -> 122.365944 | N18: [PS] | Q18: =IF(M18-G18<0,(M18-G18)*-1,M18-G18) -> 81.577296 | R18: [PS] | AF18: Elektrofahrzeug
D19: Spezifischer Energiebedarf: | G19: =VLOOKUP($G$12,'Daten-Elektrofahrzeug'!C6:M79,'Daten-Elektrofahrzeug'!G5,FALSE) -> 15,5 | I19: [kWh/100km] | M19: =VLOOKUP($M$12,'Daten-Benzin-Dieselfahrzeug'!C6:M25,'Daten-Benzin-Dieselfahrzeug'!G5,FALSE) -> 5.7 | N19: [l/100km]
D20: Ladewirkungsgrad2: | G20: 0.95 | I20: [] | M20: =M19/100*$G$7 -> 228 | N20: [l/a] | P20: Energieeinsparung | AE20: Investition (inkl. Förderung) | AF20: =($G$29-$G$32)/$AF$8 -> 4091.666667 | AG20: =AF20/$AF$25 -> 0.8084139523
D21: Jahresbedarf: | G21: =(G19/100*$G$7)/G20 -> 652.6315789 | I21: [kWh/a] | M21: =IF(M16="Benzin",M20*'Daten-Benzin-Dieselfahrzeug'!$O$3,M20*'Daten-Benzin-Dieselfahrzeug'!$O$4) -> 2304.282 | N21: [kWh/a] | Q21: =M21-G21 -> 1651.650421 | R21: [kWh/a] | AE21: Heimladestation | AF21: =$G$31/$AF$8 -> 100 | AG21: =AF21/$AF$25 -> 0.01975757114
D22: direkte CO2-Emissionen3: | G22: =VLOOKUP($G$12,'Daten-Elektrofahrzeug'!C6:M79,'Daten-Elektrofahrzeug'!I5,FALSE) -> 0 | I22: [g/km] | M22: =VLOOKUP($M$12,'Daten-Benzin-Dieselfahrzeug'!C6:M25,'Daten-Benzin-Dieselfahrzeug'!H5,FALSE) -> 149 | N22: [g/km] | AE22: Motorbez. Versicherungssteuer | AF22: =$G$47 -> 512.4 | AG22: =AF22/$AF$25 -> 0.1012377945
D23: Jährlichen direkten CO2-Emissionen: | G23: =G22*G7/1000 -> 0 | I23: [kg/a] | M23: =M22*G7/1000 -> 596 | N23: [kg/a] | AE23: Wartung | AF23: =$G$49 -> 200 | AG23: =AF23/$AF$25 -> 0.03951514227
AE24: Verbrauch | AF24: =$G$65 -> 157.2842105 | AG24: =AF24/$AF$25 -> 0.03107553978
AF25: =SUM(AF20:AF24) -> 5061.350877
C26: 2. Investitionskosten | F26: Elektrofahrzeug | L26: Verbrennungs-Kfz | P26: Differenz | V26: 9. Vollkosten (Betrachtungszeitraum 12 Jahre)
G28: BRUTTO | I28: NETTO | V28: Monatliche Vollkosten
D29: =IF(G8="Privat","Privatfahrzeug:","Vorsteuerabzug (Betriebsfahrzeug):") -> Privatfahrzeug: | G29: =VLOOKUP($G$12,'Daten-Elektrofahrzeug'!C6:M79,IF(OR(G13=H140,H141=""),'Daten-Elektrofahrzeug'!L5,'Daten-Elektrofahrzeug'!J5),FALSE) -> 49100 | H29: [€] | I29: =IF((G29-G32)<80000,IF((G29-G32)<=40000,(G29-G32)/1.2,(G29-G32)-(40000-(40000/1.2))),(G29-G32)) -> 42433.33333 | J29: [€] | M29: =VLOOKUP($M$12,'Daten-Benzin-Dieselfahrzeug'!C6:M25,'Daten-Benzin-Dieselfahrzeug'!I5,FALSE) -> 48690 | N29: [€] | Q29: =IF(G8<>C121,M29-I29,M29-G29) -> -410 | R29: [€]
D31: Heimladestation (Investition Wallbox): | G31: 1200 | H31: [€] | I31: =G31*$C$129 -> 1037.06721 | J31: [€] | Q31: =IF(G8<>C121,I31*-1,G31*-1) -> -1200 | R31: [€]
D32: Förderung (Auto + Heimladestation): | G32: 0 | H32: [€] | L32: =IF($G$8<>$C$121," Förderung ist im Nettoanschaffungswert integriert!","") ->  | Q32: =IF($G$8=C121,G32-M32,I32-M32) -> 0 | R32: [€]
Q33: =SUM(Q29:Q32) -> -1610 | R33: [€]
D34: Investitionen in den Akku erfolgen im Jahr: | G34: 9 | H34: [a]
D35: Höhe der Investition (dzt. 200€/kWh)4: | G35: 2000 | H35: [€] | I35: =G35*$C$129 -> 1728.44535 | J35: [€] | Q35: =IF($G$8<>C121,I35*-1,G35*-1) -> -2000 | R35: [€]
C36: =VLOOKUP($G$12,'Daten-Elektrofahrzeug'!C23:N79,'Daten-Elektrofahrzeug'!N5,FALSE) ->  | AF36: jährliche Vollkosten | AH36: monatliche Vollkosten | AJ36: tägliche Vollkosten
AF37: =F10 -> Elektrofahrzeug | AG37: =L10 -> Verbrennungs-Kfz | AH37: =AF37 -> Elektrofahrzeug | AI37: =AG37 -> Verbrennungs-Kfz | AJ37: =AH37 -> Elektrofahrzeug | AK37: =AI37 -> Verbrennungs-Kfz
AE38: Investition | AF38: =IF(G8<>C121,((I29+I31+I35)/AF8),(G29+G31+G35-G32)/AF8) -> 4358.333333 | AG38: =M29/AF8 -> 4057.5 | AH38: =AF38/12 -> 363.1944444 | AI38: =AG38/12 -> 338.125 | AJ38: =AH38/30.4 -> 11.94718567 | AK38: =AI38/30.4 -> 11.12253289
C39: 3. Betriebskosten | F39: Elektrofahrzeug | L39: Verbrennungs-Kfz | P39: Differenz | V39: Jährliche Vollkosten | AE39: Betriebskosten | AF39: =IF(G8<>C121,SUM(I47:I52),SUM(G47:G52)) -> 1237.2 | AG39: =SUM(M47:M52) -> 1534.56 | AH39: =AF39/12 -> 103.1 | AI39: =AG39/12 -> 127.88 | AJ39: =AH39/30.4 -> 3.391447368 | AK39: =AI39/30.4 -> 4.206578947
AE40: Verbrauchskosten | AF40: =IF(G8<>C121,SUM(I65+I68),SUM(G65+G68)) -> 157.2842105 | AG40: =M65 -> 364.8 | AH40: 13.10701754 | AI40: 30.4 | AJ40: 0.4311518929 | AK40: 1
G41: Defaultwert | I41: Individualwert
D42: Dauerleistung: | G42: =VLOOKUP($G$12,'Daten-Elektrofahrzeug'!$C$6:$Q$79,'Daten-Elektrofahrzeug'!P5,FALSE) -> 115 | H42: [kW] | J42: [kW]
D43: Leergewicht: | G43: =VLOOKUP($G$12,'Daten-Elektrofahrzeug'!$C$6:$Q$79,'Daten-Elektrofahrzeug'!Q5,FALSE) -> 1840 | H43: [kg] | J43: [kg]
G45: BRUTTO | I45: NETTO | AE45: Summe: | AF45: =SUM(AF38:AF40) -> 5752.817544 | AG45: 5956.86 | AH45: 479.401462 | AI45: 496.405 | AJ45: 15.76978493 | AK45: 16.32911184
C46: jährliche | D46: Zahlungsweise der motorbez. | AE46: Vollkosten [€/km] | AF46: =AF45/$G$7 -> 1.438204386 | AG46: =AG45/$G$7 -> 1.489215
D47: Versicherungssteuer: | G47: =Berechnungen!V5 -> 512.4 | H47: [€/a] | I47: 0 | J47: [€/a] | M47: ='Motorbez. Versicherungssteuer'!E2 -> 509.76 | N47: [€/a] | Q47: =M47-G47 -> -2.64 | R47: [€] | AE47: Verbauchskosten [€/km] | AF47: =AF40/$G$7*100 -> 3.932105263 | AG47: =AG40/$G$7*100 -> 9.12
D48: Versicherungsprämie (exkl. motorb. Vers.): | G48: 300 | H48: [€/a] | I48: =G48 -> 300 | J48: [€/a] | M48: 300 | N48: [€/a] | Q48: =IF($G$8<>C121,M48-I48,M48-G48) -> 0 | R48: [€]
C49: 0.6 | D49: ="Wartungseinsparung("&C49*100&"%):" -> Wartungseinsparung(60%): | G49: =M49*(1-C49) -> 200 | H49: [€/a] | I49: =G49*$C$129 -> 172.844535 | J49: [€/a] | M49: 500 | N49: [€/a] | Q49: =IF($G$8<>C121,M49-I49,M49-G49) -> 300 | R49: [€]
D50: Mitgliedsbeitrag Autofahrerclub: | G50: 121 | H50: [€/a] | I50: 104.5709437 | J50: [€/a] | M50: 121 | N50: [€/a] | Q50: =IF($G$8<>C121,M50-I50,M50-G50) -> 0 | R50: [€]
D51: Vignette/Umweltplakette...: | G51: 103.8 | H51: [€/a] | I51: 89.70631365 | J51: [€/a] | M51: 103.8 | N51: [€/a] | Q51: =IF($G$8<>C121,M51-I51,M51-G51) -> 0 | R51: [€]
C52: 0.3 | D52: Lohnnebenkosten Sachbezug:5 | G52: 0 | H52: [€/a] | I52: 0 | J52: [€/a] | M52: =IF(OR(G8=C121,G8=C122),0,IF(G8=C123,(VLOOKUP($M$12,'Daten-Benzin-Dieselfahrzeug'!C6:O25,'Daten-Benzin-Dieselfahrzeug'!K5,FALSE))*6,(VLOOKUP($M$12,'Daten-Benzin-Dieselfahrzeug'!C6:O25,'Daten-Benzin-Dieselfahrzeug'!K5,FALSE))*12)) -> 0 | N52: [€/a] | Q52: =IF($G$8<>C121,M52-I52,M52-G52) -> 0 | R52: [€]
D53: =IF(OR(C121=G8,C122=G8),"","(Arbeitnehmervorteile bleiben unberücksichtigt!)") ->  | Q53: =SUM(Q47:Q52) -> 297.36 | R53: [€]
C56: 4. Verbrauchskosten | F56: Elektrofahrzeug | L56: Verbrennungs-Kfz | P56: Differenz | V56: 10. Übersicht über die jährlichen Ersparnisse (Barwerte)
C58: Energieträger | G58: BRUTTO | I58: NETTO
D59: Ladung an der Heimladestation: | G59: 0.9
D60: Tarif Heimladestation: | G60: 19 | H60: [c/kWh] | I60: =G60*$C$129 -> 16.42023082 | J60: [c/kWh]
D61: Tarif Tankstellen: | G61: 70 | H61: [c/kWh] | I61: =G61*$C$129 -> 60.49558724 | J61: [c/kWh] | AG61: <=24 | AH61: >24-91 | AI61: >92-111 | AJ61: >111
D62: Mischtarif Heimladung/öffentliche Ladung: | G62: =G60*$G$59+G61*(1-$G$59) -> 24.1 | H62: [c/kWh] | I62: =I60*$G$59+I61*(1-$G$59) -> 20.82776646 | J62: [c/kWh] | AF62: jährliche | AG62: 0 | AH62: 0.62 | AI62: 0.66 | AJ62: 0.75
AF63: ½-jährliche | AG63: 0 | AH63: 0.6572 | AI63: 0.6996 | AJ63: 0.795
D64: Kraftstoffpreise: | M64: 1.6 | N64: [€/l] | AF64: ¼-jährliche | AG64: 0 | AH64: 0.6696 | AI64: 0.7128 | AJ64: 0.81
D65: Kraftstoffkosten: | G65: =$G$21*G62/100 -> 157.2842105 | H65: [€/a] | I65: =$G$21*I62/100 -> 135.9285811 | J65: [€/a] | M65: =M20*M64 -> 364.8 | N65: [€/a] | Q65: =IF($G$8<>C121,M65-I65,M65-G65) -> 207.5157895 | R65: [€] | AF65: monatliche | AG65: 0 | AH65: 0.682 | AI65: 0.726 | AJ65: 0.825
C66: Sonstiges
D67: Batteriemiete: | G67: =G68/12 -> 0 | H67: [€/m] | I67: =G67*$C$129 -> 0 | J67: [€/m]
G68: =IF(G8="betrieblich",((VLOOKUP($G$12,'Daten-Elektrofahrzeug'!C6:M79,IF(OR(G13=H140,H141=""),'Daten-Elektrofahrzeug'!M5,'Daten-Elektrofahrzeug'!K5),FALSE))*12),((VLOOKUP($G$12,'Daten-Elektrofahrzeug'!C6:M79,IF(OR(G13=H140,H141=""),'Daten-Elektrofahrzeug'!M5,'Daten-Elektrofahrzeug'!K5),FALSE))*12)) -> 0 | H68: [€/a] | I68: =G68*$C$129 -> 0 | J68: [€/a] | Q68: =IF(G8=C122,I68*-1,G68*-1) -> 0 | R68: [€]
Q69: =Q65+Q68 -> 207.5157895 | R69: [€]
B72: 5. Wirtschaftliche Entwicklung | V72: 11. Übersicht Rentabilität (Kapitalwerteverlauf)
D74: Inflationsrate/Jahr: | G74: 1.9 | H74: [%]
D75: Strompreissteigerung/Jahr: | G75: 1.5 | H75: [%]
D76: Spritpreissteigerung/Jahr: | G76: 2 | H76: [%]
D77: Kalkulationszinssatz: | G77: 1.5 | H77: [%]
C80: 6. Zusammenfassung
C82: Energie
D83: Energieeinsparungen pro Jahr: | G83: =Q21 -> 1651.650421 | H83: [kWh/a]
D84: Eingesparte Energie nach 12 Jahren: | G84: =G83*$Q$7 -> 19819.80505 | H84: [kWh]
C85: CO2
D86: CO2-Einsparungen pro Jahr: | G86: =M23 -> 596 | H86: [kg CO2/a]
D87: CO2-Einsparungen nach 12 Jahren: | G87: =(M23*$Q$7) -> 7152 | H87: [kg CO2]
C88: Rentabilität
D89: Mehreinnahmen nach 12 Jahren: | G89: =Berechnungen!$I$21 -> 2129.240178 | H89: [€]
D90: Amortisationsdauer: | G90: =Berechnungen!H18 -> 4 | H90: [Jahre]
C93: Rechtliche Information:
D94: Wir möchten darauf hinweisen, dass sich dieses Programm in stetiger Entwicklung befindet und wir die Nutzer bitten, im Falle eines auftretenden Fehlers folgende Person zu kontaktieren, um diese zu korrigieren:
D95: Kontakt: | G95: DI (FH) Franz Jetzinger
G96: f.jetzinger@linzag.at
D97: Die LINZ AG sowie alle Mitwirkenden an diesem Programm haben deren Inhalte sorgfältig recherchiert und erstellt. Fehler können dennoch nicht gänzlich ausgeschlossen werden. Die Genannten übernehmen daher keine Haftung für die Richtigkeit, Vollständigkeit und Aktualität der Inhalte, insbesondere übernehmen sie keinerlei Haftung für eventuelle unmittelbare oder mittelbare Schäden, die durch direkte oder indirekte Nutzung des angebotenen Programms entstehen.
C98: Annahmen:
C99: 1 | D99: Das Fahrzeug wird nach 12 Jahren außer Betrieb gesetzt wird (Restwert = 0).
C100: 2 | D100: Der Ladewirkungsgrad Li-Ion mit 0,95 angenommen.
C101: 3 | D101: Das Fahrzeug wird zu 100% mit Ökostrom betrieben (direkte CO2-Emissionen eines Elektroautos liegen bei Versorgung mittels Ökostrom bei 0g CO2/km).
C102: 4 | D102: Dieses Feld bietet die Möglichkeit eine Akku-Reinvestition einzugeben - die Kosten liegen dzt. bei 200€/kWh.
C103: 5 | D103: Für Kraftfahrzeuge mit einem CO2-Emmissionswert von 0g/km gilt seit dem Kalenderjahr 2016 ein Sachbezugswert von Null.
C104: * | D104: Die angeführten Verbrennungskraftfahrzeuge sind nicht vorsteuerabzugsfähig!
C105: Quellen:
D106: https://www.topprodukte.at
D107: Recknagel, Sprenger, Schramek; Taschenbuch für Heizung + Klimatechnik; 2001; Seite 209
C109: Die derzeit aktuelle Version:
D110: E_MOB_Rechner_0325_Vers.7.2
C121: privat
C122: betrieblich
C123: betrieblich + privat (<6000km/a)
C124: betrieblich + privat (>6000km/a)
C128: Prozentsatz mit dem die Vorsteuer bei den Verbrauchs- und Betriebskosten abgezogen werden darf
C129: =I29/(G29-G32) -> 0.8642226748
C140: =VLOOKUP($G$12,'Daten-Elektrofahrzeug'!C6:M79,'Daten-Elektrofahrzeug'!K5,FALSE) -> 0 | D140: =IF(C140=0,"Hersteller bietet keine Akku-Mietvariante!","Akkumietvariante möglich") -> Hersteller bietet keine Akku-Mietvariante! | H140: =D141 -> Akku kaufen!
D141: Akku kaufen! | H141: =IF(D140="Hersteller bietet keine Akku-Mietvariante!","",D142) -> 
D142: Akku mieten!
C147: ja | G147: 12
C148: nein | G148: 24
G149: 36

Sheet Daten-Elektrofahrzeug
A1: Allgemeine Daten Elektrofahrzeuge | AG1: Batteriemiete und Berechnung "Nissan Leaf" | AP1: Batteriemiete und Berechnung "Renault Zoe R90 - Standard"
A2: https://www.topprodukte.at | G2: Stromverbrauch | I2: CO2-Emissionen | AE2: =VLOOKUP(AF2,AG2:AL5,IF(#REF!+1<=1,6,#REF!+1),TRUE) ->  | AF2: =IF(Eingabe!G14<='Daten-Elektrofahrzeug'!AG3,'Daten-Elektrofahrzeug'!AG3,IF(Eingabe!G14<='Daten-Elektrofahrzeug'!AG4,'Daten-Elektrofahrzeug'!AG4,'Daten-Elektrofahrzeug'!AG5)) -> 36 | AG2: Vertragslaufzeit | AH2: 12500 | AI2: 15000 | AJ2: 17500 | AK2: 20000 | AL2: 25000 | AN2: =VLOOKUP(AO2,AP2:AW5,IF(#REF!+1<=1,8,#REF!+1),TRUE) ->  | AO2: =IF(Eingabe!$G$14<='Daten-Elektrofahrzeug'!AP3,'Daten-Elektrofahrzeug'!AP3,IF(Eingabe!$G$14<='Daten-Elektrofahrzeug'!AP4,'Daten-Elektrofahrzeug'!AP4,'Daten-Elektrofahrzeug'!AP5)) -> 36 | AP2: Vertragslaufzeit | AQ2: 7500 | AR2: 10000 | AS2: 12500 | AT2: 15000 | AU2: 17500 | AV2: 20000 | AW2: 20200
A3: Marke | B3: Modell | C3: Modellauswahl | D3: Typ | E3: Leistung (max.) | F3: Kraftstoff | G3: kombiniert | I3: kombiniert | J3: Preis bei Batteriemiete | L3: Preis bei Batteriekauf | N3: Anmerkung Garantie | P3: Leistung (dauer) | Q3: Leergewicht | AG3: 12 | AH3: 99 | AI3: 106 | AJ3: 114 | AK3: 122 | AL3: 142 | AP3: 12 | AQ3: 59 | AR3: 69 | AS3: 79 | AT3: 89 | AU3: 99 | AV3: 109 | AW3: =IF(Eingabe!$G$8="privat",119,109) -> 119
E4: [kW] | F4: 4 | G4: kWh/100km | H4: l/100km | I4: [g/km] | J4: [€] | K4: [€/Monat] | L4: [€] | M4: [€/Monat] | N4: (Abweichungen vorbehalten) | P4: [kW] | Q4: [kg] | AG4: 24 | AH4: 89 | AI4: 96 | AJ4: 104 | AK4: 112 | AL4: 132 | AP4: 24 | AQ4: 59 | AR4: 69 | AS4: 79 | AT4: 89 | AU4: 99 | AV4: 109 | AW4: =IF(Eingabe!$G$8="privat",119,109) -> 119
C5: 1 | D5: 2 | E5: 3 | F5: 4 | G5: 5 | H5: 6 | I5: 7 | J5: 8 | K5: 9 | L5: 10 | M5: 11 | N5: 12 | P5: 14 | Q5: 15 | AG5: 36 | AH5: 79 | AI5: 86 | AJ5: 94 | AK5: 102 | AL5: 122 | AP5: 36 | AQ5: 59 | AR5: 69 | AS5: 79 | AT5: 89 | AU5: 99 | AV5: 109 | AW5: =IF(Eingabe!$G$8="privat",119,109) -> 119
A6: eigenes | B6: Fahrzeug | C6: =CONCATENATE(A6," ",B6) -> eigenes Fahrzeug | D6: EV | F6: Elektrizität | I6: 0
A7: eigenes | B7: Fahrzeug | C7: =CONCATENATE(A7," ",B7) -> eigenes Fahrzeug | D7: EV | F7: Elektrizität | I7: 0
A8: eigenes | B8: Fahrzeug | C8: eigenes Fahrzeug | D8: EV | F8: Elektrizität | I8: 0
A9: Audi | B9: e-tron (50 quattro) | C9: =CONCATENATE(A9," ",B9) -> Audi e-tron (50 quattro) | D9: EV | E9: 230 | F9: Elektrizität | G9: 23.6 | I9: 0 | L9: 69100 | N9: Akkugarantie: 8 Jahre oder bis 160.000 km | P9: 158 | Q9: 2140 | S9: Test: Audi e-tron Sportback 50 quattro - ALLES AUTO
A10: Audi | B10: Q4 45 e-tron | C10: =CONCATENATE(A10," ",B10) -> Audi Q4 45 e-tron | D10: EV | E10: 210 | F10: Elektrizität | G10: 16,9 | I10: 0 | L10: 54863 | N10: Akkugarantie: 8 Jahre oder bis 160.000 km | P10: 77 | Q10: 2145 | S10: Audi Q4 Sportback e-tron 45 quattro: Technische Daten
A11: BMW | B11: iX1 eDrive20 | C11: BMW iX1 eDrive20 | D11: EV | E11: 150 | F11: Elektrizität | G11: 16,8 | I11: 0 | L11: 52968 | N11: Akkugarantie: 8 Jahre oder bis 160.000 km | P11: 104 | Q11: 1940 | S11: BMW iX1 SUV (U11): Technische Daten & Motorisierungen
A12: BMW | B12: iX2 eDrive20 | C12: =CONCATENATE(A12," ",B12) -> BMW iX2 eDrive20 | D12: EV | E12: 150 | F12: Elektrizität | G12: 16,4 | I12: 0 | L12: 64328 | N12: Akkugarantie: 8 Jahre oder bis 160.000 km | P12: 68 | Q12: 1960 | S12: BMW iX2 (U10): Motoren & technische Daten
A13: BYD | B13: ATTO 3 | C13: BYD ATTO 3 | D13: EV | E13: 150 | F13: Elektrizität | G13: 15,6 | I13: 0 | L13: 46620 | N13: Akkugarantie: 8 Jahre oder bis 160.000 km | P13: 65 | Q13: 1750 | S13: Großer Test BYD Atto 3 Design - ALLES AUTO
A14: Citroen | B14: e C4 | C14: Citroen e C4 | D14: EV | E14: 100 | F14: Elektrizität | G14: 15,1 | I14: 0 | L14: 46580 | N14: Akkugarantie: 8 Jahre oder bis 160.000 km | P14: 62 | Q14: 1636 | S14: Citroen e-C4 Electric Elektromotor 156: Technische Daten
A15: Citroen | B15: e-Berlingo | C15: Citroen e-Berlingo | D15: EV | E15: 100 | F15: Elektrizität | G15: 19,3 | I15: 0 | L15: 56260 | N15: Akkugarantie: 8 Jahre oder bis 160.000 km | P15: 57 | Q15: 1811
A16: Citroen | B16: e-SpaceTourer | C16: Citroen e-SpaceTourer | D16: EV | E16: 100 | F16: Elektrizität | G16: 25,5 | I16: 0 | L16: 70190 | N16: Akkugarantie: 8 Jahre oder bis 160.000 km | P16: 57 | Q16: 2027 | S16: Citroen e-Spacetourer: Technische Daten & Datenblatt
A17: Cupra | B17: Born | C17: Cupra Born | D17: EV | E17: 150 | F17: Elektrizität | G17: 15,5 | I17: 0 | L17: 49100 | N17: Akkugarantie: 8 Jahre oder bis 160.000 km | P17: 115 | Q17: 1840 | S17: CUPRA Born VZ (2024-2025) Preise und technische Daten - EV Database
A18: Fiat | B18: 500e | C18: Fiat 500e | D18: EV | E18: 70 | F18: Elektrizität | G18: 13,0 | I18: 0 | L18: 35190 | N18: Akkugarantie: 8 Jahre oder bis 160.000 km | P18: 58 | Q18: 1330 | S18: Fiat 500 (2020) – Wikipedia
A19: Fiat | B19: 600e | C19: Fiat 600e | D19: EV | E19: 115 | F19: Elektrizität | G19: 15,1 | I19: 0 | L19: 31030 | N19: Akkugarantie: 8 Jahre oder bis 160.000 km | P19: 84 | Q19: 1595 | S19: Großer Test Fiat 600e La Prima - ALLES AUTO
A20: Fiat | B20: e-Doblo | C20: Fiat e-Doblo | D20: EV | E20: 101 | F20: Elektrizität | G20: 19,3 | I20: 0 | L20: 38100 | N20: Akkugarantie: 8 Jahre oder bis 160.000 km | P20: 57 | Q20: 1881 | S20: Fiat E-Doblò L1 (11/22 - 12/23): Technische Daten, Bilder, Preise | ADAC
A21: Fiat | B21: Ulysse | C21: Fiat Ulysse | D21: EV | E21: 100 | F21: Elektrizität | G21: 27,6 | I21: 0 | L21: 70940 | N21: Akkugarantie: 8 Jahre oder bis 160.000 km | P21: 57 | Q21: 2140 | S21: Fiat E-Ulysse im Test: Langer E-Transporter für Shuttlezwecke
A22: Ford | B22: Explorer | C22: Ford Explorer | D22: EV | E22: 125 | F22: Elektrizität | G22: 18,6 | I22: 0 | L22: 56330 | N22: Akkugarantie: 8 Jahre oder bis 160.000 km | P22: 70 | Q22: 1908 | S22: Explorer 25.50 Pan Euro Localized - DE AT.xlsx
A23: Ford | B23: Mustang Mach-E | C23: Ford Mustang Mach-E | D23: EV | E23: 198 | F23: Elektrizität | G23: 17,2 | I23: 0 | L23: 63780 | N23: Akkugarantie: 8 Jahre oder bis 160.000 km | O23: 2017 ok | P23: 154 | Q23: 2197
A24: Hyundai | B24: IONIQ 5 | C24: Hyundai IONIQ 5 | D24: EV | E24: 125 | F24: Elektrizität | G24: 16,7 | I24: 0 | L24: 51170 | N24: Akkugarantie: 8 Jahre oder bis 160.000 km | P24: 42 | Q24: 1955 | S24: Hyundai Ioniq 5 - e-move
A25: Hyundai | B25: IONIQ 6 | C25: Hyundai IONIQ 6 | D25: EV | E25: 111 | F25: Elektrizität | G25: 13,9 | I25: 0 | L25: 57250 | N25: Akkugarantie: 8 Jahre oder bis 160.000 km | P25: 37 | Q25: 1775 | S25: Hyundai Ioniq 6 - e-move
A26: Kia | B26: EV6 | C26: Kia EV6 | D26: EV | E26: 125 | F26: Elektrizität | G26: 16,6 | I26: 0 | L26: 54630 | N26: Akkugarantie: 7 Jahre oder bis 150.000 km | O26: 2017 ok | P26: 42 | Q26: 2035 | S26: Kia EV6 - e-move
A27: Mercedes | B27: EQA 250 | C27: Mercedes EQA 250 | D27: EV | E27: 140 | F27: Elektrizität | G27: 17,9 | I27: 0 | L27: 57150 | N27: Akkugarantie: 8 Jahre oder bis 160.000 km | P27: 111 | Q27: 2055 | S27: Mercedes-Benz EQA 250: Technische Daten & Datenblatt
A28: Mercedes | B28: EQB 250 | C28: Mercedes EQB 250 | D28: EV | E28: 140 | F28: Elektrizität | G28: 16,6 | I28: 0 | L28: 60430 | N28: Akkugarantie: 8 Jahre oder bis 160.000 km | P28: 111 | Q28: 2105
A29: Mercedes | B29: EQB 350 | C29: Mercedes EQB 350 | D29: EV | E29: 215 | F29: Elektrizität | G29: 19.2 | I29: 0 | L29: 60630 | N29: Akkugarantie: 8 Jahre oder bis 160.000 km | P29: 139 | Q29: 2170
A30: Mercedes | B30: EQE 300 | C30: Mercedes EQE 300 | D30: EV | E30: 180 | F30: Elektrizität | G30: 17,0 | I30: 0 | L30: 66560 | N30: Akkugarantie: 8 Jahre oder bis 160.000 km | P30: 109 | Q30: 2375
A31: Mercedes | B31: EQT | C31: Mercedes EQT | D31: EV | E31: 90 | F31: Elektrizität | G31: 19,4 | I31: 0 | L31: 59888 | N31: Akkugarantie: 8 Jahre oder bis 160.000 km | P31: 51 | Q31: 2200
A32: Mercedes | B32: EQV 300 | C32: Mercedes EQV 300 | D32: EV | E32: 150 | F32: Elektrizität | G32: 27,9 | I32: 0 | L32: 95292 | N32: Akkugarantie: 8 Jahre oder bis 160.000 km | P32: 95 | Q32: 2891
A33: Mini | B33: Aceman | C33: Mini Aceman | D33: EV | E33: 135 | F33: Elektrizität | G33: 16,7 | I33: 0 | L33: 59102 | N33: Akkugarantie: 8 Jahre oder bis 160.000 km | P33: 55 | Q33: 1720
A34: Mini | B34: Cooper SE | C34: Mini Cooper SE | D34: EV | E34: 160 | F34: Elektrizität | G34: 14,7 | I34: 0 | L34: 34200 | N34: Akkugarantie: 8 Jahre oder bis 160.000 km | P34: 75 | Q34: 1680
A35: Mini | B35: Countryman E | C35: Mini Countryman E | D35: EV | E35: 150 | F35: Elektrizität | G35: 17,0 | I35: 0 | L35: 56300 | N35: Akkugarantie: 8 Jahre oder bis 160.000 km | P35: 104 | Q35: 1940
A36: Renault | B36: 5 E-Tech | C36: Renault 5 E-Tech | D36: EV | E36: 110 | F36: Elektrizität | G36: 16,3 | I36: 0 | L36: 38810 | N36: Akkugarantie: 8 Jahre oder bis 160.000 km | P36: 78 | Q36: 1542
A37: Renault | B37: Scenic E-Tech | C37: Renault Scenic E-Tech | D37: EV | E37: 125 | F37: Elektrizität | G37: 17,6 | I37: 0 | L37: 48930 | N37: Akkugarantie: 8 Jahre oder bis 160.000 km | P37: 55 | Q37: 1822
A38: Skoda | B38: Enyaq 85 | C38: Skoda Enyaq 85 | D38: EV | E38: 210 | F38: Elektrizität | G38: 16,1 | I38: 0 | L38: 50350 | N38: Akkugarantie: 8 Jahre oder bis 160.000 km | P38: 77 | Q38: 2141
A39: Smart | B39: Pure | C39: Smart Pure | D39: EV | E39: 200 | F39: Elektrizität | G39: 18,8 | I39: 0 | L39: 43720 | N39: Akkugarantie: 8 Jahre oder bis 160.000 km | P39: 75 | Q39: 1780
A40: Smart | B40: Pure+ | C40: Smart Pure+ | D40: EV | E40: 200 | F40: Elektrizität | G40: 18,5 | I40: 0 | L40: 48600 | N40: Akkugarantie: 8 Jahre oder bis 160.000 km | P40: 75 | Q40: 1788
A41: Tesla | B41: Model 3 Standard | C41: Tesla Model 3 Standard | D41: EV | E41: 235 | F41: Elektrizität | G41: 15,1 | I41: 0 | L41: 50010 | N41: Akkugarantie: 8 Jahre oder bis 160.000 km | P41: 88 | Q41: 1899
A42: Volkswagen | B42: ID. Buzz | C42: Volkswagen ID. Buzz | D42: EV | E42: 125 | F42: Elektrizität | G42: 21,7 | I42: 0 | L42: 62943 | N42: Akkugarantie: 8 Jahre oder bis 160.000 km | P42: 70 | Q42: 2400
A43: Volkswagen | B43: ID.3 | C43: Volkswagen ID.3 | D43: EV | E43: 125 | F43: Elektrizität | G43: 13,8 | I43: 0 | L43: 39910 | N43: Akkugarantie: 8 Jahre oder bis 160.000 km | P43: 70 | Q43: 1787
A44: Volkswagen | B44: ID.4 | C44: Volkswagen ID.4 | D44: EV | E44: 125 | F44: Elektrizität | G44: 16,3 | I44: 0 | L44: 48410 | N44: Akkugarantie: 8 Jahre oder bis 160.000 km | P44: 70 | Q44: 1987
A45: Volkswagen | B45: ID.5 | C45: Volkswagen ID.5 | D45: EV | E45: 210 | F45: Elektrizität | G45: 17,1 | I45: 0 | L45: 58030 | N45: Akkugarantie: 8 Jahre oder bis 160.000 km | P45: 89 | Q45: 2143
L47: Leergewichte von | N47: Magazin - elektro auto mobil - Jan2025.pdf | O47: 2017 ok
L48: Akkugarantien von | N48: Elektroauto-Batterie: Lebensdauer, Garantie, Reparatur | ADAC
O50: 2017 ok
O62: 2017 ok
O63: 2017 ok
O64: 2017 ok
O65: 2017 ok
O66: 2017 ok
O67: 2017 ok
O68: 2017 ok
O69: 2017 ok
O70: 2017 ok
O71: 2017 ok
O73: 2017 ok
O74: 2017 ok
O75: 2017 ok
O76: 2017 ok
O77: 2017 ok

Sheet Daten-Benzin-Dieselfahrzeug
A1: Allgemeine Daten Verbrennungskraftfahrzeuge
A2: https://www.topprodukte.at | F2: Kraftstoffverbrauch | H2: CO2-Emissionen
A3: Marke | B3: Modell | C3: Modellauswahl | D3: Leistung | E3: Kraftstoff | F3: kombiniert | H3: kombiniert | I3: Preis | J3: Sachbezug | K3: Lohnnebenkosten | L3: Quelle | N3: * Energieinhalt: | O3: =O8*0.72/3600 -> 8.54 | P3: kWh/liter Benzin | S3: Anschaffungsjahr: | U3: 2025 | X3: Jahr der Anschaffung | Y3: CO2 Grenzwert
D4: [kW] | F4: kWh/100km* | G4: l/100km | H4: [g/km] | I4: [€] | J4: [€/m] | K4: [€/m] | O4: =O9*0.87/3600 -> 10.1065 | P4: kWh/liter Diesel | S4: CO2 Grenzwert: | U4: =VLOOKUP(U3,X5:Y12,2,TRUE) -> 126 | V4: [g/km] | X4: [a] | Y4: [g/km]
C5: 1 | D5: 2 | E5: 3 | F5: 4 | G5: 5 | H5: 6 | I5: 7 | J5: 8 | K5: 9 | X5: 2016 | Y5: 130 | Z5: (NEFZ-Wert)
A6: Eingabe | B6: eigenes Fahrzeug | C6: =CONCATENATE(A6," ",B6," - ",E6) -> Eingabe eigenes Fahrzeug - | J6: =IF(H6>$U$4,IF(I6*0.02>960,960,I6*0.02),IF(H6>0,IF(I6*0.015>720,720,I6*0.015),0)) -> 0 | K6: =J6*Eingabe!$C$52 -> 0 | X6: 2017 | Y6: 127 | Z6: (NEFZ-Wert)
A7: Eingabe | B7: eigenes Fahrzeug | C7: =CONCATENATE(A7," ",B7," - ",E7) -> Eingabe eigenes Fahrzeug - | J7: =IF(H7>$U$4,IF(I7*0.02>960,960,I7*0.02),IF(H7>0,IF(I7*0.015>720,720,I7*0.015),0)) -> 0 | K7: =J7*Eingabe!$C$52 -> 0 | X7: 2018 | Y7: 124 | Z7: (NEFZ-Wert)
A8: Eingabe | B8: eigenes Fahrzeug | C8: Eingabe eigenes Fahrzeug - | J8: =IF(H8>$U$4,IF(I8*0.02>960,960,I8*0.02),IF(H8>0,IF(I8*0.015>720,720,I8*0.015),0)) -> 0 | K8: =J8*Eingabe!$C$52 -> 0 | N8: Hu Benzin(Mittelwert) = | O8: 42700 | P8: kJ/kg | R8: Benzin | X8: 2019 | Y8: 121 | Z8: (NEFZ-Wert)
A9: ='topprodukte-benzin-diesel'!A2 -> Audi | B9: A1 SB 25 TFSI | C9: Audi A1 SB 25 TFSI - Benzin | D9: ='topprodukte-benzin-diesel'!O2 -> 70 | E9: Benzin | F9: =IF(E9="Benzin",$O$3*G9,$O$4*G9) -> 44.408 | G9: 5.2 | H9: 118 | I9: 26433 | J9: =IF(H9>$U$4,IF(I9*0.02>960,960,I9*0.02),IF(H9>0,IF(I9*0.015>720,720,I9*0.015),0)) -> 396.495 | K9: =J9*Eingabe!$C$52 -> 118.9485 | L9: https://www.audi.at/a1/a1-sportback/faszination | N9: Hu Gasöl (Diesel) = | O9: 41820 | P9: kJ/kg | R9: Diesel | X9: bis März 2020 | Y9: 118 | Z9: (NEFZ-Wert)
A10: ='topprodukte-benzin-diesel'!A5 -> Audi | B10: A3 SB 30 TFSI | C10: =CONCATENATE(A10," ",B10," - ",E10) -> Audi A3 SB 30 TFSI - Benzin | D10: ='topprodukte-benzin-diesel'!O5 -> 85 | E10: Benzin | F10: =IF(E10="Benzin",$O$3*G10,$O$4*G10) -> 46.97 | G10: 5.5 | H10: 126 | I10: 30907 | J10: =IF(H10>$U$4,IF(I10*0.02>960,960,I10*0.02),IF(H10>0,IF(I10*0.015>720,720,I10*0.015),0)) -> 463.605 | K10: =J10*Eingabe!$C$52 -> 139.0815 | L10: https://www.audi.at/a3/a3-sportback/faszination | X10: ab April 2020 | Y10: 141 | Z10: (WLTP-Wert)
A11: ='topprodukte-benzin-diesel'!A8 -> BMW | B11: 1er Limousine 118d | C11: BMW 1er Limousine 118d - Diesel | D11: 110 | E11: Diesel | F11: =IF(E11="Benzin",$O$3*G11,$O$4*G11) -> 47.50055 | G11: 4.7 | H11: 122 | I11: 39277 | J11: =IF(H11>$U$4,IF(I11*0.02>960,960,I11*0.02),IF(H11>0,IF(I11*0.015>720,720,I11*0.015),0)) -> 589.155 | K11: =J11*Eingabe!$C$52 -> 176.7465 | L11: https://www.bmw.at/de/bmw-modelle-vergleichen.html/ | X11: 2023 | Y11: 132 | Z11: (WLTP-Wert)
A12: ='topprodukte-benzin-diesel'!A13 -> BMW | B12: 3er Limousine 320d | C12: BMW 3er Limousine 320d - Diesel | D12: 140 | E12: Diesel | F12: =IF(E12="Benzin",$O$3*G12,$O$4*G12) -> 53.56445 | G12: 5.3 | H12: 139 | I12: 62370 | J12: 960 | K12: =J12*Eingabe!$C$52 -> 288 | L12: https://www.bmw.at/de-at/sl/stocklocator | X12: 2025 | Y12: 126 | Z12: (WLTP-Wert)
A13: ='topprodukte-benzin-diesel'!A14 -> BMW | B13: 2er Active Tourer 216i | C13: BMW 2er Active Tourer 216i - Benzin | D13: 90 | E13: Benzin | F13: 53.802 | G13: 6.3 | H13: 143 | I13: 49401 | J13: 960 | K13: =J13*Eingabe!$C$52 -> 288 | L13: https://www.bmw.at/de-at/sl/stocklocator
A14: ='topprodukte-benzin-diesel'!A47 -> Ford | B14: Focus Titanium | C14: Ford Focus Titanium - Diesel | D14: 125 | E14: Diesel | F14: =IF(E14="Benzin",$O$3*G14,$O$4*G14) -> 49.52185 | G14: 4.9 | H14: 128 | I14: 34683 | J14: =IF(H14>$U$4,IF(I14*0.02>960,960,I14*0.02),IF(H14>0,IF(I14*0.015>720,720,I14*0.015),0)) -> 693.66 | K14: =J14*Eingabe!$C$52 -> 208.098 | L14: https://www.ford.at/shop/build-your-ford
A15: ='topprodukte-benzin-diesel'!A89 -> Mercedes | B15: A-Klasse 180d | C15: =CONCATENATE(A15," ",B15," - ",E15) -> Mercedes A-Klasse 180d - Diesel | D15: 86 | E15: ='topprodukte-benzin-diesel'!J89 -> Diesel | F15: =IF(E15="Benzin",$O$3*G15,$O$4*G15) -> 51.54315 | G15: 5.1 | H15: 134 | I15: 40847 | J15: 816.94 | K15: =J15*Eingabe!$C$52 -> 245.082 | L15: https://www.mercedes-benz.at/passengercars/buy/new-car
A16: ='topprodukte-benzin-diesel'!A157 -> Skoda | B16: Superb TDI DSG | C16: =CONCATENATE(A16," ",B16," - ",E16) -> Skoda Superb TDI DSG - Diesel | D16: ='topprodukte-benzin-diesel'!O157 -> 110 | E16: Diesel | F16: =IF(E16="Benzin",$O$3*G16,$O$4*G16) -> 57.60705 | G16: 5.7 | H16: 149 | I16: 49590 | J16: =IF(H16>$U$4,IF(I16*0.02>960,960,I16*0.02),IF(H16>0,IF(I16*0.015>720,720,I16*0.015),0)) -> 960 | K16: =J16*Eingabe!$C$52 -> 288 | L16: https://konfigurator.skoda.at/cc-at/de_AT_SKODA
A17: ='topprodukte-benzin-diesel'!A171 -> VW | B17: Golf 4Me TSI | C17: VW Golf 4Me TSI - Benzin | D17: 85 | E17: Benzin | F17: 43.554 | G17: 5.1 | H17: 135 | I17: 25490 | J17: 509.8 | K17: =J17*Eingabe!$C$52 -> 152.94 | L17: https://konfigurator.volkswagen.at/cc-at/de_AT_VW22/
A18: ='topprodukte-benzin-diesel'!A176 -> VW | B18: Golf Friends TSI | C18: VW Golf Friends TSI - Benzin | D18: 142 | E18: Benzin | F18: 63.196 | G18: 7.4 | H18: 194 | I18: ='topprodukte-benzin-diesel'!F176 -> 29390 | J18: 587.8 | K18: =J18*Eingabe!$C$52 -> 176.34 | L18: https://konfigurator.volkswagen.at/cc-at/de_AT_VW22/
A19: ='topprodukte-benzin-diesel'!A178 -> VW | B19: Touran R-Line TDI | C19: =CONCATENATE(A19," ",B19," - ",E19) -> VW Touran R-Line TDI - Diesel | D19: 90 | E19: Diesel | F19: =IF(E19="Benzin",$O$3*G19,$O$4*G19) -> 57.60705 | G19: 5.7 | H19: 149 | I19: 48690 | J19: =IF(H19>$U$4,IF(I19*0.02>960,960,I19*0.02),IF(H19>0,IF(I19*0.015>720,720,I19*0.015),0)) -> 960 | K19: =J19*Eingabe!$C$52 -> 288 | L19: https://konfigurator.volkswagen.at/cc-at/de_AT_VW22/
M85: Citroen
M86: C1
M88: VTI 68
N90: Toyota
M91: 8990 | N91: Aygo
O92: Skoda | P92: Renault
N93: 1.0 VVT-i | O93: Citigo | P93: Twingo
M94: 4.1 | Q94: smart | R94: Audi | S94: Fiat | T94: Opel | U94: Lancia | V94: Suzuki | W94: Ford | X94: Nissan | Y94: Citroen | Z94: Peugeot | AA94: Kia | AB94: Mini | AC94: Hyundai | AD94: Honda | AE94: Skoda | AF94: Mini | AG94: Ineffizientes Gerät
O95: 1.0l MPI | P95: SCe 70 | Q95: forfour | R95: A1 | S95: Panda City Car | T95: Adam JAM | U95: Ypsilon | V95: Swift 5-Türer | W95: Fiesta Trend | X95: Micra Acenta | Y95: C3 | Z95: 208 3-Türer | AA95: Picanto 3-Türer | AB95: 3-Türer | AC95: i10 | AD95: Jazz MY16 | AE95: Fabia | AF95: 5-Türer | AG95: Marke und
M96: 95 | N96: 9990 | P96: Stop&Start | AG96: Modell anonymisiert
Q97: 52 kW mit | R97: 1.0 TFSI ultra | S97: 0.9 TwinAir | T97: 1.0 Turbo EcoFelx | U97: 0.9 8V TwinIR | V97: 1.2 Dualjet | W97: 1.0 Auto | X97: 1.2 l DIG-S | Y97: PureTech 68 | Z97: 1.2 PureTech 82 | AA97: 1.0 MPI ISG | AB97: Cooper | AC97: blue 1.0 | AD97: 1.3 TREND | AE97: 1.0 l MPI | AF97: Cooper | AG97: k.A.
M98: 6 | O98: 9920 | P98: 11590 | Q98: Start-Stop | R98: 15'-16' | S98: Start&Stop | T98: Direct injection | W98: Start/Stop-System | Z98: ASG5
M99: 5 | N99: 4.1 | Q99: Automatik | T99: 66 kW | W99: 48 kW
M100: 51 | Q100: 11710 | R100: 17960 | S100: 14290 | T100: 16400 | U100: 16750 | V100: 14990 | W100: 15137 | X100: 15700 | Y100: 11990 | Z100: 16100 | AA100: 10890 | AB100: 20800 | AC100: 10390 | AD100: 17420 | AE100: 11760 | AF100: 20800 | AG100: k.A.
N101: 95 | O101: 4.2 | P101: 4.2
M102: 69
N103: 6 | O103: 95 | P103: 95 | Q103: 4.2 | R103: 4.2 | S103: 4.2 | T103: 4.2 | U103: 4.2 | V103: 4.3 | W103: 4.3 | X103: 4.3 | Y103: 4.4 | Z103: 4.4 | AA103: 4.4 | AB103: 4.5 | AC103: 4.6 | AD103: 4.6 | AE103: 4.7 | AF103: 4.7 | AG103: 6
M104: M5 | N104: 4
M105: 3466 | N105: 51 | O105: 6 | P105: 6 | Q105: 97 | R105: 97 | S105: 99 | T105: 99 | U105: 99 | V105: 99 | W105: 99 | X105: 99 | Y105: 102 | Z105: 102 | AA105: 102 | AB105: 105 | AC105: 106 | AD105: 106 | AE105: 106 | AF105: 109 | AG105: 139
M106: 1884 | O106: 4 | P106: 4
M107: 1460 | N107: 69 | O107: 44 | P107: 52 | Q107: 6 | R107: 6 | S107: 6 | T107: 6 | U107: 6 | V107: 6 | W107: 6 | X107: 6 | Y107: 6 | Z107: 6 | AA107: 6 | AB107: 6 | AC107: 6 | AD107: 6 | AE107: 6 | AF107: 6 | AG107: 6
Q108: 4 | R108: 5 | S108: 4 | T108: 4 | U108: 5 | V108: 5 | W108: 5 | X108: 5 | Y108: 5 | Z108: 5 | AA108: 5 | AB108: 4 | AC108: 5 | AD108: 5 | AE108: 5 | AF108: 5 | AG108: 5
N109: M5 | O109: 60 | P109: 71 | Q109: 52 | R109: 60 | S109: 63 | T109: 66 | U109: 63 | V109: 66 | W109: 48 | X109: 72 | Y109: 60 | Z109: 50 | AA109: 48 | AB109: 100 | AC109: 49 | AD109: 75 | AE109: 44 | AF109: 100 | AG109: 141
N110: 3455
N111: 1968 | O111: M5 | P111: M5 | Q111: 71 | R111: 82 | S111: 86 | T111: 90 | U111: 86 | V111: 90 | W111: 65 | X111: 98 | Y111: 82 | Z111: 68 | AA111: 65 | AB111: 136 | AC111: 67 | AD111: 102 | AE111: 60 | AF111: 136 | AG111: 192
N112: 1460 | O112: 3563 | P112: 3595
O113: 1910 | P113: k.A. | Q113: M5 | R113: M5 | S113: A5 | T113: M6 | U113: M5 | V113: M5 | W113: M5 | X113: M5 | Y113: M5 | Z113: AMT5 | AA113: M5 | AB113: M6 | AC113: M5 | AD113: CVT | AE113: M5 | AF113: M6 | AG113: M6
M114: Feel, Shine, Start | O114: 1463 | P114: 1554 | Q114: 3495 | R114: 3973 | S114: 3653 | T114: 3698 | U114: 3842 | V114: 3850 | W114: 3969 | X114: 3825 | Y114: 3941 | Z114: 3962 | AA114: 3595 | AB114: 3821 | AC114: 3665 | AD114: 3995 | AE114: 3992 | AF114: 3982 | AG114: k.A.
J115: Opel | K115: VW | O115: 1.0l (4.2, 98, 55, 75) | Q115: 1752 | R115: 1906 | S115: 1882 | T115: 1966 | U115: x | V115: 1950 | W115: 1978 | X115: 1937 | Y115: 1994 | Z115: 2004 | AA115: 1875 | AB115: 1932 | AC115: 1905 | AD115: 1980 | AE115: 1958 | AF115: 1932 | AG115: k.A.
C116: Suzuki | D116: Peugeot | E116: Fiat | F116: MItsubishi | G116: smart | H116: Suzuki | I116: VW | J116: Karl | K116: up! | M116: auch als 5 -Türer | Q116: 1554 | R116: 1416 | S116: 1551 | T116: 1484 | U116: 1518 | V116: 1535 | W116: 1495 | X116: 1520 | Y116: 1524 | Z116: 1460 | AA116: 1480 | AB116: 1414 | AC116: 1500 | AD116: 1525 | AE116: 1452 | AF116: 1425 | AG116: k.A.
A117: nach diesem Kriterium sortieren | B117: Modell | C117: Celerio 5-Türer | D117: 108 3-Türer | E117: 500 Lounge | F117: Space Star Inform | G117: fortwo | H117: Baleno | I117: Polo | R117: 1.0 TFSI ultra | T117: 1.0 Turbo EcoFelx | W117: 1.0 Eco Boost Auto | Y117: PureTech 68 | Z117: 1.0 PureTech 82 | AA117: 1.2 MPI | AB117: One | AE117: 1.0 MPI | AF117: One
J118: 1.0 EcoTEC | K118: 1.0 BlueMotion | R118: 15'-16' | T118: Direct injection | W118: Start/Stop-System | Y118: (4.3, 99, 50, 68) | Z118: (4.5, 104, 60, 82) | AA118: (4.6, 106, 62, 85) | AB118: (4.6, 108, 75, 102) | AE118: (4.8, 108, 55, 75) | AF118: (4.8,112,75,102)
A119: nach diesem Kriterium sortieren | B119: Motor | C119: 1.0 Dualjet | D119: e-Vit 68 | E119: 0.9 8V TA | F119: 1,0 MIVEC AS&G | G119: 52 kW mit | H119: 1.2 Dualjet SHVS | I119: 1.0 TSI BlueMotion | J119: Start Stop | K119: Technology | R119: (4.2, 97,70, 95) | T119: 85 kW | W119: (4.3, 99, 92, 125) | Y119: PureTech 110 S&S | Z119: Pure Tech 110 S&S | AE119: 1.2 TSI
E120: Start&Stop | G120: Start-Stop-Automatik | T120: (5.0,112,85,115) | Y120: (4.5, 104, 81, 110) | Z120: (4.5, 103, 81, 110) | AE120: (4.7, 107, 66, 90)
J121: 10580 | K121: 114540 | M121: nach diesem Kriterium sortieren | N121: Als 3-Türer oder | O121: Active, | P121: Zen, Intens | AE121: 1.2 TSI
A122: nach diesem Kriterium sortieren | B122: Kaufpreis bei | C122: 12190 | D122: 11490 | E122: 16650 | F122: 11490 | G122: 11010 | H122: 18490 | I122: 18090 | M122: CO2-Emissionen | N122: 5-Türer erhältlich | O122: Style, | AE122: (4.8, 110, 81, 110)
B123: Grundausstattung | M123: 84 | R123: Sportback, sport, | S123: Pop, Easy | T123: Glam, Slam | V123: flash, | X123: N-TEC | Y123: Seductio, Attraction | Z123: Active, Allure | AA123: Silber | AB123: One, Cooper | AC123: Life, Comfort | AD123: Trend, Comfort | AE123: Joy, | AF123: One, Cooper
B124: [ab EUR] inkl MWSt. | J124: 4.1 | K124: 4.1 | M124: 88 | R124: design | S124: Lounge | V124: shine | X124: Supermouse, Acenta | Y124: Exclusive | AD124: Elegance | AE124: Monte Carlo
A125: nach diesem Kriterium sortieren | B125: Kraftstoffver- | C125: 3.6 | D125: 3.8 | E125: 3.8 | F125: 4 | G125: 4.1 | H125: 4 | I125: 4.1 | M125: 90 | U125: auch als Automatik | V125: Als 3-Türer oder | W125: Als 3-Türer oder | Y125: Auch als DS3 | Z125: Als 3-Türer oder | AA125: Als 3-Türer oder | AE125: Auch als Combi
B126: brauch [l/100km] | J126: 94 | K126: 95 | M126: 92 | U126: sehr gute Werte | V126: 5-Türer erhältlich | W126: 5-Türer erhältlich | Y126: erhältlich | Z126: 5-Türer erhältlich | AA126: 5-Türer erhältlich | AE126: erhältlich
A127: nach diesem Kriterium sortieren | B127: CO2-Emissionen | C127: 84 | D127: 88 | E127: 90 | F127: 92 | G127: 93 | H127: 94 | I127: 94 | M127: 93 | N127: [g/km]
B128: [g/km] | J128: 6 | K128: 6 | M128: 94 | O128: nach diesem Kriterium sortieren | P128: nach diesem Kriterium sortieren
A129: nach diesem Kriterium sortieren | B129: EU-Abgasnorm | C129: 6 | D129: 6 | E129: 6 | F129: 6 | G129: 6 | H129: 6 | I129: 6 | J129: 5 | K129: 4 | M129: 101 | O129: EU-Abgasnorm | P129: Sitzplätze
A130: nach diesem Kriterium sortieren | B130: Sitzplätze | C130: 5 | D130: 4 | E130: 4 | F130: 5 | G130: 2 | H130: 5 | I130: 5 | J130: 55 | K130: 44 | M130: 94 | O130: 6 | P130: 5 | Q130: nach diesem Kriterium sortieren | S130: nach diesem Kriterium sortieren | U130: nach diesem Kriterium sortieren | V130: nach diesem Kriterium sortieren | W130: nach diesem Kriterium sortieren | X130: nach diesem Kriterium sortieren | Y130: nach diesem Kriterium sortieren | AE130: nach diesem Kriterium sortieren | AG130: Anmerkung
A131: nach diesem Kriterium sortieren | B131: Leistung | C131: 50 | D131: 51 | E131: 63 | F131: 52 | G131: 52 | H131: 66 | I131: 70 | M131: 95 | O131: 6 | P131: 4 | Q131: Leistung | R131: [kW] | S131: Leistung | T131: [PS] | U131: Getriebe | V131: Länge [mm] | W131: Breite mit Außenspiegel [mm] | X131: Höhe ohne Dachreeling [mm] | Y131: andere Motoren | Z131: (Verbrauch, CO2-Emission, | AA131: Leistung [kW], Leistung [PS]) | AE131: Modellvarianten
B132: [kW] | J132: 75 | K132: 60 | M132: 95 | O132: 6 | P132: 4 | Q132: 50 | S132: 68 | U132: M5 | V132: 3600 | W132: 1950 | X132: 1530 | AE132: pure, clear | AF132: shine
A133: nach diesem Kriterium sortieren | B133: Leistung | C133: 68 | D133: 69 | E133: 85.68 | F133: 71 | G133: 71 | H133: 90 | I133: 95 | M133: 95 | O133: 6 | P133: 5 | Q133: 51 | S133: 69 | U133: M5 | V133: 3470 | W133: 2004 | X133: 1450 | AE133: Active, Allure | AG133: Als 3-Türer oder | AH133: 5-Türer erhältlich
B134: [PS] | J134: M5 | K134: M5 | M134: 95 | O134: 6 | P134: 2 | Q134: 63 | S134: 85.68 | U134: M5 | V134: 3546 | W134: 1882 | X134: 1488 | Y134: 1.2 8V | Z134: S&S Dualogic | AA134: (4.5, 105, 51, 69) | AE134: 500C
A135: nach diesem Kriterium sortieren | B135: Getriebe | C135: M5 | D135: M5 | E135: M5 | F135: M5 | G135: M5 | H135: M5 | I135: M6 | J135: 3675 | K135: 3540 | M135: 95 | O135: 6 | P135: 5 | Q135: 52 | S135: 71 | U135: M5 | V135: 3710 | W135: k.A. | X135: 1505 | Y135: 1.2 MIVEC AS&G | Z135: (4.3, 100, 59, 80) | AE135: Comfort Line, | AF135: Intense
A136: nach diesem Kriterium sortieren | B136: Länge [mm] | C136: 3600 | D136: 3470 | E136: 3546 | F136: 3710 | G136: 2695 | H136: 3995 | I136: 3972 | J136: 1876 | K136: 1910 | M136: 97 | O136: 6 | P136: 5 | Q136: 52 | S136: 71 | U136: M5 | V136: 2695 | W136: 1752 | X136: 1555 | AG136: Höhe entspricht | AH136: Microvan-Kriterien
A137: nach diesem Kriterium sortieren | B137: Breite mit Außenspiegel [mm] | C137: 1950 | D137: 2004 | E137: 1882 | F137: k.A. | G137: 1752 | H137: k.A. | I137: 1901 | J137: 1476 | K137: 1489 | M137: 97 | O137: 6 | P137: 5 | Q137: 66 | S137: 90 | U137: M5 | V137: 3995 | W137: k.A. | X137: 1470
A138: nach diesem Kriterium sortieren | B138: Höhe ohne Dachreeling [mm] | C138: 1530 | D138: 1450 | E138: 1488 | F138: 1505 | G138: 1555 | H138: 1470 | I138: 1453 | K138: 1.0 BlueMotion | M138: 99 | O138: 6 | P138: 4 | Q138: 70 | S138: 95 | U138: M6 | V138: 3972 | W138: 1901 | X138: 1453 | Y138: 1.0 TSI | Z138: (4.3, 99, 81, 110), | AA138: 1.2 TSI | AB138: (4.7, 107, 66, 90) | AE138: BlueMotion, Austria | AF138: Comfortline, Highline
A139: nach diesem Kriterium sortieren | B139: andere Motoren | E139: 1.2 8V | F139: 1.2 MIVEC AS&G | I139: 1.0 TSI | K139: (4.2, 98, 55, 75) | M139: 99 | O139: 6 | P139: 5 | Q139: 55 | S139: 75 | U139: M5 | V139: 3675 | W139: 1876 | X139: 1476 | AE139: Edition, | AF139: Österreich Edition | AG139: Als 3-Türer oder | AH139: 5-Türer erhältlich | AI139: 4/5 Sitzer
B140: (Verbrauch, CO2-Emission, | E140: S&S Dualogic | F140: (4.3, 100, 59, 80) | I140: (4.3, 99, 81, 110), | M140: 99 | O140: 6 | P140: 4 | Q140: 44 | S140: 60 | U140: M5 | V140: 3540 | W140: 1910 | X140: 1489 | Y140: 1.0 BlueMotion | Z140: (4.2, 98, 55, 75) | AE140: move up!, club up!, | AF140: high up!
B141: Leistung [kW], Leistung [PS]) | E141: (4.5, 105, 51, 69) | I141: 1.2 TSI | M141: 99 | O141: 6 | P141: 4 | Q141: 51 | S141: 69 | U141: M5 | V141: 3466 | W141: 1884 | X141: 1460 | AE141: Feel, Shine, Start | AG141: auch als 5 -Türer
I142: (4.7, 107, 66, 90) | M142: 99 | O142: 6 | P142: 4 | Q142: 51 | S142: 69 | U142: M5 | V142: 3455 | W142: 1968 | X142: 1460 | AG142: Als 3-Türer oder | AH142: 5-Türer erhältlich
M143: 99 | O143: 6 | P143: 4 | Q143: 44 | S143: 60 | U143: M5 | V143: 3563 | W143: 1910 | X143: 1463 | Y143: 1.0l (4.2, 98, 55, 75) | AE143: Active, | AF143: Style,
J144: Edition, | K144: move up!, club up!, | M144: 102 | O144: 6 | P144: 5 | Q144: 52 | S144: 71 | U144: M5 | V144: 3595 | W144: k.A. | X144: 1554 | AE144: Zen, Intens
A145: nach diesem Kriterium sortieren | B145: Modellvarianten | C145: pure, clear | D145: Active, Allure | E145: 500C | F145: Comfort Line, | I145: BlueMotion, Austria | J145: Österreich Edition | K145: high up! | M145: 102 | O145: 6 | P145: 4 | Q145: 52 | S145: 71 | U145: M5 | V145: 3495 | W145: 1752 | X145: 1554
C146: shine | F146: Intense | I146: Comfortline, Highline | J146: Als 3-Türer oder | M146: 102 | O146: 6 | P146: 4 | Q146: 60 | S146: 82 | U146: M5 | V146: 3973 | W146: 1906 | X146: 1416 | Y146: 1.0 TFSI ultra | Z146: 15'-16' | AA146: (4.2, 97,70, 95) | AE146: Sportback, sport, | AF146: design
A147: Anmerkung | D147: Als 3-Türer oder | G147: Höhe entspricht | J147: 5-Türer erhältlich | M147: 105 | O147: 6 | P147: 5 | Q147: 63 | S147: 86 | U147: A5 | V147: 3653 | W147: 1882 | X147: 1551 | AE147: Pop, Easy | AF147: Lounge
D148: 5-Türer erhältlich | G148: Microvan-Kriterien | J148: 4/5 Sitzer | M148: 106 | O148: 6 | P148: 5 | Q148: 66 | S148: 90 | U148: M6 | V148: 3698 | W148: 1966 | X148: 1484 | Y148: 1.0 Turbo EcoFelx | Z148: Direct injection | AA148: 85 kW | AB148: (5.0,112,85,115) | AE148: Glam, Slam
M149: 106 | O149: 6 | P149: 5 | Q149: 63 | S149: 86 | U149: M5 | V149: 3842 | W149: x | X149: 1518 | AG149: auch als Automatik | AH149: sehr gute Werte
M150: 106 | O150: 6 | P150: 5 | Q150: 66 | S150: 90 | U150: M5 | V150: 3850 | W150: 1950 | X150: 1535 | AE150: flash, | AF150: shine | AG150: Als 3-Türer oder | AH150: 5-Türer erhältlich
J151: nach diesem Kriterium sortieren | M151: 109 | O151: 6 | P151: 5 | Q151: 48 | S151: 65 | U151: M5 | V151: 3969 | W151: 1978 | X151: 1495 | Y151: 1.0 Eco Boost Auto | Z151: Start/Stop-System | AA151: (4.3, 99, 92, 125) | AG151: Als 3-Türer oder | AH151: 5-Türer erhältlich
B152: nach diesem Kriterium sortieren | D152: nach diesem Kriterium sortieren | G152: nach diesem Kriterium sortieren | J152: Kraftstoffver- | K152: brauch [l/100km] | M152: 139 | O152: 6 | P152: 5 | Q152: 72 | S152: 98 | U152: M5 | V152: 3825 | W152: 1937 | X152: 1520 | AE152: N-TEC | AF152: Supermouse, Acenta
B153: Modell | D153: Motor | G153: Kaufpreis bei | H153: Grundausstattung | I153: [ab EUR] inkl MWSt. | J153: 3.6 | O153: 6 | P153: 5 | Q153: 60 | S153: 82 | U153: M5 | V153: 3941 | W153: 1994 | X153: 1524 | Y153: PureTech 68 | Z153: (4.3, 99, 50, 68) | AA153: PureTech 110 S&S | AB153: (4.5, 104, 81, 110) | AE153: Seductio, Attraction | AF153: Exclusive | AG153: Auch als DS3 | AH153: erhältlich
A154: Suzuki | B154: Celerio 5-Türer | D154: 1.0 Dualjet | G154: 12190 | J154: 3.8 | O154: 6 | P154: 4 | Q154: 50 | S154: 68 | U154: AMT5 | V154: 3962 | W154: 2004 | X154: 1460 | Y154: 1.0 PureTech 82 | Z154: (4.5, 104, 60, 82) | AA154: Pure Tech 110 S&S | AB154: (4.5, 103, 81, 110) | AE154: Active, Allure | AG154: Als 3-Türer oder | AH154: 5-Türer erhältlich
A155: Peugeot | B155: 108 3-Türer | D155: e-Vit 68 | G155: 11490 | J155: 3.8 | O155: 6 | P155: 5 | Q155: 48 | S155: 65 | U155: M5 | V155: 3595 | W155: 1875 | X155: 1480 | Y155: 1.2 MPI | Z155: (4.6, 106, 62, 85) | AE155: Silber | AG155: Als 3-Türer oder | AH155: 5-Türer erhältlich
A156: Fiat | B156: 500 Lounge | D156: 0.9 8V TA | E156: Start&Stop | G156: 16650 | J156: 4 | O156: 6 | P156: 5 | Q156: 100 | S156: 136 | U156: M6 | V156: 3821 | W156: 1932 | X156: 1414 | Y156: One | Z156: (4.6, 108, 75, 102) | AE156: One, Cooper
A157: MItsubishi | B157: Space Star Inform | D157: 1,0 MIVEC AS&G | G157: 11490 | J157: 4.1 | O157: 6 | P157: 5 | Q157: 49 | S157: 67 | U157: M5 | V157: 3665 | W157: 1905 | X157: 1500 | AE157: Life, Comfort
A158: smart | B158: fortwo | D158: 52 kW mit | E158: Start-Stop-Automatik | G158: 11010 | J158: 4 | O158: 6 | P158: 5 | Q158: 75 | S158: 102 | U158: CVT | V158: 3995 | W158: 1980 | X158: 1525 | AE158: Trend, Comfort | AF158: Elegance
A159: Suzuki | B159: Baleno | D159: 1.2 Dualjet SHVS | G159: 18490 | J159: 4.4 | O159: 6 | P159: 5 | Q159: 44 | S159: 60 | U159: M5 | V159: 3992 | W159: 1958 | X159: 1452 | Y159: 1.0 MPI | Z159: (4.8, 108, 55, 75) | AA159: 1.2 TSI | AB159: (4.7, 107, 66, 90) | AC159: 1.2 TSI | AD159: (4.8, 110, 81, 110) | AE159: Joy, | AF159: Monte Carlo | AG159: Auch als Combi | AH159: erhältlich
A160: VW | B160: Polo | D160: 1.0 TSI BlueMotion | G160: 18090 | J160: 4.1 | Q160: 100 | S160: 136 | U160: M6 | V160: 3982 | W160: 1932 | X160: 1425 | Y160: One | Z160: (4.8,112,75,102) | AE160: One, Cooper
A161: Opel | B161: Karl | D161: 1.0 EcoTEC | E161: Start Stop | G161: 10580 | J161: 4.1 | Q161: 141 | S161: 192 | U161: M6 | V161: k.A. | W161: k.A. | X161: k.A.
A162: VW | B162: up! | D162: 1.0 BlueMotion | E162: Technology | G162: 11450 | J162: 4.1
A163: Citroen | B163: C1 | D163: VTI 68 | G163: 8990 | J163: 4.1
A164: Toyota | B164: Aygo | D164: 1.0 VVT-i | G164: 9990 | J164: 4.2
A165: Skoda | B165: Citigo | D165: 1.0l MPI | G165: 9920 | J165: 4.2
A166: Renault | B166: Twingo | D166: SCe 70 | E166: Stop&Start | G166: 11590 | J166: 4.2
A167: smart | B167: forfour | D167: 52 kW mit | E167: Start-Stop | F167: Automatik | G167: 11710 | J167: 4.2
A168: Audi | B168: A1 | D168: 1.0 TFSI ultra | E168: 15'-16' | G168: 17870 | J168: 4.2 | M168: VW | N168: Ford
A169: Fiat | B169: Panda City Car | D169: 0.9 TwinAir | E169: Start&Stop | G169: 14290 | J169: 4.2 | M169: T-Roc | N169: Tourneo Courier
A170: Opel | B170: Adam JAM | D170: 1.0 Turbo EcoFelx | E170: Direct injection | F170: 66 kW | G170: 16400 | J170: 4.2 | M170: 1,6 TDI | N170: 1.5 TDCi S&S
A171: Lancia | B171: Ypsilon | D171: 0.9 8V TwinIR | G171: 16750 | J171: 4.3
A172: Suzuki | B172: Swift 5-Türer | D172: 1.2 Dualjet | G172: 14990 | J172: 4.3 | M172: 25 770 | N172: 18 142
A173: Ford | B173: Fiesta Trend | D173: 1.0 Auto | E173: Start/Stop-System | F173: 48 kW | G173: 15700 | J173: 4.3
A174: Nissan | B174: Micra Acenta | D174: 1.2 l DIG-S | G174: 15137 | J174: 4.4
A175: Citroen | B175: C3 | D175: PureTech 68 | G175: 11990 | J175: 4.4 | M175: 5.2 | N175: 5.4
A176: Peugeot | B176: 208 3-Türer | D176: 1.2 PureTech 82 | E176: ASG5 | G176: 16100 | J176: 4.4
A177: Kia | B177: Picanto 3-Türer | D177: 1.0 MPI ISG | G177: 10890 | J177: 4.5 | M177: 136 | N177: 141
A178: Mini | B178: 3-Türer | D178: Cooper | G178: 20800 | J178: 4.6
A179: Hyundai | B179: i10 | D179: blue 1.0 | G179: 10390 | J179: 4.6 | M179: 6d-TEMP-EVAP-ISC | N179: 6d-TEMP-EVAP-ISC
A180: Honda | B180: Jazz MY16 | D180: 1.3 TREND | G180: 17420 | J180: 4.7 | M180: 5 | N180: 5
A181: Skoda | B181: Fabia | D181: 1.0 l MPI | G181: 11760 | J181: 4.7 | M181: 85 | N181: 55
A182: Mini | B182: 5-Türer | D182: Cooper | G182: 20800 | J182: 6
A183: Ineffizientes Gerät | B183: Marke und | C183: Modell anonymisiert | D183: k.A. | G183: k.A. | M183: 115 | N183: 75
M185: M6 | N185: M6
M186: 4 234 | N186: 4 157
M187: 1 992 | N187: 2 112
M188: 1 573 | N188: 1 741
M189: 1 395 | N189: 1 420
M190: 2,0 TDI | N190: 1.5 TDCi SS
M191: (5.4,141,110,150) | N191: (5.5,144,74,101)
M194: T-Roc, Design, Sport | N194: Trend, Titanium, Sport
N196: Höhe entspricht
N197: Kompakt-Van
C205: Peugeot | D205: BMW | E205: Citroen | F205: Renault | G205: Seat | H205: Fiat | I205: Ford | J205: Hyundai | K205: Mini | L205: Skoda
A206: nach diesem Kriterium sortieren | B206: Modell | C206: 2008 | D206: 2er Active Tourer | E206: C3 Aircross | F206: Captur | G206: Arona | H206: 500X Urban | I206: EcoSport | J206: Kona | K206: Countryman | L206: Kamiq
A207: nach diesem Kriterium sortieren | B207: Motor | C207: BlueHDi 100 | D207: 216d | E207: Blue HDi 100 | F207: Blue dCi 115 | G207: 1.6 TDI | H207: 1.6 MultiJet | I207: 1.5 l EcoBlue | J207: 1.6 CRDi | K207: One | L207: 1.6l TDI
E208: S&S | H208: 95 SCR
A209: nach diesem Kriterium sortieren | B209: Kaufpreis bei | C209: 25 510 | D209: 32 050 | E209: 20 790 | F209: 24 890 | G209: 19 990 | H209: 22 100 | I209: 23 700 | J209: 22 690 | K209: 28 500 | L209: 24 050
B210: Grundausstattung
B211: [ab EUR] inkl MWSt.
A212: nach diesem Kriterium sortieren | B212: Kraftstoffver- | C212: 4.5 | D212: 4.7 | E212: 4.7 | F212: 4.7 | G212: 4.8 | H212: 4.8 | I212: 4.9 | J212: 5 | K212: 4.9 | L212: 5
B213: brauch [l/100km]
A214: nach diesem Kriterium sortieren | B214: CO2-Emissionen | C214: 118 | D214: 123 | E214: 123 | F214: 123 | G214: 125 | H214: 126 | I214: 129 | J214: 129 | K214: 129 | L214: 131
B215: [g/km]
A216: nach diesem Kriterium sortieren | B216: EU-Abgasnorm | C216: 6d-TEMP | D216: 6d | E216: 6d-TEMP | F216: 6d-TEMP | G216: 6d-TEMP | H216: 6d-TEMP-EVAP-ISC | I216: 6d-TEMP-EVAP-ISC | J216: 6d-TEMP-EVAP | K216: 6d-TEMP | L216: 6d-TEMP-EVAP-ISC
A217: nach diesem Kriterium sortieren | B217: Sitzplätze | C217: 5 | D217: 5 | E217: 5 | F217: 5 | G217: 5 | H217: 5 | I217: 5 | J217: 5 | K217: 5 | L217: 5
A218: nach diesem Kriterium sortieren | B218: Leistung | C218: 75 | D218: 85 | E218: 75 | F218: 85 | G218: 70 | H218: 70 | I218: 74 | J218: 85 | K218: 85 | L218: 85
B219: [kW]
A220: nach diesem Kriterium sortieren | B220: Leistung | C220: 100 | D220: 116 | E220: 102 | F220: 115 | G220: 95 | H220: 95 | I220: 100 | J220: 116 | K220: 116 | L220: 115
B221: [PS]
A222: nach diesem Kriterium sortieren | B222: Getriebe | C222: M6 | D222: M6 | E222: M6 | F222: M6 | G222: M5 | H222: M5 | I222: M6 | J222: M6 | K222: M6 | L222: M6
A223: nach diesem Kriterium sortieren | B223: Länge [mm] | C223: 4 300 | D223: 4 354 | E223: 4 154 | F223: 4 227 | G223: 4 138 | H223: 4 264 | I223: 4 096 | J223: 4 165 | K223: 4 299 | L223: 4 241
A224: nach diesem Kriterium sortieren | B224: Breite [mm] | C224: 1 987 | D224: 2 039 | E224: 1 976 | F224: 2 003 | G224: 1 942 | H224: 2 025 | I224: 2 057 | J224: 2 070 | K224: 1 822 | L224: 1 988
A225: nach diesem Kriterium sortieren | B225: Höhe [mm] | C225: 1 530 | D225: 1 555 | E225: 1 597 | F225: 1 576 | G225: 1 543 | H225: 1 595 | I225: 1 653 | J225: 1 550 | K225: 1 557 | L225: 1 553
A226: nach diesem Kriterium sortieren | B226: Leergewicht [kg] | C226: 1 205 | D226: 1 495 | E226: 1 292 | F226: 1 490 | G226: 1 297 | H226: 1 320 | I226: 1 395 | J226: 1 318 | K226: 1 505 | L226: 1 336
A227: nach diesem Kriterium sortieren | B227: andere Motoren | C227: BlueHDi 130 | D227: 218d | E227: Blue HDi 120 | H227: 1.6 MultiJet | I227: 1.5 EcoBlue | J227: 1.6 CRDi | K227: Cooper D
B228: (Verbrauch, CO2-Emissionen, | C228: (4.9,129,96,130) | D228: (4.9,129,110,150) | E228: (5.2,137,88,120) | H228: (5.2,137,88,120) | I228: (5.3,138,88,120) | J228: (5.1,134,100,136) | K228: (5.0,130,110,150)
B229: Leistung [kW], Leistung [PS]) | D229: 220d | K229: Cooper SD
D230: (5.1,134,140,190) | K230: (5.3,139,140,190)
A231: nach diesem Kriterium sortieren | B231: Modellvarianten | C231: Allure, Active, | E231: Feel, Shine | F231: Life, Zen, | G231: Reference, Style, | H231: Lounge, Cross, Sport | I231: ST-Line, Titanium | J231: Level 2,3,4,6 | K231: One, Cooper | L231: Active, Ambition
C232: GT-Line | F232: Intens, Edition One | G232: Xcellence | I232: Cool&Connect | L232: Style, Monte Carlo
A233: Anmerkung | C233: Länge entspricht | D233: Länge entspricht | F233: Länge entspricht | H233: Länge entspricht | I233: Höhe entspricht | K233: Länge entspricht
C234: Kompakt-Van | D234: Kompakt-Van | F234: Kompakt-Van | H234: Kompakt-Van | I234: Kompakt-Van | K234: Kompakt-Van
M245: 6d-TEMP | N245: 4 | O245: 53 | Q245: 72 | S245: M5 | T245: 3475 | U245: 1884 | V245: 1460 | W245: 915 | AA245: Active, | AB245: Allure, Collection | AD245: Als 3-Türer oder | AE245: 5-Türer erhältlich
M246: 6d-TEMP | N246: 4 | O246: 53 | Q246: 72 | S246: M5 | T246: 3466 | U246: 1884 | V246: 1460 | W246: 867 | AA246: Feel, Shine, Origins
M247: 6d-TEMP-EVAP | N247: 4 | O247: 49 | Q247: 67 | S247: M5 | T247: 3670 | U247: 1680 | V247: 1480 | W247: 924 | X247: 1.2l (5.2,117,62,84) | AA247: Level 1,2,3,4 | AD247: Auch als 5-Sitzer | AE247: erhältlich
M248: 6d-TEMP-EVAP-ISC | N248: 4 | O248: 53 | Q248: 72 | S248: M5 | T248: 3465 | U248: 1615 | V248: 1460 | W248: 840 | AA248: x, x-play, | AB248: x-cite, x-clusiv, | AC248: x-style
M249: 6d-TEMP | N249: 5 | O249: 52 | Q249: 71 | S249: M5 | T249: 3795 | U249: 1665 | V249: 1505 | W249: 870 | X249: 1.2 MIVEC AS&G | Y249: (5.3, 121, 59, 80) | AA249: Inform, | AB249: Invite Connect
M250: 6d-TEMP-EVAP | N250: 5 | O250: 66 | Q250: 90 | S250: M5 | T250: 3840 | U250: 1735 | V250: 1480 | W250: 857 | AA250: Clear, Shine
M251: 6d-TEMP-EVAP | N251: 4 | O251: 49 | Q251: 67 | S251: M5 | T251: 3595 | U251: 1595 | V251: 1485 | W251: 588 | X251: 1.2 MPI ISG | Y251: (5.6,126,62,84) | AA251: Neon, Titan, Silber, | AB251: Gold, GT-Line, X-Line | AD251: Auch als 5-Sitzer | AE251: erhältlich
M252: 6d-TEMP-EVAP | N252: 4 | O252: 54 | Q252: 74 | S252: M5 | T252: 3615 | U252: 1646 | V252: 1541 | W252: 981 | X252: TCe 95 | Y252: (5.3,119,68,93) | AA252: Life, Intens, Zen
M253: 6d-TEMP-EVAP-ISC | N253: 5 | O253: 70 | Q253: 95 | S253: M5 | T253: 3997 | U253: 1958 | V253: 1467 | W253: 1116 | X253: 1.0 MPI | Y253: (5.8,132,44,60) | AA253: Active, Ambition, | AB253: Style, Monte Carlo | AD253: Auch als Combi | AE253: erhältlich
M254: 6d-TEMP-EVAP-ISC | N254: 5 | O254: 44 | Q254: 60 | S254: M5 | T254: 3600 | U254: 1910 | V254: 1504 | W254: 980 | X254: 1.0l | Y254: (5.3,120,85,115) | AA254: black style, | AB254: white style, | AC254: R-Line, GTI
M255: 6d-TEMP | N255: 4 | O255: 70 | Q255: 95 | S255: M5 | T255: 3954 | U255: 1906 | V255: 1416 | W255: 1110 | X255: 30 TSFI | Y255: (4.8,122,85,116) | AA255: advanced, | AB255: S-line
M256: 6d-TEMP | N256: 5 | O256: 74 | Q256: 100 | S256: M5 | T256: 3999 | U256: 1935 | V256: 1455 | W256: 1135 | X256: DIG-T 117 | Y256: (5.9,133,86,117) | AA256: Visia, Acenta, Tekna, | AB256: N-Connecta, | AC256: Visia Plus
M257: 6d-TEMP-EVAP | N257: 5 | O257: 61 | Q257: 83 | S257: M5 | T257: 3996 | U257: 2009 | V257: 1490 | W257: 1037 | X257: PureTech 110 | Y257: (5.8,131,81,110) | AA257: Feel, Shine
M258: 6d-TEMP-EVAP-ISC | N258: 5 | O258: 53 | Q258: 72 | S258: M5 | T258: 3945 | U258: 1695 | V258: 1510 | W258: 980 | X258: 1.5 VVT-i | Y258: (6.0,135,82,111) | AA258: Young, Active, | AB258: Lounge
M259: 6d-TEMP | N259: 4 | O259: 55 | Q259: 75 | S259: M6 | T259: 3821 | U259: 1727 | V259: 1414 | W259: 1215 | X259: One (5.0,114,75,102), | Y259: Cooper | Z259: (5.0,115,100,136) | AA259: Salt, Pepper, Chili | AD259: Auch als 5-Türer | AE259: erhältlich
M260: 6d-TEMP-EVAP | N260: 4 | O260: 51 | Q260: 69 | S260: A5 | T260: 3571 | U260: 1627 | V260: 1488 | W260: 900 | AA260: 500C, 500S | AB260: Lounge, Sport | AC260: Star, Rockstar | AD260: Hybrid-Variante
M261: 6d-TEMP-EVAP-ISC | N261: 5 | O261: 70 | Q261: 95 | S261: M6 | T261: 4065 | U261: 1941 | V261: 1466 | W261: 1163 | X261: 1.1l | Y261: (5.3,120,55,75) | Z261: 1.0 Ecoboost | AA261: (5.1,115,70,95) | AB261: 1.0 Ecoboost | AC261: (5.6,127,92,125) | AD261: Trend, Cool-Connect, | AE261: Titanium, ST-Line | AG261: Auch als 5-Türer | AH261: erhältlich
M262: 6d-TEMP-EVAP-ISC | N262: 5 | O262: 74 | Q262: 100 | S262: M6 | T262: 4378 | U262: 1979 | V262: 1471 | W262: 1322 | X262: 1.0 EcoBoost | Y262: (5.5, 124, 92, 125) | Z262: 1.0 EcoBoost | AA262: (5.9,133,92,125) | AB262: 1.5 EcoBoost | AC262: (6.3,142,110,150) | AD262: Trend, Titanium, | AE262: Active, ST-Line, | AF262: Vignale, Cool-Connect | AG262: Auch als Kombi | AH262: erhältlich
M263: 6d | N263: 5 | O263: 81 | Q263: 110 | S263: M6 | T263: 4370 | U263: 2042 | V263: 1485 | W263: 1280 | X263: 1.2 TDI | Y263: (5.3,120,96,130) | Z263: 1.2 TDI | AA263: (5.3,120,107,145) | AD263: Edition, GS-Line, | AE263: Elegance, Ultimate | AG263: Auch als Kombi | AH263: erhältlich
M264: 6d-TEMP-EVAP-ISC | N264: 5 | O264: 70 | Q264: 95 | S264: M5 | T264: 4262 | U264: 1958 | V264: 1488 | W264: 1136 | AD264: Active, Amibition, | AE264: Style, Monte Carlo
M265: 6d | N265: 5 | O265: 55 | Q265: 75 | S265: M6 | T265: 4070 | U265: 1695 | V265: 1495 | W265: 1100 | X265: G90 | Y265: (5.3,120,66,90) | AD265: Life, Takumi, | AE265: Takumi Plus
M266: 6d-TEMP-EVAP | N266: 5 | O266: 53 | Q266: 72 | S266: M5 | T266: 4050 | U266: 1988 | V266: 1440 | W266: 1148 | X266: TCe 100 | Y266: (5.1,116,74,100) | Z266: TCe 130 | AA266: (5.7,130,96,130) | AD266: Life, Zen, Intens, | AE266: R.S. Line, Initiale | AG266: Auch als Kombi | AH266: erhältlich
M267: 6d-TEMP-EVAP-ISC | N267: 5 | O267: 85 | Q267: 115 | S267: M6 | T267: 4053 | U267: 1964 | V267: 1461 | W267: 1120 | X267: 1.0 (5.4,123,44,60) | AD267: Comfortline, | AE267: Highline, GTI
M268: 6d-TEMP | N268: 5 | O268: 59 | Q268: 80 | S268: M5 | T268: 4059 | U268: 1942 | V268: 1444 | W268: 1099 | X268: 1.0 ECO TSI | Y268: (5.5,123,70,95) | Z268: 1.0 ECO TSI | AA268: (5.4,122,85,115) | AB268: 1.0 (4.9,112,59,80) | AD268: Fast Lane, Style, | AE268: Xcellence,FR | AF268: Reference
M269: 6d-TEMP | N269: 5 | O269: 81 | Q269: 110 | S269: M6 | T269: 4282 | U269: 1816 | V269: 1459 | W269: 1202 | AD269: Style, FR | AG269: Auch als Kombi | AH269: erhältlich
M270: 6d-TEMP-EVAP-ISC | N270: 5 | O270: 96 | Q270: 130 | S270: M6 | T270: 4284 | U270: 1789 | V270: 1491 | W270: 1315 | AD270: Life
M271: 6d | N271: 5 | O271: 55 | Q271: 75 | S271: M5 | T271: 4060 | U271: 1960 | V271: 1433 | W271: 1055 | X271: 1.2 (5.5,124,74,100) | Y271: 1.2 (5.6,128,96,130) | AD271: Edition, Elegance, | AE271: GS-Line
M272: 6d | N272: 5 | O272: 55 | Q272: 75 | S272: M5 | T272: 4055 | U272: 1960 | V272: 1430 | W272: 1055 | X272: PureTech 100 | Y272: (5.4,123,74,101) | Z272: PureTech 130 | AA272: (5.6,127,96,131) | AD272: Like, Active, Allure | AE272: GT-Line, GT
M273: 6d-TEMP-EVAP | N273: 5 | O273: 74 | Q273: 100 | S273: M5 | T273: 4035 | U273: 1734 | V273: 1474 | W273: 1065 | X273: 1.25l | Y273: (5.9,133,55,75) | Z273: 1.25l | AA273: (5.8,132,62,84) | AB273: 1.0 TGDI | AC273: (5.6,137,88,120) | AD273: Level 1,2,3,4,5
M274: 6d-TEMP-EVAP | N274: 5 | O274: 74 | Q274: 100 | S274: M5 | T274: 4065 | U274: 1725 | V274: 1450 | W274: 1080 | X274: 1.25 MPI ISG | Y274: (5.8,132,62,84) | Z274: 1.0 TGDI GPF ISG | AA274: (5.8,133,88,120) | AD274: Neon, Titan, Silber, | AE274: Gold, GT-Line
M275: 6d-TEMP-EVAP | N275: 5 | O275: 74 | Q275: 100 | S275: M6 | T275: 4310 | U275: 1800 | V275: 1447 | W275: 1222 | X275: 1.0 TGDI GPF ISG | Y275: (5.6,126,88,120) | Z275: 1.4 TGDI GPF ISG | AA275: (5.9,135,103,140) | AD275: Titan, Silber,Gold | AE275: Platin, GT-Line, GT | AG275: Auch als Kombi | AH275: erhältlich
M276: 6d-TEMP-EVAP-ISC | N276: 5 | O276: 70 | Q276: 95 | S276: M5 | T276: 4362 | U276: 1988 | V276: 1471 | W276: 1192 | X276: 1.0 TSI | Y276: (5.5,124,85,115) | Z276: 1.5 TSI | AA276: (5.7,130,110,150) | AD276: Active, Amibition, | AE276: Style, Monte Carlo
M277: 6d-TEMP-EVAP-ISC | N277: 5 | O277: 74 | Q277: 100 | S277: M6 | T277: 4668 | U277: 1979 | V277: 1494 | W277: 1383 | X277: 1.0 EcoBoost | Y277: (5.6,126,92,125) | Z277: 1.5 EcoBoost | AA277: (5.8,132,110,150) | AB277: 1.5 EcoBoost | AC277: (6.0,137,134,182) | AD277: Trend, Titanium, | AE277: Active, ST-Line, | AF277: Vignale, Cool-Connect
M278: 6d-TEMP-EVAP-ISC | N278: 5 | O278: 84 | Q278: 115 | S278: M6 | T278: 4689 | U278: 1994 | V278: 1468 | W278: 1285 | X278: 1.5 TSI | Y278: (5.7, 129, 110, 150) | AD278: Business, Premium
M279: 6d | N279: 5 | O279: 81 | Q279: 110 | S279: M6 | T279: 4702 | U279: 2040 | V279: 1510 | W279: 1355 | X279: 1.2 TDI | Y279: (5.4,122,96,130) | Z279: 1.2 TDI | AA279: (5.4,122,107,145) | AD279: Edition, GS Line, | AE279: Elegance, Ultimate
A280: 2021 | M280: 6d-TEMP-EVAP | N280: 5 | O280: 88 | Q280: 120 | S280: M6 | T280: 4585 | U280: 2039 | V280: 1465 | W280: 1231 | X280: 1.5 DPI | Y280: (6.0,137,81,110) | AD280: Level 2,3,4,5,6
M281: 6d-TEMP-EVAP-ISC | N281: 5 | O281: 85 | Q281: 116 | S281: M6 | T281: 4567 | U281: 2027 | V281: 1515 | W281: 1300 | X281: 1.5 TSI | Y281: (5.6,128, 96, 131) | Z281: 1.5 TSI | AA281: (5.7, 130, 110, 150) | AD281: Rabbit, Comfortline
A282: Peugeot | B282: 108 | C282: 1.0 VTi 72 | F282: 12740 | I282: 4.8 | J282: BENZIN | K282: 109 | M282: 6d-TEMP-EVAP | N282: 5 | O282: 74 | Q282: 100 | S282: M6 | T282: 4600 | U282: 1800 | V282: 1465 | W282: 1259 | X282: 1.4 TGDI ISG | Y282: (5.9,135,103,140) | AD282: Titan, Silber, Gold, | AE282: Platin, GT-Line, GT
A283: Citroen | B283: C1 | C283: VTi 72 | F283: 11490 | I283: 4.8 | J283: BENZIN | K283: 110 | M283: 6d-TEMP | N283: 5 | O283: 93 | Q283: 126 | S283: M6 | T283: 4518 | U283: 2076 | V283: 1434 | W283: 1229 | X283: 1.5 VTEC Turbo | Y283: (6.1,139,134,182) | AD283: Comfort, Elegance, | AE283: Executive, Sport, S
A284: Hyundai | B284: i10 | C284: 1.0l | F284: 10990 | I284: 4.8 | J284: BENZIN | K284: 110 | M284: 6d-TEMP | N284: 5 | O284: 54 | Q284: 73 | S284: M5 | T284: 4501 | U284: 1994 | V284: 1521 | W284: 1112 | X284: TCe 90 S&S | Y284: (5.9,133,66,90) | AD284: Access, Essential, | AE284: Comfort, Stepway, | AF284: Celebration
A285: Toyota | B285: Aygo | C285: 1.0 VVT-i | F285: 11490 | I285: 5 | J285: BENZIN | K285: 112 | M285: 6d ISC-FCM | N285: 5 | O285: 100 | Q285: 136 | S285: M6 | T285: 4549 | U285: 1796 | V285: 1446 | W285: 1360 | X285: A 200 | Y285: (5.8,131,120,163)
A286: MItsubishi | B286: Space Star | C286: 1.0 MIVEC AS&G | F286: 12990 | I286: 5.1 | J286: BENZIN | K286: 115 | M286: 6d-TEMP-EVAP-ISC | N286: 5 | O286: 110 | Q286: 150 | S286: M6 | T286: 4775 | U286: 2083 | V286: 1483 | W286: 1425 | X286: 2.0 TSI | Y286: (7.6,171,140,190) | AD286: Business, Elegance
A287: Suzuki | B287: Swift | C287: 1.2 Dualjet | F287: 13490 | I287: 5.1 | J287: BENZIN | K287: 115 | M287: 6d | N287: 5 | O287: 81 | Q287: 110 | S287: M6 | T287: 4585 | U287: 2043 | V287: 1472 | W287: 1205 | X287: PureTech 130 | Y287: (5.8, 130, 96, 131) | AD287: Active, Style, | AE287: Access, Allure, | AF287: GT-Line, GT
A288: KIA | B288: Picanto | C288: 1.0 MPI ISG | F288: 10190 | I288: 5.1 | J288: BENZIN | K288: 116 | M288: 6d-TEMP-EVAP | N288: 5 | O288: 84 | Q288: 115 | S288: M6 | T288: 4626 | U288: 2058 | V288: 1457 | W288: 1231 | X288: TCe 140 | Y288: (6.0,136,103,140) | Z288: TCe 160 | AA288: (6.2,140,117,159) | AD288: Intens, Life, Bose | AE288: GT-Line, Limited
... 174 more rows

Sheet Berechnungen
O1: Motorbezogene Versicherungssteuer für E-Autos ab 01. April 2025 (in Österreich)
B3: Jahre | C3: Einnahmen | D3: Ausgaben | E3: Cash Flow | F3: Barwerte | G3: Kapitalwert | H3: Zeit | O3: Gewähltes Modell | P3: Leistung (max.) | Q3: Leistung (Dauer) | R3: Leergewicht | S3: Motorsteuer | T3: Massensteuer | U3: Gesamtsteuer | V3: Steuer pro Jahr
C4: [€] | D4: [€] | E4: [€] | F4: [€] | G4: [€] | P4: kW | Q4: kW | R4: kg | S4: EUR | T4: EUR | U4: EUR | V4: EUR
B5: 0 | D5: =Eingabe!Q33*-1 -> 1610 | E5: =C5-D5 -> -1610 | F5: =E5/(1+(Eingabe!G$77/100))^B5 -> -1610 | G5: =F5 -> -1610 | H5: =IF(G5<0,I5,0) -> 1 | I5: 1 | O5: =Eingabe!G12 -> Cupra Born | P5: =VLOOKUP($O$5, 'Daten-Elektrofahrzeug'!$C$6:$Q$79, 'Daten-Elektrofahrzeug'!E5, FALSE) -> 150 | Q5: =IF(ISBLANK(Eingabe!I42), VLOOKUP($O$5, 'Daten-Elektrofahrzeug'!$C$6:$Q$79, 'Daten-Elektrofahrzeug'!P5, FALSE), Eingabe!I42) -> 115 | R5: =IF(ISBLANK(Eingabe!I43), VLOOKUP($O$5,'Daten-Elektrofahrzeug'!$C$6:$Q$79,'Daten-Elektrofahrzeug'!Q5,FALSE), Eingabe!I43) -> 1840 | S5: =IF((Dauerleistung-Freibetrag_kW)>(gw1_kW+gw2_kW), (Dauerleistung-Freibetrag_kW-(gw1_kW+gw2_kW))*Restwert_EURprokW+gw1_kW*gw1_EURprokW+gw2_kW*gw2_EURprokW, IF((Dauerleistung-Freibetrag_kW)>(gw1_kW), (Dauerleistung-Freibetrag_kW-gw1_kW)*gw2_EURprokW+gw1_kW*gw1_EURprokW, IF((Dauerleistung>Freibetrag_kW), Dauerleistung*gw1_EURprokW, 0))) -> 22 | T5: =IF((Leergewicht-Freibetrag_kg)>(gw1_kg+gw2_kg), (Leergewicht-Freibetrag_kg-(gw1_kg+gw2_kg))*Restwert_EURprokg+gw1_kg*gw1_EURprokg+gw2_kg*gw2_EURprokg, IF((Leergewicht-Freibetrag_kg)>(gw1_kg), (Leergewicht-Freibetrag_kg-gw1_kg)*gw2_EURprokg+gw1_kg*gw1_EURprokg, IF((Leergewicht>Freibetrag_kg), Leergewicht*gw1_EURprokg, 0))) -> 20.7 | U5: =S5+T5 -> 42.7 | V5: =U5*12 -> 512.4
B6: 1 | C6: =E28+Eingabe!$Q$53 -> 509.8125263 | D6: =Eingabe!$G$68+IF(Eingabe!$G$34=B6,Eingabe!$G$35,0) -> 0 | E6: =(C6-D6)/(1+(Eingabe!$G$74/100))^B6 -> 500.306699 | F6: =E6/(1+(Eingabe!G$77/100))^B6 -> 492.913004 | G6: =G5+F6 -> -1117.086996 | H6: =IF(G6<0,I6,0) -> 2 | I6: 2
B7: 2 | C7: =E29+Eingabe!$Q$53 -> 514.8597942 | D7: =Eingabe!$G$68+IF(Eingabe!$G$34=B7,Eingabe!$G$35,0) -> 0 | E7: =(C7-D7)/(1+(Eingabe!$G$74/100))^B7 -> 495.8389175 | F7: =E7/(1+(Eingabe!G$77/100))^B7 -> 481.2918707 | G7: -635.7951253 | H7: =IF(G7<0,I7,0) -> 3 | I7: 3
B8: 3 | C8: =E30+Eingabe!$Q$53 -> 520.0199807 | D8: =Eingabe!$G$68+IF(Eingabe!$G$34=B8,Eingabe!$G$35,0) -> 0 | E8: =(C8-D8)/(1+(Eingabe!$G$74/100))^B8 -> 491.4705271 | F8: =E8/(1+(Eingabe!G$77/100))^B8 -> 470.001617 | G8: -165.7935083 | H8: 4 | I8: 4 | O8: Tabellen Steuergrenzen und Kosten
B9: 4 | C9: =E31+Eingabe!$Q$53 -> 525.2955238 | D9: =Eingabe!$G$68+IF(Eingabe!$G$34=B9,Eingabe!$G$35,0) -> 0 | E9: =(C9-D9)/(1+(Eingabe!$G$74/100))^B9 -> 487.199646 | F9: =E9/(1+(Eingabe!G$77/100))^B9 -> 459.0318235 | G9: 293.2383151 | H9: 0 | I9: 5
B10: 5 | C10: =E32+Eingabe!$Q$53 -> 530.6889129 | D10: =Eingabe!$G$68+IF(Eingabe!$G$34=B10,Eingabe!$G$35,0) -> 0 | E10: =(C10-D10)/(1+(Eingabe!$G$74/100))^B10 -> 483.0244276 | F10: =E10/(1+(Eingabe!G$77/100))^B10 -> 448.3724123 | G10: 741.6107274 | H10: 0 | I10: 6 | P10: Freibetrag | Q10: Grenzwert 1 | R10: Grenzwert 2 | S10: Restwert
B11: 6 | C11: =E33+Eingabe!$Q$53 -> 536.20269 | D11: =Eingabe!$G$68+IF(Eingabe!$G$34=B11,Eingabe!$G$35,0) -> 0 | E11: =(C11-D11)/(1+(Eingabe!$G$74/100))^B11 -> 478.9430598 | F11: =E11/(1+(Eingabe!G$77/100))^B11 -> 438.013636 | G11: 1179.624363 | H11: 0 | I11: 7 | O11: Leistung in kW | P11: 45 | Q11: 35 | R11: 25
B12: 7 | C12: =E34+Eingabe!$Q$53 -> 541.8394506 | D12: =Eingabe!$G$68+IF(Eingabe!$G$34=B12,Eingabe!$G$35,0) -> 0 | E12: =(C12-D12)/(1+(Eingabe!$G$74/100))^B12 -> 474.9537645 | F12: =E12/(1+(Eingabe!G$77/100))^B12 -> 427.9460661 | G12: 1607.570429 | H12: 0 | I12: 8 | O12: EUR pro kW | P12: 0 | Q12: 0.25 | R12: 0.35 | S12: 0.45
B13: 8 | C13: =E35+Eingabe!$Q$53 -> 547.601845 | D13: =Eingabe!$G$68+IF(Eingabe!$G$34=B13,Eingabe!$G$35,0) -> 0 | E13: =(C13-D13)/(1+(Eingabe!$G$74/100))^B13 -> 471.0547969 | F13: =E13/(1+(Eingabe!G$77/100))^B13 -> 418.1605831 | G13: 2025.731013 | H13: 0 | I13: 9
B14: 9 | C14: =E36+Eingabe!$Q$53 -> 553.4925794 | D14: =Eingabe!$G$68+IF(Eingabe!$G$34=B14,Eingabe!$G$35,0) -> 2000 | E14: =(C14-D14)/(1+(Eingabe!$G$74/100))^B14 -> -1221.105001 | F14: =E14/(1+(Eingabe!G$77/100))^B14 -> -1067.968958 | G14: 957.7620543 | H14: 0 | I14: 10 | P14: Freibetrag | Q14: Grenzwert 1 | R14: Grenzwert 2 | S14: Restwert
B15: 10 | C15: =E37+Eingabe!$Q$53 -> 559.514417 | D15: =Eingabe!$G$68+IF(Eingabe!$G$34=B15,Eingabe!$G$35,0) -> 0 | E15: =(C15-D15)/(1+(Eingabe!$G$74/100))^B15 -> 463.5210284 | F15: =E15/(1+(Eingabe!G$77/100))^B15 -> 399.4008814 | G15: 1357.162936 | H15: 0 | I15: 11 | O15: Leergewicht in kg | P15: 900 | Q15: 500 | R15: 700
B16: 11 | C16: =E38+Eingabe!$Q$53 -> 565.670179 | D16: =Eingabe!$G$68+IF(Eingabe!$G$34=B16,Eingabe!$G$35,0) -> 0 | E16: =(C16-D16)/(1+(Eingabe!$G$74/100))^B16 -> 459.8828988 | F16: =E16/(1+(Eingabe!G$77/100))^B16 -> 390.4098762 | G16: 1747.572812 | H16: 0 | I16: 12 | O16: EUR pro kg | P16: 0 | Q16: 0.015 | R16: 0.03 | S16: 0.045
B17: 12 | C17: =E39+Eingabe!$Q$53 -> 571.9627465 | D17: =Eingabe!$G$68+IF(Eingabe!$G$34=B17,Eingabe!$G$35,0) -> 0 | E17: =(C17-D17)/(1+(Eingabe!$G$74/100))^B17 -> 456.3284384 | F17: =E17/(1+(Eingabe!G$77/100))^B17 -> 381.6673661 | G17: 2129.240178 | H17: 0 | I17: 13
B18: Summen | C18: =SUM(C6:C17) -> 6476.960646 | D18: =SUM(D5:D17) -> 3610 | E18: =SUM(E5:E17) -> 2431.419203 | F18: =SUM(F5:F17) -> 2129.240178 | H18: =IF(MAX(H5:H17)>12,">12",MAX(H5:H17)) -> 4
H21: Mehreinnahmen nach 12 Jahren: | I21: =NPV(Eingabe!G$77/100,Berechnungen!E6:E17)+E5 -> 2129.240178
H22: Interner Zinsfuß: | I22: =IRR(F5:F17) -> 0.2264683668
B25: Entwicklung Kraftstoffpreise
B26: Jahre | C26: Strom | D26: Benzin-/Diesel | E26: DELTA | F26: Strom | G26: Benzin-/Diesel
C27: [€] | D27: [€] | E27: [€] | F27: [€] | G27: [€]
B28: 1 | C28: =Eingabe!$G$65*(1+(Eingabe!G$75/100))^B28 -> 159.6434737 | D28: =Eingabe!$M$65*(1+(Eingabe!G$76/100))^B28 -> 372.096 | E28: =D28-C28 -> 212.4525263 | F28: =C28/$C$28 -> 1 | G28: =D28/$D$28 -> 1
B29: 2 | C29: =Eingabe!$G$65*(1+(Eingabe!G$75/100))^B29 -> 162.0381258 | D29: =Eingabe!$M$65*(1+(Eingabe!G$76/100))^B29 -> 379.53792 | E29: =D29-C29 -> 217.4997942 | F29: =C29/$C$28 -> 1.015 | G29: =D29/$D$28 -> 1.02
B30: 3 | C30: =Eingabe!$G$65*(1+(Eingabe!G$75/100))^B30 -> 164.4686977 | D30: =Eingabe!$M$65*(1+(Eingabe!G$76/100))^B30 -> 387.1286784 | E30: 222.6599807 | F30: 1.030225 | G30: 1.0404
B31: 4 | C31: =Eingabe!$G$65*(1+(Eingabe!G$75/100))^B31 -> 166.9357281 | D31: =Eingabe!$M$65*(1+(Eingabe!G$76/100))^B31 -> 394.871252 | E31: 227.9355238 | F31: 1.045678375 | G31: 1.061208
B32: 5 | C32: =Eingabe!$G$65*(1+(Eingabe!G$75/100))^B32 -> 169.4397641 | D32: =Eingabe!$M$65*(1+(Eingabe!G$76/100))^B32 -> 402.768677 | E32: 233.3289129 | F32: 1.061363551 | G32: 1.08243216
B33: 6 | C33: =Eingabe!$G$65*(1+(Eingabe!G$75/100))^B33 -> 171.9813605 | D33: =Eingabe!$M$65*(1+(Eingabe!G$76/100))^B33 -> 410.8240505 | E33: 238.84269 | F33: 1.077284004 | G33: 1.104080803
B34: 7 | C34: =Eingabe!$G$65*(1+(Eingabe!G$75/100))^B34 -> 174.5610809 | D34: =Eingabe!$M$65*(1+(Eingabe!G$76/100))^B34 -> 419.0405316 | E34: 244.4794506 | F34: 1.093443264 | G34: 1.126162419
B35: 8 | C35: =Eingabe!$G$65*(1+(Eingabe!G$75/100))^B35 -> 177.1794971 | D35: =Eingabe!$M$65*(1+(Eingabe!G$76/100))^B35 -> 427.4213422 | E35: 250.241845 | F35: 1.109844913 | G35: 1.148685668
B36: 9 | C36: =Eingabe!$G$65*(1+(Eingabe!G$75/100))^B36 -> 179.8371896 | D36: =Eingabe!$M$65*(1+(Eingabe!G$76/100))^B36 -> 435.969769 | E36: 256.1325794 | F36: 1.126492587 | G36: 1.171659381
B37: 10 | C37: =Eingabe!$G$65*(1+(Eingabe!G$75/100))^B37 -> 182.5347474 | D37: =Eingabe!$M$65*(1+(Eingabe!G$76/100))^B37 -> 444.6891644 | E37: 262.154417 | F37: 1.143389975 | G37: 1.195092569
B38: 11 | C38: =Eingabe!$G$65*(1+(Eingabe!G$75/100))^B38 -> 185.2727687 | D38: =Eingabe!$M$65*(1+(Eingabe!G$76/100))^B38 -> 453.5829477 | E38: 268.310179 | F38: 1.160540825 | G38: 1.21899442
B39: 12 | C39: =Eingabe!$G$65*(1+(Eingabe!G$75/100))^B39 -> 188.0518602 | D39: =Eingabe!$M$65*(1+(Eingabe!G$76/100))^B39 -> 462.6546067 | E39: 274.6027465 | F39: 1.177948937 | G39: 1.243374308
E56: pes_

Sheet Förderungen (hidden)
B3: Gesamte Förderung: | J3: Landesförderungen: | S3: Bundesförderungen:
B5: Förderung für Burgenland | J5: Förderungen aktualisiert am 11.12.2013 | S5: Klima- und Energiefonds Förderaktion Photovoltaik-Anlagen 2014
C6: Anlagengröße | E6: Landesförderung | G6: Bundesförderung
E7: Investition | G7: Investition | H7: Tarif
C8: 1 - 3 | D8: kWp | E8: 300 | F8: €/kWp | G8: =IF(H11<>0,200,IF(Eingabe!#REF!=Eingabe!C127,IF(Eingabe!#REF!=Eingabe!C179,275,IF(Eingabe!#REF!=Eingabe!C178,375,0)),0)) ->  | H8: -
C9: 4 | D9: kWp | E9: 300 | F9: €/kWp | G9: =$G$8 ->  | H9: - | K9: Nähere Informationen zur Förderung:
C10: 5 | D10: kWp | E10: 300 | F10: €/kWp | G10: =$G$8 ->  | H10: - | K10: http://www.eabgld.at/index.php?id=986
C11: > 5 | D11: kWp | E11: - | F11: - | G11: =IF(AND($G$8<275,H11<>0),200,0) ->  | H11: =IF(AND(Eingabe!#REF!>5,Eingabe!#REF!<=200,Eingabe!#REF!=Eingabe!C125),IF(AND(Eingabe!#REF!=Eingabe!$C$178,Eingabe!#REF!<=20,Eingabe!#REF!=Eingabe!$C$152),Eingabe!$W$186,IF(Eingabe!#REF!=Eingabe!$C$180,Eingabe!$P$195,Eingabe!$I$195)),0) -> 
B13: Information:
B14: =Eingabe!P165 -> 0
B17: Förderung für Kärnten | J17: Förderungen aktualisiert am 11.12.2013
C18: Anlagengröße | E18: Landesförderung | G18: Bundesförderung
E19: Investition | G19: Investition | H19: Tarif
C20: 1 - 3 | D20: kWp | E20: - | F20: - | G20: =$G$8 ->  | H20: -
C21: 4 | D21: kWp | E21: - | F21: - | G21: =$G$8 ->  | H21: - | K21: Nähere Informationen zur Förderung:
C22: 5 | D22: kWp | E22: - | F22: - | G22: =$G$8 ->  | H22: - | K22: http://www.ktn.gv.at/42109_DE-ktn.gv.at-THEMEN?detail=2&thema=1&subthema=
C23: > 5 | D23: kWp | E23: - | F23: - | G23: =$G$11 ->  | H23: =$H$11 -> 
B25: Information:
B26: =Eingabe!P166 -> 0
B29: Förderung für Niederösterreich | J29: Förderungen aktualisiert am 20.01.2015
C30: Fahrzeug | E30: Landesförderung | G30: Bundesförderung
E31: Investition | G31: Investition | H31: Tarif
C32: "reines" E-Fahrzeug | E32: 3000 | F32: € | G32: =$G$8 ->  | H32: -
C33: Plug-In-Hybrid | E33: 1500 | F33: € | G33: =$G$8 ->  | H33: - | K33: Nähere Informationen zur Förderung:
C34: e-Krafträder inkl. Leichtfahrzeuge | E34: - | F34: - | G34: =$G$8 ->  | H34: - | K34: http://www.ecoplus.at/de/ecoplus/cluster-niederoesterreich/e-mobil/foerderungen-fuer-e-fahrzeuge
E35: - | F35: - | G35: =$G$11 ->  | H35: =$H$11 ->  | T35: Zur Registrierung:
T36: https://www.meinefoerderung.at/pv2014/
B37: Information:
B38: =Eingabe!P167 -> 0 | T38: Zum Leitfaden:
T39: http://www.umweltfoerderung.at/uploads/leitfaden_pv.pdf
B41: Förderung für Oberösterreich | J41: Förderungen aktualisiert am 11.12.2013
C42: Anlagengröße | E42: Landesförderung | G42: Bundesförderung
E43: Investition | G43: Investition | H43: Tarif
C44: 1 - 3 | D44: kWp | E44: - | F44: - | G44: =$G$8 ->  | H44: -
C45: 4 | D45: kWp | E45: - | F45: - | G45: =$G$8 ->  | H45: - | K45: Nähere Informationen zur Förderung:
C46: 5 | D46: kWp | E46: - | F46: - | G46: =$G$8 ->  | H46: - | K46: http://www.esv.or.at/foerderungen/oekostrom/photovoltaik/
C47: > 5 | D47: kWp | E47: - | F47: - | G47: =$G$11 ->  | H47: =$H$11 -> 
B49: Information:
B50: Keine Förderung durch das Land Oberösterreich
B53: Förderung für Salzburg | J53: Förderungen aktualisiert am 11.12.2013
C54: Anlagengröße | E54: Landesförderung | G54: Bundesförderung
E55: Investition | G55: Investition | H55: Tarif
C56: 1 - 3 | D56: kWp | E56: =IF(Eingabe!#REF!<900,"-",Eingabe!W195) ->  | F56: €/kWp | G56: =$G$8 ->  | H56: -
C57: 4 | D57: kWp | E57: - | F57: - | G57: =$G$8 ->  | H57: - | K57: Nähere Informationen zur Förderung:
C58: 5 | D58: kWp | E58: - | F58: - | G58: =$G$8 ->  | H58: - | K58: http://www.energieaktiv.at/information-und-beratung/foerdermoeglichkeiten/direktzuschuss/solar/fotovoltaik-oekostrom/?utm_source=wes&utm_medium=banner&utm_campaign=weitere+Informationen
C59: > 5 | D59: kWp | E59: - | F59: - | G59: =$G$11 ->  | H59: =$H$11 ->  | J59: Außerdem gibt es folgende Förderung:
J60: Kombination der PV-Anlage mit einer Wärmepumpe:
B61: Information: | J61: Förderung erfolgt auf Basis eines Punktesystemes;
B62: =Eingabe!P169 -> 0 | J62: für die Photovoltaikanlage erhält man maximal 40 Punkte; diese entsprechen 4.000 €
J63: Die PV-Anlage muss jedoch mindestens 2 kWp groß sein!
B65: Gesamte Förderung: | J65: Landesförderungen:
B67: Förderung für Steiermark | J67: Förderungen aktualisiert am 11.12.2013
C68: Anlagengröße | E68: Landesförderung | G68: Bundesförderung
E69: Investition | G69: Investition | H69: Tarif
C70: 1 - 3 | D70: kWp | E70: =IF(OR(Eingabe!$AE$235<2,Eingabe!#REF!<900),"-",Eingabe!$AE$236) ->  | F70: =IF(E70="-","-","€ für "&Eingabe!$AE$235&"kWp") ->  | G70: =$G$8 ->  | H70: -
C71: 4 | D71: kWp | E71: - | F71: - | G71: =$G$8 ->  | H71: - | K71: Nähere Informationen zur Landesförderung:
C72: 5 | D72: kWp | E72: - | F72: - | G72: =$G$8 ->  | H72: - | K72: http://www.technik.steiermark.at/cms/ziel/59689784/DE/
C73: > 5 | D73: kWp | E73: - | F73: - | G73: =$G$11 ->  | H73: =$H$11 -> 
K74: Nähere Informationen zu den Gemeindeförderungen:
B75: Information: | K75: http://www.lev.at/index.asp?S=main/foerderungen/gemausw.asp&S1=left/left.asp
B76: =Eingabe!P170 -> 0
B79: Förderung für Tirol | J79: Förderungen aktualisiert am 11.12.2013
C80: Anlagengröße | E80: Landesförderung | G80: Bundesförderung
E81: Investition | G81: Investition | H81: Tarif
C82: 1 - 3 | D82: kWp | E82: - | F82: €/kWp | G82: =$G$8 ->  | H82: -
C83: 4 | D83: kWp | E83: - | F83: €/kWp | G83: =$G$8 ->  | H83: - | K83: Nähere Informationen zur Förderung:
C84: 5 | D84: kWp | E84: - | F84: €/kWp | G84: =$G$8 ->  | H84: - | K84: https://www.tirol.gv.at/umwelt/energie/energiefoerderungen/
C85: > 5 | D85: kWp | E85: - | F85: - | G85: =$G$11 ->  | H85: =$H$11 -> 
B87: Information:
B88: =Eingabe!P171 -> 0
B91: Förderung für Vorarlberg | J91: Förderungen aktualisiert am 29.01.2014
C92: Anlagengröße | E92: Landesförderung | G92: Bundesförderung
E93: Investition | G93: Investition | H93: Tarif
C94: 1 - 3 | D94: kWp | E94: - | F94: €/kWp | G94: =$G$8 ->  | H94: -
C95: 4 | D95: kWp | E95: - | F95: €/kWp | G95: =$G$8 ->  | H95: - | K95: Nähere Informationen zur Förderung:
C96: 5 | D96: kWp | E96: - | F96: €/kWp | G96: =$G$8 ->  | H96: - | K96: http://www.vorarlberg.at/vorarlberg/wasser_energie/energie/energie/foerderungen/sub/foerderungvonphotovoltaik.htm
C97: > 5 | D97: kWp | E97: - | F97: - | G97: =$G$11 ->  | H97: =$H$11 -> 
B99: Information:
B100: =Eingabe!P172 -> 0
B103: Förderung für Wien | J103: Förderungen aktualisiert am 11.12.2013
C104: Anlagengröße | E104: Landesförderung | G104: Bundesförderung
E105: Investition | G105: Investition | H105: Tarif
C106: 1 - 3 | D106: kWp | E106: 275 | F106: €/kWp | G106: =$G$8 ->  | H106: -
C107: 4 | D107: kWp | E107: 275 | F107: €/kWp | G107: =$G$8 ->  | H107: - | K107: Nähere Informationen zur Förderung:
C108: 5 | D108: kWp | E108: 275 | F108: €/kWp | G108: =$G$8 ->  | H108: - | K108: http://www.umweltfoerderung.at/kpc/de/home/umweltfrderung/fr_private/weitere_frderungen/landesfrderung_wien/
C109: > 5 | D109: kWp | E109: 400 | F109: €/kWp | G109: =$G$11 ->  | H109: =$H$11 -> 
B111: Information:
B112: =Eingabe!P173 -> 0

Sheet Wetterdaten (hidden)
A1: Ort | B1: PLZ | C1: Land | D1: PLZ-Differenz | E1: Jährliche Einstrahlung | F1: mittlere Aussentemperatur | G1: Längengrad | H1: Breitengrad | I1: Ermittlung der Einstrahlung
E2: [kWh/m²a] | F2: [°C] | G2: [°] | H2: [°]
A3: Admont | B3: 8911 | C3: AUT | D3: =IF(B3>$L$3,B3-$L$3,$L$3-B3) ->  | E3: 1028.32 | F3: 5.86 | G3: -14.45 | H3: 47.57 | I3: =IF($L$4=D3,E3,0) ->  | J3: =IF(I3=0,0,1) ->  | K3: PLZ: | L3: =Eingabe!M12 -> VW Touran R-Line TDI - Diesel
A4: Amstetten | B4: 3300 | C4: AUT | E4: 1069.1 | F4: 8.79 | G4: -14.83 | H4: 48.08 | J4: =IF(I4=0,0,1) ->  | K4: Diff: | L4: =MIN(D3:D53) -> 
A5: Arriach | B5: 9543 | C5: AUT | E5: 1144.54 | F5: 6.46 | G5: -13.85 | H5: 46.72 | K5: Einstrahlung | L5: =ROUNDDOWN(K54,-0.5) ->  | M5: kWh/m²a
A6: Bad Gleichenberg | B6: 8344 | C6: AUT | E6: 1153.19 | F6: 9.14 | G6: -15.88 | H6: 46.87
A7: Bad Ischl | B7: 4820 | C7: AUT | E7: 1093.31 | F7: 7.90 | G7: -13.60 | H7: 47.72
A8: Bludenz | B8: 6700 | C8: AUT | E8: 1079.79 | F8: 7.97 | G8: -9.82 | H8: 48.50
A9: Bruck an der Mur | B9: 8600 | C9: AUT | E9: 1070.77 | F9: 8.07 | G9: -15.25 | H9: 47.42
A10: Eisenerz | B10: 8790 | C10: AUT | E10: 1071.43 | F10: 7.11 | G10: -14.88 | H10: 47.53
A11: Eisenstadt | B11: 7000 | C11: AUT | E11: 1132.17 | F11: 10.01 | G11: -16.68 | H11: 47.90
A12: Feldkirch | B12: 6800 | C12: AUT | E12: 1100.38 | F12: 8.30 | G12: -9.58 | H12: 47.23
A13: Ferlach | B13: 9170 | C13: AUT | E13: 1156.25 | F13: 7.82 | G13: -14.28 | H13: 46.52
A14: Fresach | B14: 9712 | C14: AUT | E14: 1207.36 | F14: 7.07 | G14: -13.68 | H14: 46.70
A15: Gargellen | B15: 6787 | C15: AUT | E15: 1174.51 | F15: 4.42 | G15: -9.92 | H15: 46.97
A16: Gmunden | B16: 4810 | C16: AUT | E16: 1088.42 | F16: 8.57 | G16: -13.80 | H16: 47.92
A17: Graz | B17: 8010 | C17: AUT | E17: 1126.02 | F17: 9.17 | G17: -15.42 | H17: 47.67
A18: Gumpoldskirchen | B18: 2352 | C18: AUT | E18: 1125.22 | F18: 9.11 | G18: -16.27 | H18: 48.33
A19: Hallstadt | B19: 4830 | C19: AUT | E19: 1054.8 | F19: 8.00 | G19: -13.63 | H19: 47.55
A20: Imst | B20: 6460 | C20: AUT | E20: 1069.11 | F20: 7.31 | G20: -10.72 | H20: 47.23
A21: Innsbruck | B21: 6020 | C21: AUT | E21: 1089.72 | F21: 8.61 | G21: -11.40 | H21: 47.27
A22: Kitzbuehl | B22: 6370 | C22: AUT | E22: 1069.88 | F22: 6.19 | G22: -12.38 | H22: 47.45
A23: Klagenfurt | B23: 9010 | C23: AUT | E23: 1131 | F23: 8.14 | G23: -14.30 | H23: 46.62
A24: Krems a. d. Donau | B24: 3500 | C24: AUT | E24: 1071.4 | F24: 9.62 | G24: -15.58 | H24: 48.50
A25: Kremsmünster | B25: 4550 | C25: AUT | E25: 1046.5 | F25: 7.69 | G25: -14.12 | H25: 48.05
A26: Leoben | B26: 8700 | C26: AUT | E26: 1068.49 | F26: 8.30 | G26: -15.83 | H26: 47.37
A27: Lienz | B27: 9900 | C27: AUT | E27: 1147.74 | F27: 7.41 | G27: -12.80 | H27: 46.83
A28: Lilienfeld | B28: 3180 | C28: AUT | E28: 1075.26 | F28: 8.36 | G28: -15.62 | H28: 48.17
A29: Millstatt | B29: 9872 | C29: AUT | E29: 1189.53 | F29: 8.67 | G29: -13.57 | H29: 46.80
A30: Mondsee | B30: 5310 | C30: AUT | E30: 1046.56 | F30: 7.84 | G30: -13.33 | H30: 47.85
A31: Mönichkirchen | B31: 2872 | C31: AUT | E31: 1083.3 | F31: 6.25 | G31: -16.17 | H31: 47.50
A32: Nauders | B32: 6543 | C32: AUT | E32: 1201.41 | F32: 4.71 | G32: -10.50 | H32: 46.88
A33: Neumarkt in der Steiermark | B33: 8820 | C33: AUT | E33: 1161.95 | F33: 6.39 | G33: -14.42 | H33: 47.67
A34: Obervellach | B34: 9821 | C34: AUT | E34: 1226.7 | F34: 8.44 | G34: -13.20 | H34: 46.93
A35: Oberwölz Stadt | B35: 8832 | C35: AUT | D35: =IF(B35>$L$3,B35-$L$3,$L$3-B35) ->  | E35: 1107.85 | F35: 6.20 | G35: -14.27 | H35: 47.20 | I35: =IF($L$4=D35,E35,0) -> 
A36: Radentheim | B36: 9545 | C36: AUT | E36: 1133.12 | F36: 7.53 | G36: -13.70 | H36: 46.80
A37: Ramsau Dachstein | B37: 8972 | C37: AUT | E37: 1129.03 | F37: 5.16 | G37: -12.88 | H37: 47.60
A38: Rauris | B38: 5661 | C38: AUT | E38: 1124.15 | F38: 5.82 | G38: -12.98 | H38: 47.23
A39: Reichersberg | B39: 4981 | C39: AUT | E39: 1037.37 | F39: 8.48 | G39: -13.37 | H39: 48.33
A40: Reichraming | B40: 4462 | C40: AUT | E40: 1068.82 | F40: 8.13 | G40: -14.45 | H40: 47.88
A41: Salzburg | B41: 5020 | C41: AUT | E41: 1113.61 | F41: 8.39 | G41: -13.33 | H41: 47.82
A42: St. Lorenzen im Lesachtal | B42: 9654 | C42: AUT | E42: 1217.13 | F42: 5.73 | G42: 12.77 | H42: 46.70
A43: St. Michael i. Lundgau | B43: 5582 | C43: AUT | E43: 1194.76 | F43: 6.55 | G43: -13.48 | H43: 47.83
A44: St. Pölten | B44: 3100 | C44: AUT | E44: 1031.18 | F44: 8.59 | G44: -15.60 | H44: 48.20
A45: Velden am Wörtersee | B45: 9220 | C45: AUT | E45: 1189.4 | F45: 8.04 | G45: -14.33 | H45: 46.62
A46: Villach | B46: 9500 | C46: AUT | E46: 1188.95 | F46: 8.04 | G46: -13.83 | H46: 46.62
A47: Wels | B47: 4600 | C47: AUT | E47: 1036.5 | F47: 8.67 | G47: -14.17 | H47: 48.17
A48: Weyer Mark | B48: 3335 | C48: AUT | E48: 1106.53 | F48: 7.58 | G48: -14.65 | H48: 47.85
A49: Wien | B49: 1190 | C49: AUT | E49: 1084.48 | F49: 9.77 | G49: -16.33 | H49: 48.20
A50: Wiener Neustadt | B50: 2700 | C50: AUT | E50: 1080.56 | F50: 9.44 | G50: -16.23 | H50: 47.82
A51: Wolfsberg | B51: 9400 | C51: AUT | E51: 1066.68 | F51: 7.86 | G51: -14.83 | H51: 46.85
A52: Zell am See | B52: 5700 | C52: AUT | E52: 1080.32 | F52: 6.55 | G52: -12.77 | H52: 47.32
A53: Zwettl | B53: 3910 | C53: AUT | E53: 1051.52 | F53: 5.71 | G53: -15.15 | H53: 48.58
H54: Einstrahlungswert: | I54: =SUM(I3:I53) ->  | J54: =SUM(J3:J53) ->  | K54: =I54/J54 -> 

Sheet PLZ-Zuordnung (hidden)
A1: PLZ | B1: Ort | C1: Bundesland | D1: NamePLZTyp | E1: intern_extern | F1: adressierbar | G1: Postfach
I2: Zuordnung der PLZ und des Ortes (Bundesland):
A3: 1004 | B3: Wien | C3: W | D3: InteressentenPLZ | E3: extern | F3: Nein | G3: Ja | I3: =Eingabe!M12 -> VW Touran R-Line TDI - Diesel | J3: =VLOOKUP(I3,A3:C2460,3,TRUE) -> 
A4: 1010 | B4: Wien | C4: W | D4: PLZ-Adressierung | E4: extern | F4: Ja | G4: Ja | J4: =VLOOKUP(J3,I7:J15,2,TRUE) -> 
A5: 1011 | B5: Wien Postfach | C5: W | D5: PLZ-Postfach | E5: extern | F5: Nein | G5: Ja | J5: =VLOOKUP(I3,A3:C2460,2,FALSE) -> 
A6: 1012 | B6: Wien | C6: W | D6: PLZ-Postfach | E6: extern | F6: Nein | G6: Ja
A7: 1013 | B7: Wien | C7: W | D7: PLZ-Postfach | E7: extern | F7: Nein | G7: Ja | I7: B | J7: Burgenland
A8: 1014 | B8: Wien | C8: W | D8: PLZ-Postfach | E8: extern | F8: Nein | G8: Ja | I8: K | J8: Kärnten
A9: 1015 | B9: Wien | C9: W | D9: PLZ-Postfach | E9: extern | F9: Nein | G9: Ja | I9: N | J9: Niederösterreich
A10: 1016 | B10: Wien | C10: W | D10: PLZ-Postfach | E10: extern | F10: Nein | G10: Ja | I10: O | J10: Oberösterreich
A11: 1017 | B11: Wien-Parlament | C11: W | D11: PLZ-Postfach | E11: extern | F11: Nein | G11: Ja | I11: Sa | J11: Salzburg
A12: 1018 | B12: Wien | C12: W | D12: PLZ-Postfach | E12: extern | F12: Nein | G12: Ja | I12: St | J12: Steiermark
A13: 1020 | B13: Wien | C13: W | D13: PLZ-Adressierung | E13: extern | F13: Ja | G13: Ja | I13: T | J13: Tirol
A14: 1021 | B14: Wien Postfach | C14: W | D14: PLZ-Postfach | E14: extern | F14: Nein | G14: Ja | I14: V | J14: Vorarlberg
A15: 1022 | B15: Wien | C15: W | D15: PLZ-Postfach | E15: extern | F15: Nein | G15: Ja | I15: W | J15: Wien
A16: 1023 | B16: Wien | C16: W | D16: PLZ-Postfach | E16: extern | F16: Nein | G16: Ja
A17: 1024 | B17: Wien | C17: W | D17: PLZ-Postfach | E17: extern | F17: Nein | G17: Ja
A18: 1025 | B18: Wien | C18: W | D18: PLZ-Postfach | E18: extern | F18: Nein | G18: Ja
A19: 1029 | B19: Wien | C19: W | D19: InteressentenPLZ | E19: extern | F19: Nein | G19: Ja
A20: 1030 | B20: Wien | C20: W | D20: PLZ-Adressierung | E20: extern | F20: Ja | G20: Ja
A21: 1031 | B21: Wien Postfach | C21: W | D21: PLZ-Postfach | E21: extern | F21: Nein | G21: Ja
A22: 1033 | B22: Wien | C22: W | D22: PLZ-Postfach | E22: extern | F22: Nein | G22: Ja
A23: 1034 | B23: Wien | C23: W | D23: PLZ-Postfach | E23: extern | F23: Nein | G23: Ja
A24: 1035 | B24: Wien | C24: W | D24: PLZ-Postfach | E24: extern | F24: Nein | G24: Ja
A25: 1036 | B25: Wien | C25: W | D25: PLZ-Postfach | E25: extern | F25: Nein | G25: Ja
A26: 1037 | B26: Wien | C26: W | D26: PLZ-Postfach | E26: extern | F26: Nein | G26: Ja
A27: 1038 | B27: Wien | C27: W | D27: InteressentenPLZ | E27: extern | F27: Nein | G27: Ja
A28: 1039 | B28: Wien | C28: W | D28: InteressentenPLZ | E28: extern | F28: Nein | G28: Ja
A29: 1040 | B29: Wien | C29: W | D29: PLZ-Adressierung | E29: extern | F29: Ja | G29: Ja
A30: 1041 | B30: Wien Postfach | C30: W | D30: PLZ-Postfach | E30: extern | F30: Nein | G30: Ja
A31: 1042 | B31: Wien | C31: W | D31: PLZ-Postfach | E31: extern | F31: Nein | G31: Ja
A32: 1043 | B32: Wien | C32: W | D32: PLZ-Postfach | E32: extern | F32: Nein | G32: Ja
A33: 1045 | B33: Wien | C33: W | D33: InteressentenPLZ | E33: extern | F33: Nein | G33: Ja
A34: 1050 | B34: Wien | C34: W | D34: PLZ-Adressierung | E34: extern | F34: Ja | G34: Ja
A35: 1051 | B35: Wien Postfach | C35: W | D35: PLZ-Postfach | E35: extern | F35: Nein | G35: Ja
A36: 1052 | B36: Wien | C36: W | D36: PLZ-Postfach | E36: extern | F36: Nein | G36: Ja
A37: 1053 | B37: Wien | C37: W | D37: PLZ-Postfach | E37: extern | F37: Nein | G37: Ja
A38: 1060 | B38: Wien | C38: W | D38: PLZ-Adressierung | E38: extern | F38: Ja | G38: Ja
A39: 1061 | B39: Wien Postfach | C39: W | D39: PLZ-Postfach | E39: extern | F39: Nein | G39: Ja
A40: 1062 | B40: Wien | C40: W | D40: PLZ-Postfach | E40: extern | F40: Nein | G40: Ja
A41: 1063 | B41: Wien-VÖPh | C41: W | D41: InteressentenPLZ | E41: extern | F41: Nein | G41: Ja
A42: 1070 | B42: Wien | C42: W | D42: PLZ-Adressierung | E42: extern | F42: Ja | G42: Ja
A43: 1071 | B43: Wien Postfach | C43: W | D43: PLZ-Postfach | E43: extern | F43: Nein | G43: Ja
A44: 1072 | B44: Wien | C44: W | D44: PLZ-Postfach | E44: extern | F44: Nein | G44: Ja
A45: 1080 | B45: Wien | C45: W | D45: PLZ-Adressierung | E45: extern | F45: Ja | G45: Ja
A46: 1081 | B46: Wien Postfach | C46: W | D46: PLZ-Postfach | E46: extern | F46: Nein | G46: Ja
A47: 1082 | B47: Wien | C47: W | D47: PLZ-Postfach | E47: extern | F47: Nein | G47: Ja
A48: 1090 | B48: Wien | C48: W | D48: PLZ-Adressierung | E48: extern | F48: Ja | G48: Ja
A49: 1091 | B49: Wien Postfach | C49: W | D49: PLZ-Postfach | E49: extern | F49: Nein | G49: Ja
A50: 1092 | B50: Wien | C50: W | D50: PLZ-Postfach | E50: extern | F50: Nein | G50: Ja
A51: 1093 | B51: Wien | C51: W | D51: PLZ-Postfach | E51: extern | F51: Nein | G51: Ja
A52: 1094 | B52: Wien | C52: W | D52: PLZ-Postfach | E52: extern | F52: Nein | G52: Ja
A53: 1095 | B53: Wien | C53: W | D53: PLZ-Postfach | E53: extern | F53: Nein | G53: Ja
A54: 1096 | B54: Wien | C54: W | D54: PLZ-Postfach | E54: extern | F54: Nein | G54: Ja
A55: 1097 | B55: Wien | C55: W | D55: PLZ-Postfach | E55: extern | F55: Nein | G55: Ja
A56: 1100 | B56: Wien | C56: W | D56: PLZ-Adressierung | E56: extern | F56: Ja | G56: Ja
A57: 1101 | B57: Wien Postfach | C57: W | D57: PLZ-Postfach | E57: extern | F57: Nein | G57: Ja
A58: 1102 | B58: Wien | C58: W | D58: PLZ-Postfach | E58: extern | F58: Nein | G58: Ja
A59: 1103 | B59: Wien | C59: W | D59: PLZ-Postfach | E59: extern | F59: Nein | G59: Ja
A60: 1104 | B60: Wien | C60: W | D60: PLZ-Postfach | E60: extern | F60: Nein | G60: Ja
A61: 1105 | B61: Wien | C61: W | D61: PLZ-Postfach | E61: extern | F61: Nein | G61: Ja
A62: 1106 | B62: Wien | C62: W | D62: PLZ-Postfach | E62: extern | F62: Nein | G62: Ja
A63: 1107 | B63: Wien | C63: W | D63: PLZ-Postfach | E63: extern | F63: Nein | G63: Ja
A64: 1108 | B64: Wien | C64: W | D64: PLZ-Postfach | E64: extern | F64: Nein | G64: Ja
A65: 1109 | B65: Wien | C65: W | D65: PLZ-Postfach | E65: extern | F65: Nein | G65: Ja
A66: 1110 | B66: Wien | C66: W | D66: PLZ-Adressierung | E66: extern | F66: Ja | G66: Ja
A67: 1111 | B67: Wien Postfach | C67: W | D67: PLZ-Postfach | E67: extern | F67: Nein | G67: Ja
A68: 1112 | B68: Wien | C68: W | D68: PLZ-Postfach | E68: extern | F68: Nein | G68: Ja
A69: 1113 | B69: Wien | C69: W | D69: PLZ-Postfach | E69: extern | F69: Nein | G69: Ja
A70: 1120 | B70: Wien | C70: W | D70: PLZ-Adressierung | E70: extern | F70: Ja | G70: Ja
A71: 1121 | B71: Wien Postfach | C71: W | D71: PLZ-Postfach | E71: extern | F71: Nein | G71: Ja
A72: 1122 | B72: Wien | C72: W | D72: PLZ-Postfach | E72: extern | F72: Nein | G72: Ja
A73: 1125 | B73: Wien | C73: W | D73: PLZ-Postfach | E73: extern | F73: Nein | G73: Ja
A74: 1126 | B74: Wien | C74: W | D74: PLZ-Postfach | E74: extern | F74: Nein | G74: Ja
A75: 1127 | B75: Wien | C75: W | D75: PLZ-Postfach | E75: extern | F75: Nein | G75: Ja
A76: 1130 | B76: Wien | C76: W | D76: PLZ-Adressierung | E76: extern | F76: Ja | G76: Ja
A77: 1131 | B77: Wien Postfach | C77: W | D77: PLZ-Postfach | E77: extern | F77: Nein | G77: Ja
A78: 1132 | B78: Wien | C78: W | D78: PLZ-Postfach | E78: extern | F78: Nein | G78: Ja
A79: 1133 | B79: Wien | C79: W | D79: PLZ-Postfach | E79: extern | F79: Nein | G79: Ja
A80: 1134 | B80: Wien | C80: W | D80: PLZ-Postfach | E80: extern | F80: Nein | G80: Ja
A81: 1136 | B81: Wien | C81: W | D81: InteressentenPLZ | E81: extern | F81: Nein | G81: Ja
A82: 1140 | B82: Wien | C82: W | D82: PLZ-Adressierung | E82: extern | F82: Ja | G82: Ja
A83: 1141 | B83: Wien Postfach | C83: W | D83: PLZ-Postfach | E83: extern | F83: Nein | G83: Ja
A84: 1142 | B84: Wien | C84: W | D84: PLZ-Postfach | E84: extern | F84: Nein | G84: Ja
A85: 1143 | B85: Wien | C85: W | D85: PLZ-Postfach | E85: extern | F85: Nein | G85: Ja
A86: 1144 | B86: Wien | C86: W | D86: PLZ-Postfach | E86: extern | F86: Nein | G86: Ja
A87: 1145 | B87: Wien | C87: W | D87: PLZ-Postfach | E87: extern | F87: Nein | G87: Ja
A88: 1147 | B88: Wien | C88: W | D88: PLZ-Postfach | E88: extern | F88: Nein | G88: Ja
A89: 1148 | B89: Wien | C89: W | D89: InteressentenPLZ | E89: extern | F89: Nein | G89: Ja
A90: 1150 | B90: Wien | C90: W | D90: PLZ-Adressierung | E90: extern | F90: Ja | G90: Ja
A91: 1151 | B91: Wien Postfach | C91: W | D91: PLZ-Postfach | E91: extern | F91: Nein | G91: Ja
A92: 1152 | B92: Wien | C92: W | D92: PLZ-Postfach | E92: extern | F92: Nein | G92: Ja
A93: 1153 | B93: Wien | C93: W | D93: PLZ-Postfach | E93: extern | F93: Nein | G93: Ja
A94: 1160 | B94: Wien | C94: W | D94: PLZ-Adressierung | E94: extern | F94: Ja | G94: Ja
A95: 1161 | B95: Wien Postfach | C95: W | D95: PLZ-Postfach | E95: extern | F95: Nein | G95: Ja
A96: 1163 | B96: Wien | C96: W | D96: PLZ-Postfach | E96: extern | F96: Nein | G96: Ja
A97: 1165 | B97: Wien | C97: W | D97: PLZ-Postfach | E97: extern | F97: Nein | G97: Ja
A98: 1166 | B98: Wien | C98: W | D98: PLZ-Postfach | E98: extern | F98: Nein | G98: Ja
A99: 1170 | B99: Wien | C99: W | D99: PLZ-Adressierung | E99: extern | F99: Ja | G99: Ja
A100: 1171 | B100: Wien Postfach | C100: W | D100: PLZ-Postfach | E100: extern | F100: Nein | G100: Ja
A101: 1172 | B101: Wien | C101: W | D101: PLZ-Postfach | E101: extern | F101: Nein | G101: Ja
A102: 1173 | B102: Wien | C102: W | D102: PLZ-Postfach | E102: extern | F102: Nein | G102: Ja
A103: 1180 | B103: Wien | C103: W | D103: PLZ-Adressierung | E103: extern | F103: Ja | G103: Ja
A104: 1181 | B104: Wien Postfach | C104: W | D104: PLZ-Postfach | E104: extern | F104: Nein | G104: Ja
A105: 1182 | B105: Wien | C105: W | D105: PLZ-Postfach | E105: extern | F105: Nein | G105: Ja
A106: 1183 | B106: Wien | C106: W | D106: PLZ-Postfach | E106: extern | F106: Nein | G106: Ja
A107: 1190 | B107: Wien | C107: W | D107: PLZ-Adressierung | E107: extern | F107: Ja | G107: Ja
A108: 1191 | B108: Wien Postfach | C108: W | D108: PLZ-Postfach | E108: extern | F108: Nein | G108: Ja
A109: 1192 | B109: Wien | C109: W | D109: PLZ-Postfach | E109: extern | F109: Nein | G109: Ja
A110: 1193 | B110: Wien | C110: W | D110: PLZ-Postfach | E110: extern | F110: Nein | G110: Ja
A111: 1194 | B111: Wien | C111: W | D111: PLZ-Postfach | E111: extern | F111: Nein | G111: Ja
A112: 1195 | B112: Wien | C112: W | D112: PLZ-Postfach | E112: extern | F112: Nein | G112: Ja
A113: 1196 | B113: Wien | C113: W | D113: PLZ-Postfach | E113: extern | F113: Nein | G113: Ja
A114: 1200 | B114: Wien | C114: W | D114: PLZ-Adressierung | E114: extern | F114: Ja | G114: Ja
A115: 1201 | B115: Wien Postfach | C115: W | D115: PLZ-Postfach | E115: extern | F115: Nein | G115: Ja
A116: 1202 | B116: Wien | C116: W | D116: PLZ-Postfach | E116: extern | F116: Nein | G116: Ja
A117: 1203 | B117: Wien | C117: W | D117: PLZ-Postfach | E117: extern | F117: Nein | G117: Ja
A118: 1204 | B118: Wien | C118: W | D118: PLZ-Postfach | E118: extern | F118: Nein | G118: Ja
A119: 1205 | B119: Wien | C119: W | D119: PLZ-Postfach | E119: extern | F119: Nein | G119: Ja
A120: 1206 | B120: Wien | C120: W | D120: PLZ-Postfach | E120: extern | F120: Nein | G120: Ja
A121: 1210 | B121: Wien | C121: W | D121: PLZ-Adressierung | E121: extern | F121: Ja | G121: Ja
A122: 1211 | B122: Wien Postfach | C122: W | D122: PLZ-Postfach | E122: extern | F122: Nein | G122: Ja
A123: 1212 | B123: Wien | C123: W | D123: PLZ-Postfach | E123: extern | F123: Nein | G123: Ja
A124: 1213 | B124: Wien | C124: W | D124: PLZ-Postfach | E124: extern | F124: Nein | G124: Ja
A125: 1214 | B125: Wien | C125: W | D125: PLZ-Postfach | E125: extern | F125: Nein | G125: Ja
A126: 1215 | B126: Wien | C126: W | D126: PLZ-Postfach | E126: extern | F126: Nein | G126: Ja
A127: 1216 | B127: Wien | C127: W | D127: PLZ-Postfach | E127: extern | F127: Nein | G127: Ja
A128: 1217 | B128: Wien | C128: W | D128: PLZ-Postfach | E128: extern | F128: Nein | G128: Ja
A129: 1218 | B129: Wien | C129: W | D129: PLZ-Postfach | E129: extern | F129: Nein | G129: Ja
A130: 1220 | B130: Wien | C130: W | D130: PLZ-Adressierung | E130: extern | F130: Ja | G130: Ja
A131: 1221 | B131: Wien Postfach | C131: W | D131: PLZ-Postfach | E131: extern | F131: Nein | G131: Ja
A132: 1222 | B132: Wien | C132: W | D132: PLZ-Postfach | E132: extern | F132: Nein | G132: Ja
A133: 1223 | B133: Wien | C133: W | D133: PLZ-Postfach | E133: extern | F133: Nein | G133: Ja
A134: 1224 | B134: Wien | C134: W | D134: PLZ-Postfach | E134: extern | F134: Nein | G134: Ja
A135: 1225 | B135: Wien | C135: W | D135: PLZ-Postfach | E135: extern | F135: Nein | G135: Ja
A136: 1226 | B136: Wien | C136: W | D136: PLZ-Postfach | E136: extern | F136: Nein | G136: Ja
A137: 1228 | B137: Wien | C137: W | D137: PLZ-Postfach | E137: extern | F137: Nein | G137: Ja
A138: 1229 | B138: Wien | C138: W | D138: PLZ-Postfach | E138: extern | F138: Nein | G138: Ja
A139: 1230 | B139: Wien | C139: W | D139: PLZ-Adressierung | E139: extern | F139: Ja | G139: Ja
A140: 1231 | B140: Wien Postfach | C140: W | D140: PLZ-Postfach | E140: extern | F140: Nein | G140: Ja
A141: 1232 | B141: Wien | C141: W | D141: PLZ-Postfach | E141: extern | F141: Nein | G141: Ja
A142: 1233 | B142: Wien | C142: W | D142: PLZ-Postfach | E142: extern | F142: Nein | G142: Ja
A143: 1234 | B143: Wien | C143: W | D143: PLZ-Postfach | E143: extern | F143: Nein | G143: Ja
A144: 1235 | B144: Wien | C144: W | D144: PLZ-Postfach | E144: extern | F144: Nein | G144: Ja
A145: 1236 | B145: Wien | C145: W | D145: PLZ-Postfach | E145: extern | F145: Nein | G145: Ja
A146: 1238 | B146: Wien | C146: W | D146: PLZ-Postfach | E146: extern | F146: Nein | G146: Ja
A147: 1239 | B147: Wien | C147: W | D147: PLZ-Postfach | E147: extern | F147: Nein | G147: Ja
A148: 1300 | B148: Wien-Flughafen | C148: W | D148: PLZ-Adressierung | E148: extern | F148: Ja | G148: Ja
A149: 1400 | B149: Wien-Vereinte Nationen | C149: W | D149: PLZ-Postfach | E149: extern | F149: Nein | G149: Ja
A150: 1402 | B150: Wien | C150: W | D150: PLZ-Postfach | E150: extern | F150: Nein | G150: Ja
A151: 1423 | B151: Wien | C151: W | D151: PLZ-Postfach | E151: extern | F151: Nein | G151: Ja
A152: 1500 | B152: UNDOF AUSBATT | C152: W | D152: FeldPLZ | E152: extern | F152: Nein | G152: Ja
A153: 1502 | B153: AUCON EUFOR | C153: W | D153: FeldPLZ | E153: extern | F153: Nein | G153: Ja
A154: 1503 | B154: AUCON KFOR | C154: W | D154: FeldPLZ | E154: extern | F154: Nein | G154: Ja
A155: 1600 | B155: Wien | C155: W | D155: InteressentenPLZ | E155: extern | F155: Nein | G155: Ja
A156: 2000 | B156: Stockerau | C156: N | D156: PLZ-Adressierung | E156: extern | F156: Ja | G156: Ja
A157: 2002 | B157: Großmugl | C157: N | D157: PLZ-Adressierung | E157: extern | F157: Ja | G157: Nein
A158: 2003 | B158: Leitzersdorf | C158: N | D158: PLZ-Adressierung | E158: extern | F158: Ja | G158: Nein
A159: 2004 | B159: Niederhollabrunn | C159: N | D159: PLZ-Adressierung | E159: extern | F159: Ja | G159: Nein
A160: 2011 | B160: Sierndorf | C160: N | D160: PLZ-Adressierung | E160: extern | F160: Ja | G160: Nein
A161: 2013 | B161: Göllersdorf | C161: N | D161: PLZ-Adressierung | E161: extern | F161: Ja | G161: Nein
A162: 2014 | B162: Breitenwaida | C162: N | D162: PLZ-Adressierung | E162: extern | F162: Ja | G162: Nein
A163: 2020 | B163: Hollabrunn | C163: N | D163: PLZ-Adressierung | E163: extern | F163: Ja | G163: Ja
A164: 2022 | B164: Immendorf | C164: N | D164: PLZ-Adressierung | E164: extern | F164: Ja | G164: Nein
A165: 2023 | B165: Nappersdorf | C165: N | D165: PLZ-Adressierung | E165: extern | F165: Ja | G165: Ja
A166: 2024 | B166: Mailberg | C166: N | D166: PLZ-Adressierung | E166: extern | F166: Ja | G166: Nein
A167: 2031 | B167: Eggendorf im Thale | C167: N | D167: PLZ-Adressierung | E167: extern | F167: Ja | G167: Nein
A168: 2032 | B168: Enzersdorf im Thale | C168: N | D168: PLZ-Adressierung | E168: extern | F168: Ja | G168: Nein
A169: 2033 | B169: Kammersdorf | C169: N | D169: PLZ-Adressierung | E169: extern | F169: Ja | G169: Nein
A170: 2034 | B170: Großharras | C170: N | D170: PLZ-Adressierung | E170: extern | F170: Ja | G170: Ja
A171: 2041 | B171: Wullersdorf | C171: N | D171: PLZ-Adressierung | E171: extern | F171: Ja | G171: Ja
A172: 2042 | B172: Guntersdorf | C172: N | D172: PLZ-Adressierung | E172: extern | F172: Ja | G172: Nein
A173: 2051 | B173: Zellerndorf | C173: N | D173: PLZ-Adressierung | E173: extern | F173: Ja | G173: Ja
A174: 2052 | B174: Pernersdorf-Pfaffendorf | C174: N | D174: PLZ-Adressierung | E174: extern | F174: Ja | G174: Nein
A175: 2053 | B175: Jetzelsdorf | C175: N | D175: PLZ-Adressierung | E175: extern | F175: Ja | G175: Nein
A176: 2054 | B176: Haugsdorf | C176: N | D176: PLZ-Adressierung | E176: extern | F176: Ja | G176: Ja
A177: 2061 | B177: Hadres | C177: N | D177: PLZ-Adressierung | E177: extern | F177: Ja | G177: Ja
A178: 2062 | B178: Seefeld-Großkadolz | C178: N | D178: PLZ-Adressierung | E178: extern | F178: Ja | G178: Nein
A179: 2063 | B179: Zwingendorf | C179: N | D179: PLZ-Adressierung | E179: extern | F179: Ja | G179: Nein
A180: 2064 | B180: Wulzeshofen | C180: N | D180: PLZ-Adressierung | E180: extern | F180: Ja | G180: Nein
A181: 2070 | B181: Retz | C181: N | D181: PLZ-Adressierung | E181: extern | F181: Ja | G181: Ja
A182: 2073 | B182: Schrattenthal | C182: N | D182: PLZ-Adressierung | E182: extern | F182: Ja | G182: Nein
A183: 2074 | B183: Unterretzbach | C183: N | D183: PLZ-Adressierung | E183: extern | F183: Ja | G183: Nein
A184: 2081 | B184: Niederfladnitz | C184: N | D184: PLZ-Adressierung | E184: extern | F184: Ja | G184: Nein
A185: 2082 | B185: Hardegg | C185: N | D185: PLZ-Adressierung | E185: extern | F185: Ja | G185: Nein
A186: 2083 | B186: Pleißing | C186: N | D186: PLZ-Adressierung | E186: extern | F186: Ja | G186: Nein
A187: 2084 | B187: Weitersfeld | C187: N | D187: PLZ-Adressierung | E187: extern | F187: Ja | G187: Ja
A188: 2091 | B188: Langau | C188: N | D188: PLZ-Adressierung | E188: extern | F188: Ja | G188: Nein
A189: 2092 | B189: Riegersburg | C189: N | D189: PLZ-Adressierung | E189: extern | F189: Ja | G189: Nein
A190: 2093 | B190: Geras | C190: N | D190: PLZ-Adressierung | E190: extern | F190: Ja | G190: Ja
A191: 2094 | B191: Zissersdorf | C191: N | D191: PLZ-Adressierung | E191: extern | F191: Ja | G191: Nein
A192: 2095 | B192: Drosendorf | C192: N | D192: PLZ-Adressierung | E192: extern | F192: Ja | G192: Nein
A193: 2100 | B193: Korneuburg | C193: N | D193: PLZ-Adressierung | E193: extern | F193: Ja | G193: Ja
A194: 2102 | B194: Bisamberg | C194: N | D194: PLZ-Adressierung | E194: extern | F194: Ja | G194: Ja
A195: 2103 | B195: Langenzersdorf | C195: N | D195: PLZ-Adressierung | E195: extern | F195: Ja | G195: Ja
A196: 2104 | B196: Spillern | C196: N | D196: PLZ-Adressierung | E196: extern | F196: Ja | G196: Ja
A197: 2105 | B197: Oberrohrbach | C197: N | D197: PLZ-Adressierung | E197: extern | F197: Ja | G197: Nein
A198: 2111 | B198: Rückersdorf-Harmannsdorf | C198: N | D198: PLZ-Adressierung | E198: extern | F198: Ja | G198: Nein
A199: 2112 | B199: Würnitz | C199: N | D199: PLZ-Adressierung | E199: extern | F199: Ja | G199: Nein
A200: 2113 | B200: Karnabrunn | C200: N | D200: PLZ-Adressierung | E200: extern | F200: Ja | G200: Nein
... 2260 more rows

Sheet Strompreis (hidden)
A1: Strompreisentwicklung am 17.03.09 | E1: http://www.e-control.at/portal/page/portal/ECONTROL_HOME/STROM/STROMPREISE/ENDVERBRAUCHERPREISE
Q3: Ökostrompreisentwicklung ( für Erzeuger) gemäß energie-Control vom 17.03.09
A35: Abgerufen am 17.03.09 von http://www.oekostrom.at/default.asp?id=60837&tt=OEKOAG_R8&hl=3
A36: Der oekostrom®-Preis beträgt brutto 21,5 ct/kWh mit Preisgarantie bis 31.12.2010 und ist österreichweit einheitlich.
A37: Für geschaltete Leistungen – Wärmepumpen, Warmwasserboiler, Nachtstrom – bieten wir unseren günstigen Tarif oekostrom®-click zu brutto 15,5, ct/kWh mit Preisgarantie bis 31.12.2010
B39: Jan. 02 | C39: 2002-02-01 | D39: Mar.02 | E39: 2002-04-01 | F39: May 02 | G39: 2002-06-01 | H39: 2002-07-01 | I39: 2002-08-01 | J39: 2002-09-01 | K39: Oct.02 | L39: 2002-11-01 | M39: Dec.02 | N39: Jan. 03 | O39: 2003-02-01 | P39: Mar.03 | Q39: 2003-04-01 | R39: May 03 | S39: 2003-06-01 | T39: 2003-07-01 | U39: 2003-08-01 | V39: 2003-09-01 | W39: Oct.03 | X39: 2003-11-01 | Y39: Dec.03 | Z39: Jan. 04 | AA39: 2004-02-01 | AB39: Mar.04 | AC39: 2004-04-01 | AD39: May 04 | AE39: 2004-06-01 | AF39: 2004-07-01 | AG39: 2004-08-01 | AH39: 2004-09-01 | AI39: Oct.04 | AJ39: 2004-11-01 | AK39: Dec. 04 | AL39: Jan. 05 | AM39: 2005-02-01 | AN39: Mar. 05 | AO39: 2005-04-01 | AP39: May 05 | AQ39: June 05 | AR39: July 05 | AS39: 2005-08-01 | AT39: 2005-09-01 | AU39: Oct. 05 | AV39: 2005-11-01 | AW39: Dec. 05 | AX39: Jan 06 | AY39: 2006-02-01 | AZ39: Mar. 06 | BA39: 2006-04-01 | BB39: May 06 | BC39: 2006-06-01 | BD39: 2006-07-01 | BE39: 2006-08-01 | BF39: 2006-09-01 | BG39: Oct. 06 | BH39: 2006-11-01 | BI39: Dec. 06 | BJ39: Jan. 07 | BK39: 2007-02-01 | BL39: Mar. 07 | BM39: 2007-04-01 | BN39: May 07 | BO39: June 07 | BP39: July 07 | BQ39: 2007-08-01 | BR39: 2007-09-01 | BS39: Oct. 07 | BT39: 2007-11-01 | BU39: 2007-12-01 | BV39: Jan. 08 | BW39: 2008-02-01 | BX39: March 08 | BY39: 2008-04-01 | BZ39: 2008-05-01 | CA39: 2008-06-01 | CB39: 2008-07-01 | CC39: 2008-08-01 | CD39: 2008-09-01 | CE39: 2008-10-01 | CF39: 2008-11-01 | CG39: 2008-12-01 | CH39: Jan. 09 | CI39: 2009-02-01
B40: 2002-01-01 | C40: 2002-02-01 | D40: 2002-03-01 | E40: 2002-04-01 | F40: 2002-05-01 | G40: 2002-06-01 | H40: 2002-07-01 | I40: 2002-08-01 | J40: 2002-09-01 | K40: 2002-10-01 | L40: 2002-11-01 | M40: 2002-12-01 | N40: 2003-01-01 | O40: 2003-02-01 | P40: 2003-03-01 | Q40: 2003-04-01 | R40: 2003-05-01 | S40: 2003-06-01 | T40: 2003-07-01 | U40: 2003-08-01 | V40: 2003-09-01 | W40: 2003-10-01 | X40: 2003-11-01 | Y40: 2003-12-01 | Z40: 2004-01-01 | AA40: 2004-02-01 | AB40: 2004-03-01 | AC40: 2004-04-01 | AD40: 2004-05-01 | AE40: 2004-06-01 | AF40: 2004-07-01 | AG40: 2004-08-01 | AH40: 2004-09-01 | AI40: 2004-10-01 | AJ40: 2004-11-01 | AK40: 2004-12-01 | AL40: 2005-01-01 | AM40: 2005-02-01 | AN40: 2005-03-01 | AO40: 2005-04-01 | AP40: 2005-05-01 | AQ40: 2005-06-01 | AR40: 2005-07-01 | AS40: 2005-08-01 | AT40: 2005-09-01 | AU40: 2005-10-01 | AV40: 2005-11-01 | AW40: 2005-12-01 | AX40: 2006-01-01 | AY40: 2006-02-01 | AZ40: 2006-03-01 | BA40: 2006-04-01 | BB40: 2006-05-01 | BC40: 2006-06-01 | BD40: 2006-07-01 | BE40: 2006-08-01 | BF40: 2006-09-01 | BG40: 2006-10-01 | BH40: 2006-11-01 | BI40: 2006-12-01 | BJ40: Jan 07 | BK40: 2007-02-01 | BL40: 2007-03-01 | BM40: 2007-04-01 | BN40: 2007-05-01 | BO40: 2007-06-01 | BP40: 2007-07-01 | BQ40: 2007-08-01 | BR40: 2007-09-01 | BS40: Oct. 07 | BT40: 2007-11-01 | BU40: 2007-12-01 | BV40: Jan. 08 | BW40: 2008-02-01 | BX40: 2008-03-01 | BY40: 2008-04-01 | BZ40: 2008-05-01 | CA40: 2008-06-01 | CB40: 2008-07-01 | CC40: 2008-08-01 | CD40: 2008-09-01 | CE40: 2008-10-01 | CF40: 2008-11-01 | CG40: Dec. 08 | CH40: Jan. 09 | CI40: 2009-02-01
A41: Stromnetz Steiermark GmbH | B41: 16.24171429 | C41: 16.24171429 | D41: 16.24171429 | E41: 16.24217143 | F41: 16.24217143 | G41: 16.24182857 | H41: 16.24182857 | I41: 16.24182857 | J41: 16.24182857 | K41: 16.41325714 | L41: 16.41325714 | M41: 16.41325714 | N41: 16.57097143 | O41: 16.51508571 | P41: 16.51508571 | Q41: 16.51508571 | R41: 16.39165714 | S41: 16.39165714 | T41: 16.39165714 | U41: 16.39165714 | V41: 16.39165714 | W41: 16.39165714 | X41: 16.39165714 | Y41: 16.39165714 | Z41: 16.38582857 | AA41: 16.38582857 | AB41: 16.38582857 | AC41: 16.50548571 | AD41: 16.50548571 | AE41: 16.50548571 | AF41: 16.50548571 | AG41: 16.50548571 | AH41: 16.50582857 | AI41: 16.50582857 | AJ41: 16.50582857 | AK41: 16.50582857 | AL41: 16.50582857 | AM41: 16.50582857 | AN41: 16.52125714 | AO41: 16.52125714 | AP41: 16.52125714 | AQ41: 15.25085714 | AR41: 15.62742857 | AS41: 15.62742857 | AT41: 15.62742857 | AU41: 15.62742857 | AV41: 15.62742857 | AW41: 15.62742857 | AX41: 15.29342857 | AY41: 15.80777143 | AZ41: 15.80777143 | BA41: 15.80777143 | BB41: 15.80777143 | BC41: 15.80777143 | BD41: 15.78342857 | BE41: 15.78342857 | BF41: 15.78342857 | BG41: 15.78342857 | BH41: 15.78342857 | BI41: 15.78342857 | BJ41: 16.996 | BK41: 16.996 | BL41: 16.996 | BM41: 16.996 | BN41: 16.996 | BO41: 16.996 | BP41: 17 | BQ41: 17 | BR41: 17 | BS41: 17 | BT41: 17 | BU41: 16.55 | BV41: 16.94 | BW41: 16.94 | BX41: 16.94 | BY41: 16.94 | BZ41: 16.94 | CA41: 17.66 | CB41: 17.66 | CC41: 17.66 | CD41: 17.66 | CE41: 17.66 | CF41: 17.56 | CG41: 17.56 | CH41: 17.15 | CI41: 16.42
A42: Energie AG | B42: 16.27714286 | C42: 16.27714286 | D42: 16.38114286 | E42: 16.38102857 | F42: 15.7128 | G42: 15.7128 | H42: 15.7128 | I42: 15.7128 | J42: 15.7128 | K42: 15.7128 | L42: 15.7128 | M42: 15.7128 | N42: 16.08754286 | O42: 16.0296 | P42: 16.0296 | Q42: 16.0296 | R42: 16.0296 | S42: 16.0296 | T42: 16.0296 | U42: 16.0296 | V42: 16.0296 | W42: 16.0296 | X42: 15.52628571 | Y42: 15.52628571 | Z42: 15.852 | AA42: 15.852 | AB42: 15.852 | AC42: 15.97165714 | AD42: 15.97165714 | AE42: 15.97165714 | AF42: 15.97165714 | AG42: 15.97165714 | AH42: 15.972 | AI42: 15.972 | AJ42: 15.972 | AK42: 15.972 | AL42: 15.972 | AM42: 15.972 | AN42: 15.98742857 | AO42: 15.98742857 | AP42: 15.98742857 | AQ42: 15.03942857 | AR42: 15.41588571 | AS42: 15.41588571 | AT42: 15.41588571 | AU42: 15.41588571 | AV42: 15.41588571 | AW42: 15.41588571 | AX42: 15.22571429 | AY42: 15.73988571 | AZ42: 15.73988571 | BA42: 15.73988571 | BB42: 15.73988571 | BC42: 15.73988571 | BD42: 15.696 | BE42: 15.696 | BF42: 15.696 | BG42: 15.696 | BH42: 15.696 | BI42: 15.696 | BJ42: 16.68542857 | BK42: 16.68542857 | BL42: 16.68542857 | BM42: 16.68542857 | BN42: 16.68542857 | BO42: 16.68542857 | BP42: 16.69 | BQ42: 16.69 | BR42: 16.69 | BS42: 16.69 | BT42: 16.69 | BU42: 16.24 | BV42: 16.61 | BW42: 16.61 | BX42: 16.61 | BY42: 16.61 | BZ42: 16.61 | CA42: 17.33 | CB42: 17.33 | CC42: 17.33 | CD42: 17.33 | CE42: 17.33 | CF42: 17.23 | CG42: 17.23 | CH42: 17.15 | CI42: 16.45
A43: Salzburg AG | B43: 15.75171429 | C43: 15.75171429 | D43: 15.74114286 | E43: 15.74125714 | F43: 15.74125714 | G43: 15.52148571 | H43: 15.52148571 | I43: 15.52148571 | J43: 15.41828571 | K43: 15.41828571 | L43: 15.41828571 | M43: 15.41828571 | N43: 15.28525714 | O43: 15.28525714 | P43: 15.56742857 | Q43: 15.79337143 | R43: 15.79337143 | S43: 15.79337143 | T43: 15.79337143 | U43: 15.79337143 | V43: 15.79337143 | W43: 15.79337143 | X43: 15.35417143 | Y43: 15.35417143 | Z43: 15.67988571 | AA43: 15.67988571 | AB43: 15.67988571 | AC43: 15.79954286 | AD43: 15.79954286 | AE43: 15.79954286 | AF43: 15.79954286 | AG43: 15.79954286 | AH43: 15.79988571 | AI43: 15.79988571 | AJ43: 15.79988571 | AK43: 15.79988571 | AL43: 15.79988571 | AM43: 15.07817143 | AN43: 15.07817143 | AO43: 15.07817143 | AP43: 15.07817143 | AQ43: 15.07817143 | AR43: 15.45462857 | AS43: 15.45462857 | AT43: 15.45462857 | AU43: 15.45462857 | AV43: 15.45462857 | AW43: 15.45462857 | AX43: 15.09714286 | AY43: 15.61131429 | AZ43: 15.61131429 | BA43: 15.61131429 | BB43: 15.61131429 | BC43: 15.61131429 | BD43: 15.55371429 | BE43: 15.55371429 | BF43: 15.55371429 | BG43: 15.55371429 | BH43: 15.55371429 | BI43: 15.55371429 | BJ43: 16.48342857 | BK43: 16.48342857 | BL43: 16.48342857 | BM43: 16.48342857 | BN43: 16.48342857 | BO43: 16.48342857 | BP43: 16.48 | BQ43: 16.48 | BR43: 16.48 | BS43: 16.48 | BT43: 16.48 | BU43: 16.04 | BV43: 16.41 | BW43: 16.41 | BX43: 16.41 | BY43: 16.41 | BZ43: 16.41 | CA43: 17.13 | CB43: 17.13 | CC43: 17.13 | CD43: 17.13 | CE43: 17.13 | CF43: 17.03 | CG43: 17.03 | CH43: 16.91 | CI43: 16.16
A44: KELAG Netz | B44: 14.73685714 | C44: 14.73685714 | D44: 14.73685714 | E44: 14.73668571 | F44: 14.73668571 | G44: 14.73668571 | H44: 14.73668571 | I44: 14.73668571 | J44: 14.73668571 | K44: 14.73668571 | L44: 14.73668571 | M44: 14.73668571 | N44: 15.40217143 | O44: 15.34422857 | P44: 15.34422857 | Q44: 15.34422857 | R44: 15.34422857 | S44: 15.34422857 | T44: 15.34422857 | U44: 15.34422857 | V44: 15.34422857 | W44: 15.34422857 | X44: 15.34937143 | Y44: 15.34937143 | Z44: 15.91954286 | AA44: 15.91954286 | AB44: 15.91954286 | AC44: 16.0392 | AD44: 16.0392 | AE44: 16.0392 | AF44: 16.0392 | AG44: 16.03028571 | AH44: 16.03062857 | AI44: 15.48994286 | AJ44: 15.72788571 | AK44: 15.72788571 | AL44: 15.72788571 | AM44: 15.5214 | AN44: 15.21531429 | AO44: 15.25611429 | AP44: 15.25611429 | AQ44: 15.25611429 | AR44: 15.12514286 | AS44: 15.12514286 | AT44: 15.12514286 | AU44: 15.12514286 | AV44: 15.12514286 | AW44: 15.12514286 | AX44: 15.00342857 | AY44: 15.51771429 | AZ44: 15.51771429 | BA44: 15.51771429 | BB44: 15.51771429 | BC44: 15.51771429 | BD44: 15.47691429 | BE44: 15.47691429 | BF44: 15.47691429 | BG44: 15.47691429 | BH44: 15.47691429 | BI44: 15.47691429 | BJ44: 16.72285714 | BK44: 16.72285714 | BL44: 16.72285714 | BM44: 16.72285714 | BN44: 16.72285714 | BO44: 16.72285714 | BP44: 16.72 | BQ44: 16.72 | BR44: 16.72 | BS44: 16.72 | BT44: 16.72 | BU44: 16.28 | BV44: 16.74 | BW44: 16.74 | BX44: 16.74 | BY44: 16.74 | BZ44: 16.74 | CA44: 17.46 | CB44: 17.46 | CC44: 17.46 | CD44: 17.46 | CE44: 17.46 | CF44: 17.35 | CG44: 17.35 | CH44: 17.46 | CI44: 16.7
A45: BEWAG | B45: 17.00228571 | C45: 17.00228571 | D45: 17.00228571 | E45: 15.98811429 | F45: 15.98811429 | G45: 15.98811429 | H45: 15.98811429 | I45: 16.33371429 | J45: 16.33371429 | K45: 16.33371429 | L45: 16.33371429 | M45: 16.33371429 | N45: 16.57645714 | O45: 16.51851429 | P45: 16.51851429 | Q45: 16.51851429 | R45: 16.51851429 | S45: 16.51851429 | T45: 16.51851429 | U45: 16.51851429 | V45: 16.51851429 | W45: 16.51851429 | X45: 15.91988571 | Y45: 15.91988571 | Z45: 16.43485714 | AA45: 16.43485714 | AB45: 16.43485714 | AC45: 16.55451429 | AD45: 16.55451429 | AE45: 16.55451429 | AF45: 16.55451429 | AG45: 16.55451429 | AH45: 16.55485714 | AI45: 16.55485714 | AJ45: 16.55485714 | AK45: 16.55485714 | AL45: 16.55485714 | AM45: 14.69245714 | AN45: 14.69245714 | AO45: 14.69245714 | AP45: 14.69245714 | AQ45: 14.69245714 | AR45: 15.06891429 | AS45: 15.06891429 | AT45: 15.06891429 | AU45: 15.06891429 | AV45: 15.06891429 | AW45: 15.06891429 | AX45: 14.732 | AY45: 15.24651429 | AZ45: 15.24651429 | BA45: 15.24651429 | BB45: 15.24651429 | BC45: 15.24651429 | BD45: 15.13577143 | BE45: 15.13577143 | BF45: 15.13577143 | BG45: 15.13577143 | BH45: 15.13577143 | BI45: 15.13577143 | BJ45: 16.19257143 | BK45: 16.19257143 | BL45: 16.19257143 | BM45: 16.19257143 | BN45: 16.19257143 | BO45: 16.19257143 | BP45: 16.19 | BQ45: 16.19 | BR45: 16.19 | BS45: 16.19 | BT45: 16.19 | BU45: 15.75 | BV45: 16.14 | BW45: 16.14 | BX45: 16.14 | BY45: 16.14 | BZ45: 16.14 | CA45: 16.86 | CB45: 16.86 | CC45: 16.86 | CD45: 16.86 | CE45: 16.86 | CF45: 16.86 | CG45: 16.94 | CH45: 16.85 | CI45: 16.85
A46: Linz Strom | B46: 15.44 | C46: 15.54371429 | D46: 15.54371429 | E46: 15.54377143 | F46: 14.70514286 | G46: 14.70514286 | H46: 14.70514286 | I46: 14.70514286 | J46: 14.70514286 | K46: 14.70514286 | L46: 14.70514286 | M46: 14.70514286 | N46: 15.07988571 | O46: 15.02194286 | P46: 15.02194286 | Q46: 15.02194286 | R46: 15.02194286 | S46: 15.02194286 | T46: 15.02194286 | U46: 15.02194286 | V46: 15.02194286 | W46: 15.02194286 | X46: 14.77131429 | Y46: 14.77131429 | Z46: 15.17931429 | AA46: 15.17931429 | AB46: 15.17931429 | AC46: 15.29897143 | AD46: 15.29897143 | AE46: 15.29897143 | AF46: 15.29897143 | AG46: 15.29897143 | AH46: 15.29931429 | AI46: 15.29931429 | AJ46: 15.29931429 | AK46: 15.29931429 | AL46: 15.29931429 | AM46: 15.29931429 | AN46: 15.31474286 | AO46: 15.31474286 | AP46: 15.31474286 | AQ46: 14.37657143 | AR46: 14.75314286 | AS46: 14.75314286 | AT46: 14.75314286 | AU46: 14.75314286 | AV46: 14.75314286 | AW46: 14.75314286 | AX46: 14.408 | AY46: 15.01611429 | AZ46: 15.01611429 | BA46: 15.01611429 | BB46: 15.01611429 | BC46: 15.01611429 | BD46: 14.99657143 | BE46: 14.99657143 | BF46: 14.99657143 | BG46: 14.99657143 | BH46: 14.99657143 | BI46: 14.99657143 | BJ46: 16.126 | BK46: 16.126 | BL46: 16.126 | BM46: 16.126 | BN46: 16.126 | BO46: 16.126 | BP46: 16.13 | BQ46: 16.13 | BR46: 16.13 | BS46: 16.13 | BT46: 16.13 | BU46: 15.68 | BV46: 15.92 | BW46: 15.92 | BX46: 15.92 | BY46: 15.92 | BZ46: 15.92 | CA46: 16.64 | CB46: 16.64 | CC46: 16.64 | CD46: 16.64 | CE46: 16.64 | CF46: 16.54 | CG46: 16.54 | CH46: 16.29 | CI46: 15.51
A47: VKW | B47: 12.88142857 | C47: 12.88142857 | D47: 12.88171429 | E47: 12.88182857 | F47: 12.88182857 | G47: 12.88182857 | H47: 12.768 | I47: 12.768 | J47: 12.80434286 | K47: 12.80434286 | L47: 12.80434286 | M47: 12.80434286 | N47: 13.21405714 | O47: 13.10468571 | P47: 13.10468571 | Q47: 13.10468571 | R47: 13.10468571 | S47: 13.10468571 | T47: 13.10468571 | U47: 13.10468571 | V47: 13.10468571 | W47: 13.10468571 | X47: 13.12011429 | Y47: 13.12011429 | Z47: 13.74 | AA47: 13.74 | AB47: 13.74 | AC47: 13.85965714 | AD47: 13.85965714 | AE47: 13.85965714 | AF47: 13.85965714 | AG47: 13.85965714 | AH47: 13.86 | AI47: 13.86 | AJ47: 13.86 | AK47: 13.86 | AL47: 13.86 | AM47: 13.86 | AN47: 13.87542857 | AO47: 13.3944 | AP47: 13.3944 | AQ47: 13.3944 | AR47: 13.46982857 | AS47: 13.46982857 | AT47: 13.46982857 | AU47: 13.46982857 | AV47: 13.46982857 | AW47: 13.46982857 | AX47: 14.196 | AY47: 14.71028571 | AZ47: 14.71028571 | BA47: 14.71028571 | BB47: 14.71028571 | BC47: 14.71028571 | BD47: 14.68422857 | BE47: 14.68422857 | BF47: 14.68422857 | BG47: 14.68422857 | BH47: 14.68422857 | BI47: 14.68422857 | BJ47: 16.03371429 | BK47: 16.03371429 | BL47: 16.03371429 | BM47: 16.03371429 | BN47: 16.03371429 | BO47: 16.03371429 | BP47: 16.03 | BQ47: 16.03 | BR47: 16.03 | BS47: 16.03 | BT47: 16.03 | BU47: 15.59 | BV47: 16.02 | BW47: 16.02 | BX47: 16.02 | BY47: 16.02 | BZ47: 16.02 | CA47: 16.74 | CB47: 16.74 | CC47: 16.74 | CD47: 16.74 | CE47: 16.74 | CF47: 16.64 | CG47: 16.64 | CH47: 16.71 | CI47: 15.92
A48: EVN | B48: 14.32542857 | C48: 14.32542857 | D48: 14.32571429 | E48: 14.3256 | F48: 14.3256 | G48: 13.98582857 | H48: 13.98582857 | I48: 13.98582857 | J48: 14.06982857 | K48: 14.06982857 | L48: 14.06982857 | M48: 14.06982857 | N48: 14.51657143 | O48: 14.45862857 | P48: 14.45862857 | Q48: 14.45862857 | R48: 14.45862857 | S48: 14.45862857 | T48: 14.45862857 | U48: 14.45862857 | V48: 14.45862857 | W48: 14.45862857 | X48: 14.04205714 | Y48: 14.04205714 | Z48: 14.36777143 | AA48: 14.36777143 | AB48: 14.36777143 | AC48: 14.48742857 | AD48: 14.48742857 | AE48: 14.48742857 | AF48: 14.48742857 | AG48: 14.48742857 | AH48: 14.48777143 | AI48: 14.48777143 | AJ48: 14.48777143 | AK48: 14.48777143 | AL48: 14.48777143 | AM48: 14.48777143 | AN48: 14.5032 | AO48: 13.94777143 | AP48: 13.94777143 | AQ48: 13.94777143 | AR48: 14.32422857 | AS48: 14.32422857 | AT48: 14.32422857 | AU48: 14.32422857 | AV48: 14.32422857 | AW48: 14.32422857 | AX48: 14.15485714 | AY48: 14.79051429 | AZ48: 14.79051429 | BA48: 14.79051429 | BB48: 14.79051429 | BC48: 14.79051429 | BD48: 14.73942857 | BE48: 14.73942857 | BF48: 14.73942857 | BG48: 14.73942857 | BH48: 14.73942857 | BI48: 14.73942857 | BJ48: 15.85914286 | BK48: 15.85914286 | BL48: 15.85914286 | BM48: 15.85914286 | BN48: 15.85914286 | BO48: 15.85914286 | BP48: 15.86 | BQ48: 15.86 | BR48: 15.86 | BS48: 15.86 | BT48: 15.86 | BU48: 15.41 | BV48: 15.8 | BW48: 15.8 | BX48: 15.8 | BY48: 15.8 | BZ48: 15.8 | CA48: 16.52 | CB48: 16.52 | CC48: 16.52 | CD48: 16.52 | CE48: 16.52 | CF48: 16.6 | CG48: 16.69 | CH48: 16.75 | CI48: 16.75
A49: Wien Energie Stromnetz GmbH | B49: 14.75657143 | C49: 14.75657143 | D49: 14.75657143 | E49: 14.09108571 | F49: 14.09108571 | G49: 14.09108571 | H49: 14.09108571 | I49: 14.09108571 | J49: 14.09074286 | K49: 14.09074286 | L49: 14.09074286 | M49: 14.09074286 | N49: 13.76365714 | O49: 13.70571429 | P49: 13.70571429 | Q49: 13.70571429 | R49: 13.70571429 | S49: 13.70571429 | T49: 13.70571429 | U49: 13.70571429 | V49: 13.70571429 | W49: 13.70571429 | X49: 13.3776 | Y49: 13.3776 | Z49: 13.70331429 | AA49: 13.70331429 | AB49: 13.70331429 | AC49: 13.82297143 | AD49: 13.82297143 | AE49: 13.82297143 | AF49: 13.82297143 | AG49: 13.82297143 | AH49: 13.82331429 | AI49: 13.82331429 | AJ49: 13.82331429 | AK49: 13.82331429 | AL49: 13.82331429 | AM49: 13.82331429 | AN49: 13.83874286 | AO49: 13.33748571 | AP49: 13.33748571 | AQ49: 13.33748571 | AR49: 13.71394286 | AS49: 13.71394286 | AT49: 13.71394286 | AU49: 13.71394286 | AV49: 13.71394286 | AW49: 13.71394286 | AX49: 13.67571429 | AY49: 14.18982857 | AZ49: 14.18982857 | BA49: 14.18982857 | BB49: 14.18982857 | BC49: 14.18982857 | BD49: 14.12777143 | BE49: 14.12777143 | BF49: 14.12777143 | BG49: 14.12777143 | BH49: 14.12777143 | BI49: 14.12777143 | BJ49: 15.32114286 | BK49: 15.32114286 | BL49: 15.32114286 | BM49: 15.32114286 | BN49: 15.32114286 | BO49: 15.32114286 | BP49: 15.32 | BQ49: 15.32 | BR49: 15.32 | BS49: 15.32 | BT49: 15.32 | BU49: 14.89 | BV49: 15.5 | BW49: 15.5 | BX49: 15.5 | BY49: 15.5 | BZ49: 15.5 | CA49: 16.22 | CB49: 16.22 | CC49: 16.22 | CD49: 16.22 | CE49: 16.22 | CF49: 16.3 | CG49: 16.3 | CH49: 16.4 | CI49: 16.58
A50: Stromnetz Graz GmbH & Co KG | B50: 14.26485714 | C50: 14.26485714 | D50: 14.26485714 | E50: 14.26525714 | F50: 14.26525714 | G50: 14.26525714 | H50: 14.26525714 | I50: 14.26525714 | J50: 14.26525714 | K50: 14.43668571 | L50: 14.43668571 | M50: 14.43668571 | N50: 14.59645714 | O50: 14.53851429 | P50: 14.53851429 | Q50: 14.53851429 | R50: 14.53851429 | S50: 14.53851429 | T50: 14.53851429 | U50: 14.53851429 | V50: 14.53851429 | W50: 14.53851429 | X50: 14.53851429 | Y50: 14.53851429 | Z50: 14.11371429 | AA50: 14.11371429 | AB50: 14.11371429 | AC50: 14.23337143 | AD50: 14.23337143 | AE50: 14.23337143 | AF50: 14.23337143 | AG50: 14.23337143 | AH50: 14.23371429 | AI50: 14.23371429 | AJ50: 14.23371429 | AK50: 14.23371429 | AL50: 14.23371429 | AM50: 14.23371429 | AN50: 14.24914286 | AO50: 14.24914286 | AP50: 14.24914286 | AQ50: 13.37628571 | AR50: 13.75268571 | AS50: 13.75268571 | AT50: 13.75268571 | AU50: 13.75268571 | AV50: 13.75268571 | AW50: 13.75268571 | AX50: 13.48342857 | AY50: 13.99782857 | AZ50: 13.99782857 | BA50: 13.99782857 | BB50: 13.99782857 | BC50: 13.99782857 | BD50: 13.96182857 | BE50: 13.96182857 | BF50: 13.96182857 | BG50: 13.96182857 | BH50: 13.96182857 | BI50: 13.96182857 | BJ50: 15.06142857 | BK50: 15.06142857 | BL50: 15.06142857 | BM50: 15.06142857 | BN50: 15.06142857 | BO50: 15.06142857 | BP50: 15.06 | BQ50: 15.06 | BR50: 15.06 | BS50: 15.06 | BT50: 15.06 | BU50: 14.62 | BV50: 14.93 | BW50: 14.93 | BX50: 14.93 | BY50: 14.93 | BZ50: 14.93 | CA50: 15.65 | CB50: 15.65 | CC50: 15.65 | CD50: 15.65 | CE50: 15.65 | CF50: 15.55 | CG50: 15.55 | CH50: 15.49 | CI50: 14.83
A51: Tiwag | B51: 12.68371429 | C51: 12.68371429 | D51: 12.68371429 | E51: 12.68365714 | F51: 12.68365714 | G51: 12.68365714 | H51: 12.68365714 | I51: 12.68365714 | J51: 12.68365714 | K51: 12.57737143 | L51: 12.57737143 | M51: 12.57737143 | N51: 13.13211429 | O51: 13.07417143 | P51: 13.07417143 | Q51: 13.07417143 | R51: 13.07417143 | S51: 13.07417143 | T51: 13.07417143 | U51: 13.07417143 | V51: 13.07417143 | W51: 13.07417143 | X51: 12.45771429 | Y51: 12.45771429 | Z51: 13.77085714 | AA51: 13.77085714 | AB51: 13.77085714 | AC51: 13.89051429 | AD51: 13.89051429 | AE51: 13.89051429 | AF51: 13.89051429 | AG51: 13.89051429 | AH51: 13.89085714 | AI51: 13.89085714 | AJ51: 13.89085714 | AK51: 13.82365714 | AL51: 13.82365714 | AM51: 13.82365714 | AN51: 13.90628571 | AO51: 13.52194286 | AP51: 13.52194286 | AQ51: 13.52194286 | AR51: 13.8984 | AS51: 13.8984 | AT51: 13.8984 | AU51: 13.8984 | AV51: 13.8984 | AW51: 13.8984 | AX51: 13.46742857 | AY51: 13.98171429 | AZ51: 13.98171429 | BA51: 13.98171429 | BB51: 13.98171429 | BC51: 13.98171429 | BD51: 13.49794286 | BE51: 13.49794286 | BF51: 13.49794286 | BG51: 13.49794286 | BH51: 13.49794286 | BI51: 13.49794286 | BJ51: 15.276 | BK51: 15.276 | BL51: 15.276 | BM51: 15.276 | BN51: 15.276 | BO51: 15.276 | BP51: 15.28 | BQ51: 15.28 | BR51: 15.28 | BS51: 15.28 | BT51: 15.28 | BU51: 14.83 | BV51: 15.28 | BW51: 15.28 | BX51: 15.28 | BY51: 15.28 | BZ51: 15.28 | CA51: 15.8 | CB51: 15.8 | CC51: 15.8 | CD51: 15.8 | CE51: 15.8 | CF51: 15.8 | CG51: 15.8 | CH51: 15.9 | CI51: 15.2
A52: IKB | B52: 12.69228571 | C52: 12.69228571 | D52: 12.69228571 | E52: 12.69222857 | F52: 12.69222857 | G52: 12.69222857 | H52: 12.69222857 | I52: 12.69222857 | J52: 12.69222857 | K52: 12.40457143 | L52: 12.40457143 | M52: 12.40457143 | N52: 12.91817143 | O52: 13.05291429 | P52: 13.05291429 | Q52: 13.05291429 | R52: 13.05291429 | S52: 13.05291429 | T52: 13.05291429 | U52: 13.05291429 | V52: 13.05291429 | W52: 13.05291429 | X52: 12.79302857 | Y52: 12.79302857 | Z52: 13.11874286 | AA52: 13.11908571 | AB52: 13.11908571 | AC52: 13.23874286 | AD52: 13.23874286 | AE52: 13.23874286 | AF52: 13.23874286 | AG52: 13.23874286 | AH52: 13.23908571 | AI52: 13.17188571 | AJ52: 13.17188571 | AK52: 13.17188571 | AL52: 13.17188571 | AM52: 13.17188571 | AN52: 13.25451429 | AO52: 12.89245714 | AP52: 12.89245714 | AQ52: 12.89245714 | AR52: 13.51508571 | AS52: 13.51508571 | AT52: 13.51508571 | AU52: 13.51508571 | AV52: 13.51508571 | AW52: 13.51508571 | AX52: 13.324 | AY52: 13.50891429 | AZ52: 13.50891429 | BA52: 13.50891429 | BB52: 13.50891429 | BC52: 13.50891429 | BD52: 13.96251429 | BE52: 13.96251429 | BF52: 13.96251429 | BG52: 13.96251429 | BH52: 13.96251429 | BI52: 13.96251429 | BJ52: 14.77 | BK52: 14.77 | BL52: 14.77 | BM52: 14.77 | BN52: 14.77 | BO52: 14.77 | BP52: 14.77 | BQ52: 14.77 | BR52: 14.77 | BS52: 14.77 | BT52: 14.77 | BU52: 14.33 | BV52: 14.69 | BW52: 14.69 | BX52: 14.69 | BY52: 14.69 | BZ52: 14.69 | CA52: 15.41 | CB52: 15.41 | CC52: 15.41 | CD52: 15.41 | CE52: 15.41 | CF52: 15.49 | CG52: 15.49 | CH52: 15.53 | CI52: 16.05
A53: Energie Klagenfurt GmbH | B53: 12.48342857 | C53: 12.48342857 | D53: 12.48342857 | E53: 12.48342857 | F53: 12.48342857 | G53: 12.48342857 | H53: 12.48342857 | I53: 12.48342857 | J53: 12.48342857 | K53: 12.53451429 | L53: 12.53451429 | M53: 12.53451429 | N53: 13.03851429 | O53: 12.98057143 | P53: 12.98057143 | Q53: 12.98057143 | R53: 12.98057143 | S53: 12.98057143 | T53: 12.98057143 | U53: 12.98057143 | V53: 12.98057143 | W53: 12.98057143 | X53: 12.61542857 | Y53: 12.61542857 | Z53: 12.94114286 | AA53: 12.94114286 | AB53: 12.94114286 | AC53: 13.0608 | AD53: 13.0608 | AE53: 13.0608 | AF53: 13.0608 | AG53: 13.0608 | AH53: 13.06114286 | AI53: 12.99394286 | AJ53: 12.99394286 | AK53: 12.99394286 | AL53: 12.99394286 | AM53: 12.6528 | AN53: 12.6528 | AO53: 12.6528 | AP53: 12.6528 | AQ53: 12.6528 | AR53: 13.02925714 | AS53: 13.02925714 | AT53: 13.02925714 | AU53: 13.02925714 | AV53: 13.02925714 | AW53: 13.02925714 | AX53: 12.91971429 | AY53: 13.43382857 | AZ53: 13.43382857 | BA53: 13.43382857 | BB53: 13.43382857 | BC53: 13.43382857 | BD53: 13.40228571 | BE53: 13.40228571 | BF53: 13.40228571 | BG53: 13.40228571 | BH53: 13.40228571 | BI53: 13.40228571 | BJ53: 13.89 | BK53: 13.89 | BL53: 13.89 | BM53: 13.89 | BN53: 13.89 | BO53: 13.89 | BP53: 13.89 | BQ53: 13.89 | BR53: 13.89 | BS53: 13.89 | BT53: 13.89 | BU53: 13.44 | BV53: 13.77 | BW53: 13.77 | BX53: 13.77 | BY53: 13.77 | BZ53: 13.77 | CA53: 14.49 | CB53: 14.49 | CC53: 14.49 | CD53: 14.49 | CE53: 14.49 | CF53: 14.57 | CG53: 14.57 | CH53: 14.76 | CI53: 14.76
A54: STEG | B54: 15.60514286 | C54: 15.60514286 | D54: 15.60514286 | E54: 15.60548571 | F54: 15.60548571 | G54: 15.60548571 | H54: 15.60548571 | I54: 15.60548571 | J54: 15.60514286 | K54: 15.77657143 | L54: 15.77657143 | M54: 15.77657143 | N54: 15.93634286 | O54: 15.8784 | P54: 15.8784 | Q54: 15.8784 | R54: 15.8784 | S54: 15.8784 | T54: 15.8784 | U54: 15.8784 | V54: 15.8784 | W54: 15.8784 | X54: 15.8784 | Y54: 15.8784
B55: =AVERAGE(B41:B54) -> 14.65304082 | C55: 14.66044898 | D55: 14.66716327 | E55: 14.54725714 | F55: 14.43962449 | G55: 14.39963265 | H55: 14.39150204 | I55: 14.41618776 | J55: 14.41736327 | K55: 14.42960816 | L55: 14.42960816 | M55: 14.42960816 | N55: 14.72272653 | O55: 14.67915918 | P55: 14.69931429 | Q55: 14.71545306 | R55: 14.70663673 | S55: 14.70663673 | T55: 14.70663673 | U55: 14.70663673 | V55: 14.70663673 | W55: 14.70663673 | X55: 14.43825306 | Y55: 14.43825306 | Z55: 14.70822857 | AA55: 14.70825495 | AB55: 14.70825495 | AC55: 14.82791209 | AD55: 14.82791209 | AE55: 14.82791209 | AF55: 14.82791209 | AG55: 14.82722637 | AH55: =AVERAGE(AH41:AH54) -> 14.82756923 | AI55: 14.77563956 | AJ55: 14.79394286 | AK55: 14.78877363 | AL55: 14.78877363 | AM55: 14.54787033 | AN55: 14.54534505 | AO55: 14.37278242 | AP55: 14.37278242 | AQ55: 14.06282637 | AR55: 14.39604396 | AS55: 14.39604396 | AT55: 14.39604396 | AU55: 14.39604396 | AV55: 14.39604396 | AW55: 14.39604396 | AX55: 14.2292967 | AY55: 14.73478681 | AZ55: 14.73478681 | BA55: 14.73478681 | BB55: 14.73478681 | BC55: 14.73478681 | BD55: 14.69372308 | BE55: 14.69372308 | BF55: 14.69372308 | BG55: 14.69372308 | BH55: 14.69372308 | BI55: 14.69372308 | BJ55: 15.80136264 | BK55: 15.80136264 | BL55: 15.80136264 | BM55: 15.80136264 | BN55: =AVERAGE(BN41:BN54) -> 15.80136264 | BO55: 15.80136264 | BP55: 15.80153846 | BQ55: 15.80153846 | BR55: 15.80153846 | BS55: 15.80153846 | BT55: 15.80153846 | BU55: 15.35769231 | BV55: 15.75 | BW55: 15.75 | BX55: 15.75 | BY55: 15.75 | BZ55: 15.75 | CA55: 16.45461538 | CB55: 16.45461538 | CC55: 16.45461538 | CD55: 16.45461538 | CE55: 16.45461538 | CF55: 16.42461538 | CG55: 16.43769231 | CH55: 16.41153846 | CI55: 16.01384615
B94: Derzeit durchschnittlicher Strompreis: | G94: =CI55 -> 16.01384615 | H94: cent/kWh
B95: Derzeit Ökostrompreis (ökostrom-ag): | G95: 21.5 | H95: cent/kWh
B96: Einspeisepreis für Ökostrom: | G96: 5.59 | H96: cent/kWh
A102: =$B$55*(1+(D102/100))^7 -> 16.26260281 | D102: 1.5
A103: =Eingabe!#REF!*(1+(Eingabe!$G$75/100))^Berechnungen!#REF! -> 
A104: =Eingabe!#REF!*(1+(Eingabe!$G$75/100))^Berechnungen!#REF! -> 
A105: =Eingabe!#REF!*(1+(Eingabe!$G$75/100))^Berechnungen!#REF! -> 
A106: =Eingabe!#REF!*(1+(Eingabe!$G$75/100))^Berechnungen!#REF! -> 
A107: =Eingabe!#REF!*(1+(Eingabe!$G$75/100))^Berechnungen!#REF! -> 
A108: =Eingabe!#REF!*(1+(Eingabe!$G$75/100))^Berechnungen!#REF! -> 
A109: =Eingabe!#REF!*(1+(Eingabe!$G$75/100))^Berechnungen!#REF! -> 
A110: =Eingabe!#REF!*(1+(Eingabe!$G$75/100))^Berechnungen!#REF! -> 
A111: =Eingabe!#REF!*(1+(Eingabe!$G$75/100))^Berechnungen!#REF! -> 
A112: =Eingabe!#REF!*(1+(Eingabe!$G$75/100))^Berechnungen!#REF! -> 
A113: =Eingabe!#REF!*(1+(Eingabe!$G$75/100))^Berechnungen!#REF! -> 
A114: =Eingabe!#REF!*(1+(Eingabe!$G$75/100))^Berechnungen!#REF! -> 
A115: =Eingabe!#REF!*(1+(Eingabe!$G$75/100))^Berechnungen!#REF! -> 
A116: =Eingabe!#REF!*(1+(Eingabe!$G$75/100))^Berechnungen!#REF! -> 
A117: =Eingabe!#REF!*(1+(Eingabe!$G$75/100))^Berechnungen!#REF! -> 
A118: =Eingabe!#REF!*(1+(Eingabe!$G$75/100))^Berechnungen!#REF! -> 
A119: =Eingabe!#REF!*(1+(Eingabe!$G$75/100))^Berechnungen!#REF! -> 
A120: =Eingabe!#REF!*(1+(Eingabe!$G$75/100))^Berechnungen!#REF! -> 
A121: =Eingabe!#REF!*(1+(Eingabe!$G$75/100))^Berechnungen!#REF! -> 
A122: =Eingabe!#REF!*(1+(Eingabe!$G$75/100))^Berechnungen!#REF! -> 
A123: =Eingabe!#REF!*(1+(Eingabe!$G$75/100))^Berechnungen!#REF! -> 
A124: =Eingabe!#REF!*(1+(Eingabe!$G$75/100))^Berechnungen!#REF! -> 
A125: =Eingabe!#REF!*(1+(Eingabe!$G$75/100))^Berechnungen!#REF! -> 
A126: =Eingabe!#REF!*(1+(Eingabe!$G$75/100))^Berechnungen!#REF! -> 

Sheet Motorbez. Versicherungssteuer (hidden)
A1: Berechung NEU | E1: Motorbezogene Versicherungssteuer NEU | L1: Werte ab 01.10.2020 | R1: Jahr | T1: Jahr der Anschaffung | U1: CO2 Grenzwert | V1: Leistung Grenzwert
A2: jährliche | C2: =(IF((Eingabe!M17-$O$5)>5,(Eingabe!M17-$O$5)*$M$5,5*$M$5)+IF((Eingabe!M22-$O$3)>5,(Eingabe!M22-$O$3)*$M$3,5*$M$3))*12 -> 509.76 | E2: =VLOOKUP(Eingabe!C46,'Motorbez. Versicherungssteuer'!A2:C5,3,FALSE) -> 509.76 | T2: [a] | U2: [g/km] | V2: [kW]
A3: ½-jährliche | C3: =(IF((Eingabe!M17-$O$5)>5,(Eingabe!M17-$O$5)*$M$5,5*$M$5)+IF((Eingabe!M22-$O$3)>5,(Eingabe!M22-$O$3)*$M$3,5*$M$3))*6 -> 254.88 | L3: CO2 | M3: 0.72 | N3: € pro g/km ab | O3: =VLOOKUP(R3,T3:V7,2,TRUE) -> 115 | P3: g/km | R3: 2020 | T3: 2020 | U3: 115 | V3: 65
A4: ¼-jährliche | C4: =(IF((Eingabe!M17-$O$5)>5,(Eingabe!M17-$O$5)*$M$5,5*$M$5)+IF((Eingabe!M22-$O$3)>5,(Eingabe!M22-$O$3)*$M$3,5*$M$3))*3 -> 127.44 | T4: 2021 | U4: 112 | V4: 64
A5: monatliche | C5: =(IF((Eingabe!M17-$O$5)>5,(Eingabe!M17-$O$5)*$M$5,5*$M$5)+IF((Eingabe!M22-$O$3)>5,(Eingabe!M22-$O$3)*$M$3,5*$M$3)) -> 42.48 | L5: Leistung | M5: 0.72 | N5: € pro kW ab | O5: =VLOOKUP(R3,T3:V7,3,TRUE) -> 65 | P5: kW | T5: 2022 | U5: 109 | V5: 63
T6: 2023 | U6: 106 | V6: 62
A7: Leistung | B7: Staffelung | C7: Motorbezogene Versicherungssteuer (spezifisch) | G7: Absolutbeträge | T7: 2024 | U7: 103 | V7: 61
A8: [kW] | C8: [€/kW und Monat] | G8: [€/a]
C9: jährliche | D9: ½-jährliche | E9: ¼-jährliche | F9: monatliche | G9: jährliche | H9: ½-jährliche | I9: ¼-jährliche | J9: monatliche
A10: 1 | B10: 1 | C10: 0 | D10: 0 | E10: 0 | F10: 0 | G10: =C10*A10*12 -> 0 | H10: =D10*B10*12 -> 0 | I10: 0 | J10: 0
A11: 2 | B11: 2 | C11: 0 | D11: 0 | E11: 0 | F11: 0 | G11: =C11*A11*12 -> 0 | H11: 0 | I11: 0 | J11: 0
A12: 3 | B12: 3 | C12: 0 | D12: 0 | E12: 0 | F12: 0 | G12: 0 | H12: 0 | I12: 0 | J12: 0
A13: 4 | B13: 4 | C13: 0 | D13: 0 | E13: 0 | F13: 0 | G13: 0 | H13: 0 | I13: 0 | J13: 0
A14: 5 | B14: 5 | C14: 0 | D14: 0 | E14: 0 | F14: 0 | G14: 0 | H14: 0 | I14: 0 | J14: 0
A15: 6 | B15: 6 | C15: 0 | D15: 0 | E15: 0 | F15: 0 | G15: 0 | H15: 0 | I15: 0 | J15: 0
A16: 7 | B16: 7 | C16: 0 | D16: 0 | E16: 0 | F16: 0 | G16: 0 | H16: 0 | I16: 0 | J16: 0
A17: 8 | B17: 8 | C17: 0 | D17: 0 | E17: 0 | F17: 0 | G17: 0 | H17: 0 | I17: 0 | J17: 0
A18: 9 | B18: 9 | C18: 0 | D18: 0 | E18: 0 | F18: 0 | G18: 0 | H18: 0 | I18: 0 | J18: 0
A19: 10 | B19: 10 | C19: 0 | D19: 0 | E19: 0 | F19: 0 | G19: 0 | H19: 0 | I19: 0 | J19: 0
A20: 11 | B20: 11 | C20: 0 | D20: 0 | E20: 0 | F20: 0 | G20: 0 | H20: 0 | I20: 0 | J20: 0
A21: 12 | B21: 12 | C21: 0 | D21: 0 | E21: 0 | F21: 0 | G21: 0 | H21: 0 | I21: 0 | J21: 0
A22: 13 | B22: 13 | C22: 0 | D22: 0 | E22: 0 | F22: 0 | G22: 0 | H22: 0 | I22: 0 | J22: 0
A23: 14 | B23: 14 | C23: 0 | D23: 0 | E23: 0 | F23: 0 | G23: 0 | H23: 0 | I23: 0 | J23: 0
A24: 15 | B24: 15 | C24: 0 | D24: 0 | E24: 0 | F24: 0 | G24: 0 | H24: 0 | I24: 0 | J24: 0
A25: 16 | B25: 16 | C25: 0 | D25: 0 | E25: 0 | F25: 0 | G25: 0 | H25: 0 | I25: 0 | J25: 0
A26: 17 | B26: 17 | C26: 0 | D26: 0 | E26: 0 | F26: 0 | G26: 0 | H26: =D26*B26*12 -> 0 | I26: =E26*C26*12 -> 0 | J26: =F26*D26*12 -> 0
A27: 18 | B27: 18 | C27: 0 | D27: 0 | E27: 0 | F27: 0 | G27: 0 | H27: 0 | I27: 0 | J27: 0
A28: 19 | B28: 19 | C28: 0 | D28: 0 | E28: 0 | F28: 0 | G28: 0 | H28: 0 | I28: 0 | J28: 0
A29: 20 | B29: 20 | C29: 0 | D29: 0 | E29: 0 | F29: 0 | G29: 0 | H29: 0 | I29: 0 | J29: 0
A30: 21 | B30: 21 | C30: 0 | D30: 0 | E30: 0 | F30: 0 | G30: 0 | H30: 0 | I30: 0 | J30: 0
A31: 22 | B31: 22 | C31: 0 | D31: 0 | E31: 0 | F31: 0 | G31: 0 | H31: 0 | I31: 0 | J31: 0
A32: 23 | B32: 23 | C32: 0 | D32: 0 | E32: 0 | F32: 0 | G32: 0 | H32: 0 | I32: 0 | J32: 0
A33: 24 | B33: 24 | C33: 0 | D33: 0 | E33: 0 | F33: 0 | G33: 0 | H33: 0 | I33: 0 | J33: 0
A34: 25 | B34: 1 | C34: 0.62 | D34: 0.6572 | E34: 0.6696 | F34: 0.682 | G34: =C34*$B34*12 -> 7.44 | H34: =D34*$B34*12 -> 7.8864 | I34: 8.0352 | J34: 8.184
A35: 26 | B35: 2 | C35: 0.62 | D35: 0.6572 | E35: 0.6696 | F35: 0.682 | G35: =C35*$B35*12 -> 14.88 | H35: 15.7728 | I35: 16.0704 | J35: 16.368
A36: 27 | B36: 3 | C36: 0.62 | D36: 0.6572 | E36: 0.6696 | F36: 0.682 | G36: 22.32 | H36: 23.6592 | I36: 24.1056 | J36: 24.552
A37: 28 | B37: 4 | C37: 0.62 | D37: 0.6572 | E37: 0.6696 | F37: 0.682 | G37: 29.76 | H37: 31.5456 | I37: 32.1408 | J37: 32.736
A38: 29 | B38: 5 | C38: 0.62 | D38: 0.6572 | E38: 0.6696 | F38: 0.682 | G38: 37.2 | H38: 39.432 | I38: 40.176 | J38: 40.92
A39: 30 | B39: 6 | C39: 0.62 | D39: 0.6572 | E39: 0.6696 | F39: 0.682 | G39: 44.64 | H39: 47.3184 | I39: 48.2112 | J39: 49.104
A40: 31 | B40: 7 | C40: 0.62 | D40: 0.6572 | E40: 0.6696 | F40: 0.682 | G40: 52.08 | H40: 55.2048 | I40: 56.2464 | J40: 57.288
A41: 32 | B41: 8 | C41: 0.62 | D41: 0.6572 | E41: 0.6696 | F41: 0.682 | G41: 59.52 | H41: 63.0912 | I41: 64.2816 | J41: 65.472
A42: 33 | B42: 9 | C42: 0.62 | D42: 0.6572 | E42: 0.6696 | F42: 0.682 | G42: 66.96 | H42: 70.9776 | I42: 72.3168 | J42: 73.656
A43: 34 | B43: 10 | C43: 0.62 | D43: 0.6572 | E43: 0.6696 | F43: 0.682 | G43: 74.4 | H43: 78.864 | I43: 80.352 | J43: 81.84
A44: 35 | B44: 11 | C44: 0.62 | D44: 0.6572 | E44: 0.6696 | F44: 0.682 | G44: 81.84 | H44: 86.7504 | I44: 88.3872 | J44: 90.024
A45: 36 | B45: 12 | C45: 0.62 | D45: 0.6572 | E45: 0.6696 | F45: 0.682 | G45: 89.28 | H45: 94.6368 | I45: 96.4224 | J45: 98.208
A46: 37 | B46: 13 | C46: 0.62 | D46: 0.6572 | E46: 0.6696 | F46: 0.682 | G46: 96.72 | H46: 102.5232 | I46: 104.4576 | J46: 106.392
A47: 38 | B47: 14 | C47: 0.62 | D47: 0.6572 | E47: 0.6696 | F47: 0.682 | G47: 104.16 | H47: 110.4096 | I47: 112.4928 | J47: 114.576
A48: 39 | B48: 15 | C48: 0.62 | D48: 0.6572 | E48: 0.6696 | F48: 0.682 | G48: 111.6 | H48: 118.296 | I48: 120.528 | J48: 122.76
A49: 40 | B49: 16 | C49: 0.62 | D49: 0.6572 | E49: 0.6696 | F49: 0.682 | G49: 119.04 | H49: 126.1824 | I49: 128.5632 | J49: 130.944
A50: 41 | B50: 17 | C50: 0.62 | D50: 0.6572 | E50: 0.6696 | F50: 0.682 | G50: 126.48 | H50: =D50*$B50*12 -> 134.0688 | I50: =E50*$B50*12 -> 136.5984 | J50: =F50*$B50*12 -> 139.128
A51: 42 | B51: 18 | C51: 0.62 | D51: 0.6572 | E51: 0.6696 | F51: 0.682 | G51: 133.92 | H51: 141.9552 | I51: 144.6336 | J51: 147.312
A52: 43 | B52: 19 | C52: 0.62 | D52: 0.6572 | E52: 0.6696 | F52: 0.682 | G52: 141.36 | H52: 149.8416 | I52: 152.6688 | J52: 155.496
A53: 44 | B53: 20 | C53: 0.62 | D53: 0.6572 | E53: 0.6696 | F53: 0.682 | G53: 148.8 | H53: 157.728 | I53: 160.704 | J53: 163.68
A54: 45 | B54: 21 | C54: 0.62 | D54: 0.6572 | E54: 0.6696 | F54: 0.682 | G54: 156.24 | H54: 165.6144 | I54: 168.7392 | J54: 171.864
A55: 46 | B55: 22 | C55: 0.62 | D55: 0.6572 | E55: 0.6696 | F55: 0.682 | G55: 163.68 | H55: 173.5008 | I55: 176.7744 | J55: 180.048
A56: 47 | B56: 23 | C56: 0.62 | D56: 0.6572 | E56: 0.6696 | F56: 0.682 | G56: 171.12 | H56: 181.3872 | I56: 184.8096 | J56: 188.232
A57: 48 | B57: 24 | C57: 0.62 | D57: 0.6572 | E57: 0.6696 | F57: 0.682 | G57: 178.56 | H57: 189.2736 | I57: 192.8448 | J57: 196.416
A58: 49 | B58: 25 | C58: 0.62 | D58: 0.6572 | E58: 0.6696 | F58: 0.682 | G58: 186 | H58: 197.16 | I58: 200.88 | J58: 204.6
A59: 50 | B59: 26 | C59: 0.62 | D59: 0.6572 | E59: 0.6696 | F59: 0.682 | G59: 193.44 | H59: 205.0464 | I59: 208.9152 | J59: 212.784
A60: 51 | B60: 27 | C60: 0.62 | D60: 0.6572 | E60: 0.6696 | F60: 0.682 | G60: 200.88 | H60: 212.9328 | I60: 216.9504 | J60: 220.968
A61: 52 | B61: 28 | C61: 0.62 | D61: 0.6572 | E61: 0.6696 | F61: 0.682 | G61: 208.32 | H61: 220.8192 | I61: 224.9856 | J61: 229.152
A62: 53 | B62: 29 | C62: 0.62 | D62: 0.6572 | E62: 0.6696 | F62: 0.682 | G62: 215.76 | H62: 228.7056 | I62: 233.0208 | J62: 237.336
A63: 54 | B63: 30 | C63: 0.62 | D63: 0.6572 | E63: 0.6696 | F63: 0.682 | G63: 223.2 | H63: 236.592 | I63: 241.056 | J63: 245.52
A64: 55 | B64: 31 | C64: 0.62 | D64: 0.6572 | E64: 0.6696 | F64: 0.682 | G64: 230.64 | H64: 244.4784 | I64: 249.0912 | J64: 253.704
A65: 56 | B65: 32 | C65: 0.62 | D65: 0.6572 | E65: 0.6696 | F65: 0.682 | G65: 238.08 | H65: 252.3648 | I65: 257.1264 | J65: 261.888
A66: 57 | B66: 33 | C66: 0.62 | D66: 0.6572 | E66: 0.6696 | F66: 0.682 | G66: 245.52 | H66: 260.2512 | I66: 265.1616 | J66: 270.072
A67: 58 | B67: 34 | C67: 0.62 | D67: 0.6572 | E67: 0.6696 | F67: 0.682 | G67: 252.96 | H67: 268.1376 | I67: 273.1968 | J67: 278.256
A68: 59 | B68: 35 | C68: 0.62 | D68: 0.6572 | E68: 0.6696 | F68: 0.682 | G68: 260.4 | H68: 276.024 | I68: 281.232 | J68: 286.44
A69: 60 | B69: 36 | C69: 0.62 | D69: 0.6572 | E69: 0.6696 | F69: 0.682 | G69: 267.84 | H69: 283.9104 | I69: 289.2672 | J69: 294.624
A70: 61 | B70: 37 | C70: 0.62 | D70: 0.6572 | E70: 0.6696 | F70: 0.682 | G70: 275.28 | H70: 291.7968 | I70: 297.3024 | J70: 302.808
A71: 62 | B71: 38 | C71: 0.62 | D71: 0.6572 | E71: 0.6696 | F71: 0.682 | G71: 282.72 | H71: 299.6832 | I71: 305.3376 | J71: 310.992
A72: 63 | B72: 39 | C72: 0.62 | D72: 0.6572 | E72: 0.6696 | F72: 0.682 | G72: 290.16 | H72: 307.5696 | I72: 313.3728 | J72: 319.176
A73: 64 | B73: 40 | C73: 0.62 | D73: 0.6572 | E73: 0.6696 | F73: 0.682 | G73: 297.6 | H73: 315.456 | I73: 321.408 | J73: 327.36
A74: 65 | B74: 41 | C74: 0.62 | D74: 0.6572 | E74: 0.6696 | F74: 0.682 | G74: 305.04 | H74: 323.3424 | I74: 329.4432 | J74: 335.544
A75: 66 | B75: 42 | C75: 0.62 | D75: 0.6572 | E75: 0.6696 | F75: 0.682 | G75: 312.48 | H75: 331.2288 | I75: 337.4784 | J75: 343.728
A76: 67 | B76: 43 | C76: 0.62 | D76: 0.6572 | E76: 0.6696 | F76: 0.682 | G76: 319.92 | H76: 339.1152 | I76: 345.5136 | J76: 351.912
A77: 68 | B77: 44 | C77: 0.62 | D77: 0.6572 | E77: 0.6696 | F77: 0.682 | G77: 327.36 | H77: 347.0016 | I77: 353.5488 | J77: 360.096
A78: 69 | B78: 45 | C78: 0.62 | D78: 0.6572 | E78: 0.6696 | F78: 0.682 | G78: 334.8 | H78: 354.888 | I78: 361.584 | J78: 368.28
A79: 70 | B79: 46 | C79: 0.62 | D79: 0.6572 | E79: 0.6696 | F79: 0.682 | G79: 342.24 | H79: 362.7744 | I79: 369.6192 | J79: 376.464
A80: 71 | B80: 47 | C80: 0.62 | D80: 0.6572 | E80: 0.6696 | F80: 0.682 | G80: 349.68 | H80: 370.6608 | I80: 377.6544 | J80: 384.648
A81: 72 | B81: 48 | C81: 0.62 | D81: 0.6572 | E81: 0.6696 | F81: 0.682 | G81: 357.12 | H81: 378.5472 | I81: 385.6896 | J81: 392.832
A82: 73 | B82: 49 | C82: 0.62 | D82: 0.6572 | E82: 0.6696 | F82: 0.682 | G82: 364.56 | H82: 386.4336 | I82: 393.7248 | J82: 401.016
A83: 74 | B83: 50 | C83: 0.62 | D83: 0.6572 | E83: 0.6696 | F83: 0.682 | G83: 372 | H83: 394.32 | I83: 401.76 | J83: 409.2
A84: 75 | B84: 51 | C84: 0.62 | D84: 0.6572 | E84: 0.6696 | F84: 0.682 | G84: 379.44 | H84: 402.2064 | I84: 409.7952 | J84: 417.384
A85: 76 | B85: 52 | C85: 0.62 | D85: 0.6572 | E85: 0.6696 | F85: 0.682 | G85: 386.88 | H85: 410.0928 | I85: 417.8304 | J85: 425.568
A86: 77 | B86: 53 | C86: 0.62 | D86: 0.6572 | E86: 0.6696 | F86: 0.682 | G86: 394.32 | H86: 417.9792 | I86: 425.8656 | J86: 433.752
A87: 78 | B87: 54 | C87: 0.62 | D87: 0.6572 | E87: 0.6696 | F87: 0.682 | G87: 401.76 | H87: 425.8656 | I87: 433.9008 | J87: 441.936
A88: 79 | B88: 55 | C88: 0.62 | D88: 0.6572 | E88: 0.6696 | F88: 0.682 | G88: 409.2 | H88: 433.752 | I88: 441.936 | J88: 450.12
A89: 80 | B89: 56 | C89: 0.62 | D89: 0.6572 | E89: 0.6696 | F89: 0.682 | G89: 416.64 | H89: 441.6384 | I89: 449.9712 | J89: 458.304
A90: 81 | B90: 57 | C90: 0.62 | D90: 0.6572 | E90: 0.6696 | F90: 0.682 | G90: 424.08 | H90: 449.5248 | I90: 458.0064 | J90: 466.488
A91: 82 | B91: 58 | C91: 0.62 | D91: 0.6572 | E91: 0.6696 | F91: 0.682 | G91: 431.52 | H91: 457.4112 | I91: 466.0416 | J91: 474.672
A92: 83 | B92: 59 | C92: 0.62 | D92: 0.6572 | E92: 0.6696 | F92: 0.682 | G92: 438.96 | H92: 465.2976 | I92: 474.0768 | J92: 482.856
A93: 84 | B93: 60 | C93: 0.62 | D93: 0.6572 | E93: 0.6696 | F93: 0.682 | G93: 446.4 | H93: 473.184 | I93: 482.112 | J93: 491.04
A94: 85 | B94: 61 | C94: 0.62 | D94: 0.6572 | E94: 0.6696 | F94: 0.682 | G94: 453.84 | H94: 481.0704 | I94: 490.1472 | J94: 499.224
A95: 86 | B95: 62 | C95: 0.62 | D95: 0.6572 | E95: 0.6696 | F95: 0.682 | G95: 461.28 | H95: 488.9568 | I95: 498.1824 | J95: 507.408
A96: 87 | B96: 63 | C96: 0.62 | D96: 0.6572 | E96: 0.6696 | F96: 0.682 | G96: 468.72 | H96: 496.8432 | I96: 506.2176 | J96: 515.592
A97: 88 | B97: 64 | C97: 0.62 | D97: 0.6572 | E97: 0.6696 | F97: 0.682 | G97: 476.16 | H97: 504.7296 | I97: 514.2528 | J97: 523.776
A98: 89 | B98: 65 | C98: 0.62 | D98: 0.6572 | E98: 0.6696 | F98: 0.682 | G98: 483.6 | H98: 512.616 | I98: 522.288 | J98: 531.96
A99: 90 | B99: 66 | C99: 0.62 | D99: 0.6572 | E99: 0.6696 | F99: 0.682 | G99: =C99*$B99*12 -> 491.04 | H99: 520.5024 | I99: 530.3232 | J99: 540.144
A100: 91 | B100: 1 | C100: 0.66 | D100: 0.6996 | E100: 0.7128 | F100: 0.726 | G100: =G$99+C100*$B100*12 -> 498.96 | H100: =H$99+D100*$B100*12 -> 528.8976 | I100: 538.8768 | J100: 548.856
A101: 92 | B101: 2 | C101: 0.66 | D101: 0.6996 | E101: 0.7128 | F101: 0.726 | G101: =G$99+C101*$B101*12 -> 506.88 | H101: 537.2928 | I101: 547.4304 | J101: 557.568
A102: 93 | B102: 3 | C102: 0.66 | D102: 0.6996 | E102: 0.7128 | F102: 0.726 | G102: 514.8 | H102: 545.688 | I102: 555.984 | J102: 566.28
A103: 94 | B103: 4 | C103: 0.66 | D103: 0.6996 | E103: 0.7128 | F103: 0.726 | G103: 522.72 | H103: 554.0832 | I103: 564.5376 | J103: 574.992
A104: 95 | B104: 5 | C104: 0.66 | D104: 0.6996 | E104: 0.7128 | F104: 0.726 | G104: 530.64 | H104: 562.4784 | I104: 573.0912 | J104: 583.704
A105: 96 | B105: 6 | C105: 0.66 | D105: 0.6996 | E105: 0.7128 | F105: 0.726 | G105: 538.56 | H105: 570.8736 | I105: 581.6448 | J105: 592.416
A106: 97 | B106: 7 | C106: 0.66 | D106: 0.6996 | E106: 0.7128 | F106: 0.726 | G106: 546.48 | H106: 579.2688 | I106: 590.1984 | J106: 601.128
A107: 98 | B107: 8 | C107: 0.66 | D107: 0.6996 | E107: 0.7128 | F107: 0.726 | G107: 554.4 | H107: 587.664 | I107: 598.752 | J107: 609.84
A108: 99 | B108: 9 | C108: 0.66 | D108: 0.6996 | E108: 0.7128 | F108: 0.726 | G108: 562.32 | H108: 596.0592 | I108: 607.3056 | J108: 618.552
A109: 100 | B109: 10 | C109: 0.66 | D109: 0.6996 | E109: 0.7128 | F109: 0.726 | G109: 570.24 | H109: 604.4544 | I109: 615.8592 | J109: 627.264
A110: 101 | B110: 11 | C110: 0.66 | D110: 0.6996 | E110: 0.7128 | F110: 0.726 | G110: 578.16 | H110: 612.8496 | I110: 624.4128 | J110: 635.976
A111: 102 | B111: 12 | C111: 0.66 | D111: 0.6996 | E111: 0.7128 | F111: 0.726 | G111: 586.08 | H111: 621.2448 | I111: 632.9664 | J111: 644.688
A112: 103 | B112: 13 | C112: 0.66 | D112: 0.6996 | E112: 0.7128 | F112: 0.726 | G112: 594 | H112: 629.64 | I112: 641.52 | J112: 653.4
A113: 104 | B113: 14 | C113: 0.66 | D113: 0.6996 | E113: 0.7128 | F113: 0.726 | G113: 601.92 | H113: 638.0352 | I113: 650.0736 | J113: 662.112
A114: 105 | B114: 15 | C114: 0.66 | D114: 0.6996 | E114: 0.7128 | F114: 0.726 | G114: 609.84 | H114: 646.4304 | I114: 658.6272 | J114: 670.824
A115: 106 | B115: 16 | C115: 0.66 | D115: 0.6996 | E115: 0.7128 | F115: 0.726 | G115: 617.76 | H115: 654.8256 | I115: 667.1808 | J115: 679.536
A116: 107 | B116: 17 | C116: 0.66 | D116: 0.6996 | E116: 0.7128 | F116: 0.726 | G116: 625.68 | H116: =H$99+D116*$B116*12 -> 663.2208 | I116: =I$99+E116*$B116*12 -> 675.7344 | J116: =J$99+F116*$B116*12 -> 688.248
A117: 108 | B117: 18 | C117: 0.66 | D117: 0.6996 | E117: 0.7128 | F117: 0.726 | G117: 633.6 | H117: 671.616 | I117: 684.288 | J117: 696.96
A118: 109 | B118: 19 | C118: 0.66 | D118: 0.6996 | E118: 0.7128 | F118: 0.726 | G118: 641.52 | H118: 680.0112 | I118: 692.8416 | J118: 705.672
A119: 110 | B119: 20 | C119: 0.66 | D119: 0.6996 | E119: 0.7128 | F119: 0.726 | G119: 649.44 | H119: 688.4064 | I119: 701.3952 | J119: 714.384
A120: 111 | B120: 1 | C120: 0.75 | D120: 0.795 | E120: 0.81 | F120: 0.825 | G120: =G$119+$B120*C120*12 -> 658.44 | H120: =H$119+$B120*D120*12 -> 697.9464 | I120: 711.1152 | J120: 724.284
A121: 112 | B121: 2 | C121: 0.75 | D121: 0.795 | E121: 0.81 | F121: 0.825 | G121: =G$119+$B121*C121*12 -> 667.44 | H121: 707.4864 | I121: 720.8352 | J121: 734.184
A122: 113 | B122: 3 | C122: 0.75 | D122: 0.795 | E122: 0.81 | F122: 0.825 | G122: 676.44 | H122: 717.0264 | I122: 730.5552 | J122: 744.084
A123: 114 | B123: 4 | C123: 0.75 | D123: 0.795 | E123: 0.81 | F123: 0.825 | G123: 685.44 | H123: 726.5664 | I123: 740.2752 | J123: 753.984
A124: 115 | B124: 5 | C124: 0.75 | D124: 0.795 | E124: 0.81 | F124: 0.825 | G124: 694.44 | H124: 736.1064 | I124: 749.9952 | J124: 763.884
A125: 116 | B125: 6 | C125: 0.75 | D125: 0.795 | E125: 0.81 | F125: 0.825 | G125: 703.44 | H125: 745.6464 | I125: 759.7152 | J125: 773.784
A126: 117 | B126: 7 | C126: 0.75 | D126: 0.795 | E126: 0.81 | F126: 0.825 | G126: 712.44 | H126: 755.1864 | I126: 769.4352 | J126: 783.684
A127: 118 | B127: 8 | C127: 0.75 | D127: 0.795 | E127: 0.81 | F127: 0.825 | G127: 721.44 | H127: 764.7264 | I127: 779.1552 | J127: 793.584
A128: 119 | B128: 9 | C128: 0.75 | D128: 0.795 | E128: 0.81 | F128: 0.825 | G128: 730.44 | H128: 774.2664 | I128: 788.8752 | J128: 803.484
A129: 120 | B129: 10 | C129: 0.75 | D129: 0.795 | E129: 0.81 | F129: 0.825 | G129: 739.44 | H129: 783.8064 | I129: 798.5952 | J129: 813.384
A130: 121 | B130: 11 | C130: 0.75 | D130: 0.795 | E130: 0.81 | F130: 0.825 | G130: 748.44 | H130: 793.3464 | I130: 808.3152 | J130: 823.284
A131: 122 | B131: 12 | C131: 0.75 | D131: 0.795 | E131: 0.81 | F131: 0.825 | G131: 757.44 | H131: 802.8864 | I131: 818.0352 | J131: 833.184
A132: 123 | B132: 13 | C132: 0.75 | D132: 0.795 | E132: 0.81 | F132: 0.825 | G132: 766.44 | H132: 812.4264 | I132: 827.7552 | J132: 843.084
A133: 124 | B133: 14 | C133: 0.75 | D133: 0.795 | E133: 0.81 | F133: 0.825 | G133: 775.44 | H133: 821.9664 | I133: 837.4752 | J133: 852.984
A134: 125 | B134: 15 | C134: 0.75 | D134: 0.795 | E134: 0.81 | F134: 0.825 | G134: 784.44 | H134: 831.5064 | I134: 847.1952 | J134: 862.884
A135: 126 | B135: 16 | C135: 0.75 | D135: 0.795 | E135: 0.81 | F135: 0.825 | G135: 793.44 | H135: 841.0464 | I135: 856.9152 | J135: 872.784
A136: 127 | B136: 17 | C136: 0.75 | D136: 0.795 | E136: 0.81 | F136: 0.825 | G136: 802.44 | H136: =H$119+$B136*D136*12 -> 850.5864 | I136: =I$119+$B136*E136*12 -> 866.6352 | J136: =J$119+$B136*F136*12 -> 882.684
A137: 128 | B137: 18 | C137: 0.75 | D137: 0.795 | E137: 0.81 | F137: 0.825 | G137: 811.44 | H137: 860.1264 | I137: 876.3552 | J137: 892.584
A138: 129 | B138: 19 | C138: 0.75 | D138: 0.795 | E138: 0.81 | F138: 0.825 | G138: 820.44 | H138: 869.6664 | I138: 886.0752 | J138: 902.484
A139: 130 | B139: 20 | C139: 0.75 | D139: 0.795 | E139: 0.81 | F139: 0.825 | G139: 829.44 | H139: 879.2064 | I139: 895.7952 | J139: 912.384
A140: 131 | B140: 21 | C140: 0.75 | D140: 0.795 | E140: 0.81 | F140: 0.825 | G140: 838.44 | H140: 888.7464 | I140: 905.5152 | J140: 922.284
A141: 132 | B141: 22 | C141: 0.75 | D141: 0.795 | E141: 0.81 | F141: 0.825 | G141: 847.44 | H141: 898.2864 | I141: 915.2352 | J141: 932.184
A142: 133 | B142: 23 | C142: 0.75 | D142: 0.795 | E142: 0.81 | F142: 0.825 | G142: 856.44 | H142: 907.8264 | I142: 924.9552 | J142: 942.084
A143: 134 | B143: 24 | C143: 0.75 | D143: 0.795 | E143: 0.81 | F143: 0.825 | G143: 865.44 | H143: 917.3664 | I143: 934.6752 | J143: 951.984
A144: 135 | B144: 25 | C144: 0.75 | D144: 0.795 | E144: 0.81 | F144: 0.825 | G144: 874.44 | H144: 926.9064 | I144: 944.3952 | J144: 961.884
A145: 136 | B145: 26 | C145: 0.75 | D145: 0.795 | E145: 0.81 | F145: 0.825 | G145: 883.44 | H145: 936.4464 | I145: 954.1152 | J145: 971.784
A146: 137 | B146: 27 | C146: 0.75 | D146: 0.795 | E146: 0.81 | F146: 0.825 | G146: 892.44 | H146: 945.9864 | I146: 963.8352 | J146: 981.684
A147: 138 | B147: 28 | C147: 0.75 | D147: 0.795 | E147: 0.81 | F147: 0.825 | G147: 901.44 | H147: 955.5264 | I147: 973.5552 | J147: 991.584
A148: 139 | B148: 29 | C148: 0.75 | D148: 0.795 | E148: 0.81 | F148: 0.825 | G148: 910.44 | H148: 965.0664 | I148: 983.2752 | J148: 1001.484
A149: 140 | B149: 30 | C149: 0.75 | D149: 0.795 | E149: 0.81 | F149: 0.825 | G149: 919.44 | H149: 974.6064 | I149: 992.9952 | J149: 1011.384
A150: 141 | B150: 31 | C150: 0.75 | D150: 0.795 | E150: 0.81 | F150: 0.825 | G150: 928.44 | H150: 984.1464 | I150: 1002.7152 | J150: 1021.284
A151: 142 | B151: 32 | C151: 0.75 | D151: 0.795 | E151: 0.81 | F151: 0.825 | G151: 937.44 | H151: 993.6864 | I151: 1012.4352 | J151: 1031.184
A152: 143 | B152: 33 | C152: 0.75 | D152: 0.795 | E152: 0.81 | F152: 0.825 | G152: 946.44 | H152: 1003.2264 | I152: 1022.1552 | J152: 1041.084
A153: 144 | B153: 34 | C153: 0.75 | D153: 0.795 | E153: 0.81 | F153: 0.825 | G153: 955.44 | H153: 1012.7664 | I153: 1031.8752 | J153: 1050.984
A154: 145 | B154: 35 | C154: 0.75 | D154: 0.795 | E154: 0.81 | F154: 0.825 | G154: 964.44 | H154: 1022.3064 | I154: 1041.5952 | J154: 1060.884
A155: 146 | B155: 36 | C155: 0.75 | D155: 0.795 | E155: 0.81 | F155: 0.825 | G155: 973.44 | H155: 1031.8464 | I155: 1051.3152 | J155: 1070.784
A156: 147 | B156: 37 | C156: 0.75 | D156: 0.795 | E156: 0.81 | F156: 0.825 | G156: 982.44 | H156: 1041.3864 | I156: 1061.0352 | J156: 1080.684
A157: 148 | B157: 38 | C157: 0.75 | D157: 0.795 | E157: 0.81 | F157: 0.825 | G157: 991.44 | H157: 1050.9264 | I157: 1070.7552 | J157: 1090.584
A158: 149 | B158: 39 | C158: 0.75 | D158: 0.795 | E158: 0.81 | F158: 0.825 | G158: 1000.44 | H158: 1060.4664 | I158: 1080.4752 | J158: 1100.484
A159: 150 | B159: 40 | C159: 0.75 | D159: 0.795 | E159: 0.81 | F159: 0.825 | G159: 1009.44 | H159: 1070.0064 | I159: 1090.1952 | J159: 1110.384
A160: 151 | B160: 41 | C160: 0.75 | D160: 0.795 | E160: 0.81 | F160: 0.825 | G160: 1018.44 | H160: 1079.5464 | I160: 1099.9152 | J160: 1120.284
A161: 152 | B161: 42 | C161: 0.75 | D161: 0.795 | E161: 0.81 | F161: 0.825 | G161: 1027.44 | H161: 1089.0864 | I161: 1109.6352 | J161: 1130.184
A162: 153 | B162: 43 | C162: 0.75 | D162: 0.795 | E162: 0.81 | F162: 0.825 | G162: 1036.44 | H162: 1098.6264 | I162: 1119.3552 | J162: 1140.084
A163: 154 | B163: 44 | C163: 0.75 | D163: 0.795 | E163: 0.81 | F163: 0.825 | G163: 1045.44 | H163: 1108.1664 | I163: 1129.0752 | J163: 1149.984
A164: 155 | B164: 45 | C164: 0.75 | D164: 0.795 | E164: 0.81 | F164: 0.825 | G164: 1054.44 | H164: 1117.7064 | I164: 1138.7952 | J164: 1159.884
A165: 156 | B165: 46 | C165: 0.75 | D165: 0.795 | E165: 0.81 | F165: 0.825 | G165: 1063.44 | H165: 1127.2464 | I165: 1148.5152 | J165: 1169.784
A166: 157 | B166: 47 | C166: 0.75 | D166: 0.795 | E166: 0.81 | F166: 0.825 | G166: 1072.44 | H166: 1136.7864 | I166: 1158.2352 | J166: 1179.684
A167: 158 | B167: 48 | C167: 0.75 | D167: 0.795 | E167: 0.81 | F167: 0.825 | G167: 1081.44 | H167: 1146.3264 | I167: 1167.9552 | J167: 1189.584
A168: 159 | B168: 49 | C168: 0.75 | D168: 0.795 | E168: 0.81 | F168: 0.825 | G168: 1090.44 | H168: 1155.8664 | I168: 1177.6752 | J168: 1199.484
A169: 160 | B169: 50 | C169: 0.75 | D169: 0.795 | E169: 0.81 | F169: 0.825 | G169: 1099.44 | H169: 1165.4064 | I169: 1187.3952 | J169: 1209.384
A170: 161 | B170: 51 | C170: 0.75 | D170: 0.795 | E170: 0.81 | F170: 0.825 | G170: 1108.44 | H170: 1174.9464 | I170: 1197.1152 | J170: 1219.284
A171: 162 | B171: 52 | C171: 0.75 | D171: 0.795 | E171: 0.81 | F171: 0.825 | G171: 1117.44 | H171: 1184.4864 | I171: 1206.8352 | J171: 1229.184
A172: 163 | B172: 53 | C172: 0.75 | D172: 0.795 | E172: 0.81 | F172: 0.825 | G172: 1126.44 | H172: 1194.0264 | I172: 1216.5552 | J172: 1239.084
A173: 164 | B173: 54 | C173: 0.75 | D173: 0.795 | E173: 0.81 | F173: 0.825 | G173: 1135.44 | H173: 1203.5664 | I173: 1226.2752 | J173: 1248.984
A174: 165 | B174: 55 | C174: 0.75 | D174: 0.795 | E174: 0.81 | F174: 0.825 | G174: 1144.44 | H174: 1213.1064 | I174: 1235.9952 | J174: 1258.884
A175: 166 | B175: 56 | C175: 0.75 | D175: 0.795 | E175: 0.81 | F175: 0.825 | G175: 1153.44 | H175: 1222.6464 | I175: 1245.7152 | J175: 1268.784
A176: 167 | B176: 57 | C176: 0.75 | D176: 0.795 | E176: 0.81 | F176: 0.825 | G176: 1162.44 | H176: 1232.1864 | I176: 1255.4352 | J176: 1278.684
A177: 168 | B177: 58 | C177: 0.75 | D177: 0.795 | E177: 0.81 | F177: 0.825 | G177: 1171.44 | H177: 1241.7264 | I177: 1265.1552 | J177: 1288.584
A178: 169 | B178: 59 | C178: 0.75 | D178: 0.795 | E178: 0.81 | F178: 0.825 | G178: 1180.44 | H178: 1251.2664 | I178: 1274.8752 | J178: 1298.484
A179: 170 | B179: 60 | C179: 0.75 | D179: 0.795 | E179: 0.81 | F179: 0.825 | G179: 1189.44 | H179: 1260.8064 | I179: 1284.5952 | J179: 1308.384
A180: 171 | B180: 61 | C180: 0.75 | D180: 0.795 | E180: 0.81 | F180: 0.825 | G180: 1198.44 | H180: 1270.3464 | I180: 1294.3152 | J180: 1318.284
A181: 172 | B181: 62 | C181: 0.75 | D181: 0.795 | E181: 0.81 | F181: 0.825 | G181: 1207.44 | H181: 1279.8864 | I181: 1304.0352 | J181: 1328.184
A182: 173 | B182: 63 | C182: 0.75 | D182: 0.795 | E182: 0.81 | F182: 0.825 | G182: 1216.44 | H182: 1289.4264 | I182: 1313.7552 | J182: 1338.084
A183: 174 | B183: 64 | C183: 0.75 | D183: 0.795 | E183: 0.81 | F183: 0.825 | G183: 1225.44 | H183: 1298.9664 | I183: 1323.4752 | J183: 1347.984
A184: 175 | B184: 65 | C184: 0.75 | D184: 0.795 | E184: 0.81 | F184: 0.825 | G184: 1234.44 | H184: 1308.5064 | I184: 1333.1952 | J184: 1357.884
A185: 176 | B185: 66 | C185: 0.75 | D185: 0.795 | E185: 0.81 | F185: 0.825 | G185: =G$119+$B185*C185*12 -> 1243.44 | H185: 1318.0464 | I185: 1342.9152 | J185: 1367.784
A186: 177 | B186: 67 | C186: 0.75 | D186: 0.795 | E186: 0.81 | F186: 0.825 | G186: 1252.44 | H186: 1327.5864 | I186: 1352.6352 | J186: 1377.684
A187: 178 | B187: 68 | C187: 0.75 | D187: 0.795 | E187: 0.81 | F187: 0.825 | G187: 1261.44 | H187: 1337.1264 | I187: 1362.3552 | J187: 1387.584
A188: 179 | B188: 69 | C188: 0.75 | D188: 0.795 | E188: 0.81 | F188: 0.825 | G188: 1270.44 | H188: 1346.6664 | I188: 1372.0752 | J188: 1397.484
A189: 180 | B189: 70 | C189: 0.75 | D189: 0.795 | E189: 0.81 | F189: 0.825 | G189: 1279.44 | H189: 1356.2064 | I189: 1381.7952 | J189: 1407.384
A190: 181 | B190: 71 | C190: 0.75 | D190: 0.795 | E190: 0.81 | F190: 0.825 | G190: 1288.44 | H190: 1365.7464 | I190: 1391.5152 | J190: 1417.284
A191: 182 | B191: 72 | C191: 0.75 | D191: 0.795 | E191: 0.81 | F191: 0.825 | G191: 1297.44 | H191: 1375.2864 | I191: 1401.2352 | J191: 1427.184
A192: 183 | B192: 73 | C192: 0.75 | D192: 0.795 | E192: 0.81 | F192: 0.825 | G192: 1306.44 | H192: 1384.8264 | I192: 1410.9552 | J192: 1437.084
A193: 184 | B193: 74 | C193: 0.75 | D193: 0.795 | E193: 0.81 | F193: 0.825 | G193: 1315.44 | H193: 1394.3664 | I193: 1420.6752 | J193: 1446.984
A194: 185 | B194: 75 | C194: 0.75 | D194: 0.795 | E194: 0.81 | F194: 0.825 | G194: 1324.44 | H194: 1403.9064 | I194: 1430.3952 | J194: 1456.884
A195: 186 | B195: 76 | C195: 0.75 | D195: 0.795 | E195: 0.81 | F195: 0.825 | G195: 1333.44 | H195: 1413.4464 | I195: 1440.1152 | J195: 1466.784
A196: 187 | B196: 77 | C196: 0.75 | D196: 0.795 | E196: 0.81 | F196: 0.825 | G196: 1342.44 | H196: 1422.9864 | I196: 1449.8352 | J196: 1476.684
A197: 188 | B197: 78 | C197: 0.75 | D197: 0.795 | E197: 0.81 | F197: 0.825 | G197: 1351.44 | H197: 1432.5264 | I197: 1459.5552 | J197: 1486.584
A198: 189 | B198: 79 | C198: 0.75 | D198: 0.795 | E198: 0.81 | F198: 0.825 | G198: 1360.44 | H198: 1442.0664 | I198: 1469.2752 | J198: 1496.484
A199: 190 | B199: 80 | C199: 0.75 | D199: 0.795 | E199: 0.81 | F199: 0.825 | G199: 1369.44 | H199: 1451.6064 | I199: 1478.9952 | J199: 1506.384
A200: 191 | B200: 81 | C200: 0.75 | D200: 0.795 | E200: 0.81 | F200: 0.825 | G200: 1378.44 | H200: =H$119+$B200*D200*12 -> 1461.1464 | I200: =I$119+$B200*E200*12 -> 1488.7152 | J200: =J$119+$B200*F200*12 -> 1516.284
... 309 more rows

Sheet Enamo-Tarif (hidden)
I1: Tarif (brutto) | J1: Tarif (brutto) inkl. Pauschalen
A2: Unterbrechbarer Tarif | C2: Arbeitspreis 06:00 – 22:00 Uhr [cent] | D2: 7 | E2: 2.39 | F2: 1.5 | G2: 0.777 | H2: 11.667 | I2: 14 | J2: =I2+$I$7*100 -> 24.64612903
C3: Arbeitspreis 22:00 – 06:00 Uhr [cent] | D3: 5.6 | E3: 2.39 | F3: 1.5 | G3: 0.777 | H3: 10.267 | I3: 12.32 | J3: =I3+$I$7*100 -> 22.96612903
C4: Grundpreis / Pauschale [€/a] | G4: 33 | H4: 33 | I4: 39.6
C5: Messleistung für 2. Zähler | H5: 24.9 | I5: =H5*1.2 -> 29.88
I6: =SUM(I4:I5) -> 69.48
I7: =I6/Eingabe!G21 -> 0.1064612903

Sheet topprodukte-elektro (hidden)
A1: Marke | C1: Modellname | E1: Kaufpreis | G1: Reichweite mind. | I1: Verbrauch | K1: Spitzengeschwindigkeit | M1: Antriebssystem | R1: Leistung [kW] | S1: max. Drehmoment [Nm] | U1: Batterien | X1: Energieinhalt [kWh] | Y1: Ladezyklen | Z1: der Batterie | AA1: Ladegerät | AD1: Standardladezeit | AE1: [h] | AF1: Sitzplätze | AG1: Anmerkung
E2: inkl. MWSt. [EUR] | G2: [km] | I2: [kWh/100 km] | K2: [km/h]
A3: TESLA | C3: Model S | E3: 65740 | G3: 502 | I3: 18 | K3: 210 | M3: Vierpoliger | N3: Dreiphasen | O3: wechselstrom- | P3: Induktionsmotor | Q3: mit Kupferläufer | R3: 350 | S3: 600 | U3: Li-Ion | X3: 85 | Y3: k.A. | AA3: Integriertes Ladegerät | AD3: 8 | AF3: 5 Sitzer | AG3: Erhältlich auch | AH3: mit 60 kWh | AI3: Batterie
A4: TESLA | C4: Roadster | E4: 100000 | G4: 350 | I4: k.A. | K4: 200 | M4: 3-Phasen | N4: Asynchron | R4: 185 | S4: k.A. | U4: Li-Ion | X4: k.A. | Y4: k.A. | AA4: k.A. | AD4: 4 | AF4: 2 Sitzer
A5: RENAULT | C5: Zoe | E5: 20780 | G5: 210 | I5: 15 | K5: 135 | M5: fremderregter | N5: Synchronmotor | O5: Rekuperation der | P5: bremsenergie | R5: 65 | S5: 220 | U5: Li-Ion | X5: 22 | Y5: k.A. | AA5: Mietbatterie | AB5: in Fahrzeug | AC5: integriert | AD5: 9 | AF5: 5 Sitzer | AG5: Modelle: | AH5: Life, Zen, | AI5: Intens
A6: Fiat Umbau durch | B6: MP Eco Drive | C6: E-Ducato Kombi | E6: 108000 | G6: 200 | I6: k.A. | K6: 90 | M6: asynchron mit | N6: Wasserkühlung | R6: 140 | S6: k.A. | U6: Li-Ion | X6: 62 | Y6: k.A. | AA6: k.A. | AD6: 8 | AF6: 12 Sitzer
A7: NISSAN | C7: Leaf | E7: 23390 | G7: 199 | I7: 15 | K7: 144 | M7: E-Motor | R7: 90 | S7: 254 | U7: Li-Ion | X7: 24 | Y7: k.A. | AA7: Mietbatterie | AB7: in Fahrzeug | AC7: integriert | AD7: 8 | AF7: 4 Sitzer | AG7: Modelle: | AH7: Visia,Acenta, | AI7: Tekna
A8: BMW | C8: BMW i3 | E8: 35700 | G8: 190 | I8: 13 | K8: 150 | M8: E-synchron | N8: motor | R8: 125 | S8: 250 | U8: Li-Ion | X8: k.A. | Y8: k.A. | AA8: k.A. | AD8: 6 | AF8: 5 Sitzer
A9: RENAULT | C9: Kangoo | E9: 24360 | G9: 170 | I9: 16 | K9: 130 | M9: fremderregter | N9: Synchronmotor | R9: 44 | S9: 226 | U9: Li-Ion | X9: 22 | Y9: k.A. | AA9: Mietbatterie | AB9: in Fahrzeug | AC9: integriert | AD9: 9 | AF9: 2 Sitzer
A10: FORD | C10: Ford Focus Electric | E10: 39990 | G10: 162 | I10: 15 | K10: 135 | M10: k.A. | R10: 107 | S10: 250 | U10: Li-Ion | X10: 23 | Y10: k.A. | AA10: Integriertes Ladegerät | AD10: 7 | AF10: 5 Sitzer
A11: VW | C11: E-up | E11: 25350 | G11: 160 | I11: 12 | K11: 130 | M11: Permanenterregte | N11: Synchronmaschine | O11: (PSM) | R11: 60 | S11: 210 | U11: Li-Ion | X11: 19 | Y11: k.A. | AA11: Integriertes Ladegerät | AD11: 7 | AF11: 5 Sitzer
A12: CITROEN | C12: C Zero | E12: 27588 | G12: 150 | I12: k.A. | K12: 130 | M12: Permanent- | N12: magnet- | O12: Synchronantrieb | R12: 49 | S12: 180 | U12: Li-Ion | X12: 16 | Y12: k.A. | AA12: k.A. | AD12: 6 | AF12: 330 | AG12: Modelle: | AH12: Attraction | AI12: Seduction
A13: MITSUBISHI | C13: i-MiEV | E13: 29500 | G13: 150 | I13: k.A. | K13: 130 | M13: Permanent- | N13: magnetischer | O13: Synchronmotor | R13: 49 | S13: 180 | U13: Li-Ion | X13: 16 | Y13: k.A. | AA13: k.A. | AD13: 8 | AF13: 4 Sitzer
A14: PEUGEOT | C14: i On | E14: 31800 | G14: 150 | I14: 14 | K14: 130 | M14: synchroner | N14: E-Motor | R14: 49 | S14: 180 | U14: Li-Ion | X14: 16 | Y14: k.A. | AA14: in Fahrzeug | AB14: eingebaut | AD14: 9 | AF14: 2 Sitzer
A15: SMART | C15: Smart fortwo | D15: electronicdrive | E15: 19420 | G15: 145 | I15: 15 | K15: 125 | M15: Heck, | N15: Permanent- | O15: Magnet-Motor | R15: 55 | S15: 130 | U15: Li-Ion | X15: k.A. | Y15: k.A. | AA15: k.A. | AD15: 7 | AF15: 2 Sitzer
A16: SMART | C16: Brabus | E16: k.A. | G16: 145 | I16: 18 | K16: 130 | M16: Heck, Permanent | N16: -Magnet-Motor | R16: 60 | S16: 135 | U16: Li-Ion | X16: k.A. | Y16: k.A. | AA16: k.A. | AD16: 7 | AF16: 2 Sitzer
A17: TAZZARI | C17: Tazzari Zero | E17: 22560 | G17: 140 | I17: 9.2 | K17: 100 | M17: Asynchron- | N17: Drehstrommotor | R17: 15 | S17: 150 | U17: Li-Ion Fe | X17: 12.8 | Y17: k.A. | AA17: k.A. | AD17: 9 | AF17: 150 | AG17: Modelle: | AH17: classic, evo, | AI17: Speedster, | AJ17: Anniversary
A18: STROMOS | C18: Coolcar Van | E18: k.A. | G18: 110 | I18: k.A. | K18: 90 | M18: k.A. | R18: 20 | S18: k.A. | U18: Blei Gel | X18: k.A. | Y18: k.A. | AA18: k.A. | AD18: 8 | AF18: 5 Sitzer
A19: RENAULT | C19: Twizy | E19: 6990 | G19: 100 | I19: 5,8/6,1 | K19: 45/80 | M19: Drehstrom | N19: Rekuperation der | O19: bremsenergie | R19: 3 | S19: 33-57 | U19: Li-Ion | X19: 6 | Y19: k.A. | AA19: Mietbatterie | AB19: in Fahrzeug | AC19: integriert | AD19: 4 | AF19: 2 Sitzer | AG19: Modelle: | AH19: Urban, Technic
A20: STROMOS | C20: Coolcar | E20: k.A. | G20: 90 | I20: k.A. | K20: 90 | M20: k.A. | R20: 20 | S20: k.A. | U20: Blei Gel | X20: k.A. | Y20: k.A. | AA20: k.A. | AD20: 8 | AF20: 4 Sitzer | AG20: Modell: | AH20: Indimo Coolcar
A21: NF | C21: Nano | E21: ab 18.500 | G21: 90 | I21: k.A. | K21: 43 | M21: k.A. | R21: 3 | S21: k.A. | U21: k.A. | X21: k.A. | Y21: k.A. | AA21: k.A. | AD21: 8 | AF21: 2 Sitzer | AG21: Karosse aus | AH21: Kunststoff
A22: OPEL | C22: Ampera | E22: 38400 | G22: 83 | I22: 19 | K22: 161 | M22: E-Motor | R22: 111 | S22: 130 | U22: Li-Ion | X22: 16 | Y22: k.A. | AA22: Integriertes Ladegerät | AD22: 6 | AF22: 5 Sitzer | AG22: Erweiterte Reichweite | AH22: durch eingebauten | AI22: Benzinmotor | AJ22: als Stromgenerator
A23: CHEVROLET | C23: Volt | E23: 38000 | G23: 80 | I23: 17 | K23: 160 | M23: E-Motor | R23: 111 | S23: 130 | U23: Li-Ion | X23: 16 | Y23: k.A. | AA23: Integriertes Ladegerät | AD23: 6 | AF23: 5 Sitzer | AG23: Erweiterte Reichweite | AH23: durch eingebauten | AI23: Benzinmotor | AJ23: als Stromgenerator
A24: Estrima Biro | C24: Estrima Biro | E24: 8868 | G24: 50 | I24: k.A. | K24: 45 | M24: k.A. | R24: 4 | S24: k.A. | U24: Blei Gel | X24: k.A. | Y24: k.A. | AA24: k.A. | AD24: k.A. | AF24: 2 Sitzer
A25: Start Lab | C25: Start Lab | E25: 8300 | G25: 50 | I25: 13 | K25: 45 | M25: Gleichstrommotor | R25: 4 | S25: Motorumdrehung | T25: -4.100/3.500 U/min | U25: Blei-Gel, | V25: 4x Northstar | W25: NSB125 | X25: k.A. | Y25: k.A. | AA25: Integriertes Ladegerät | AD25: 7 | AF25: 3 Sitzer
A26: MITSUBISHI | C26: Outlander PHEV | E26: k.A. | G26: 50 | I26: k.A. | K26: k.A. | M26: Permanent | N26: magnetischer | O26: Synchronmotor | R26: 70 | S26: 137 vorne | T26: 195 hinten | U26: Li-Ion | X26: 12 | Y26: k.A. | AA26: Integriertes Ladegerät | AD26: 4 | AF26: 5 Sitzer | AG26: Plug-in-Hybrid | AH26: mit EV-System | AI26: (Benzimotor als | AJ26: Generator)
Z43: Marke und
Z44: Modell anonymisiert
Z45: k.A.
Z47: k.A.
Z50: 7.3
Z52: 171
Z54: 5
Z55: 5
Z56: 110
Z58: 150
Z60: M5
Z61: k.A.
Z62: k.A.
Z63: k.A.

Sheet topprodukte-benzin-diesel (hidden)
A1: MARKE | B1: Modell | D1: Motor | F1: Kaufpreis bei | G1: Grundausstattung | H1: [ab EUR] inkl MWSt. | I1: Kraftstoff | J1: Benzin/Diesel | K1: CO2-Emissionen | L1: [g/km] | M1: EU-Abgasnorm | N1: Sitzplätze | O1: Leistung | P1: [kW] | Q1: Leistung | R1: [PS] | S1: Getriebe | T1: Länge [mm] | U1: Breite mit Außenspiegel [mm] | V1: Höhe ohne Dachreeling [mm] | W1: andere Motoren | X1: (Verbrauch, CO2-Emission, | Y1: Leistung [kW], Leistung [PS]) | AB1: Modellvarianten
A2: Audi | B2: A1 SB | C2: 25 TSFI | F2: 21780 | I2: 5.6 | J2: Benzin | K2: 126 | M2: 6d-TEMP | N2: 4 | O2: 70 | Q2: 95 | S2: M5 | T2: 3954 | U2: 1906 | V2: 1416 | W2: 1110 | X2: 30 TSFI | Y2: (4.8,122,85,116) | AA2: advanced, | AB2: S-line | AE2: S-line
A3: Audi | B3: A3 SB | C3: 30 TDI | F3: 29600 | I3: 4.4 | J3: Benzin | K3: 114 | M3: 6d-TEMP | N3: 5 | O3: 85 | Q3: 115 | S3: M6 | T3: 4313 | U3: 1785 | V3: 1426 | W3: 1360 | X3: 35 TDI | Y3: (4.4,115,110,150) | AB3: sport, design | AI3: Auch als Combi | AJ3: erhältlich
A4: Audi | B4: A4 Limousine | C4: 30 TDI | F4: 36970 | I4: 4.9 | J4: Benzin | K4: 128 | M4: 6d-TEMP | N4: 5 | O4: 90 | Q4: 122 | S4: M6 | T4: 4762 | U4: 2022 | V4: 1428 | W4: 1540 | X4: 35 TDI | Y4: (5.0,131,120,163) | Z4: 40 TDI | AA4: (5.2,136,140,190) | AB4: advanced, S line | AI4: Auch als Combi | AJ4: erhältlich
A5: Audi | B5: A3 SB | C5: 30 TDI | F5: 29600 | I5: 4.4 | J5: Diesel | K5: 114 | M5: 6d-TEMP | N5: 5 | O5: 85 | Q5: 115 | S5: M6 | T5: 4 313 | U5: 1 785 | V5: 1 426 | W5: 1 360 | X5: 35 TDI | Y5: (4.4,115,110,150) | AB5: sport, design
A6: Audi | B6: A4 Limousine | C6: 30 TDI | F6: 36970 | I6: 4.9 | J6: Diesel | K6: 128 | M6: 6d-TEMP | N6: 5 | O6: 90 | Q6: 122 | S6: M6 | T6: 4 762 | U6: 2 022 | V6: 1 428 | W6: 1 540 | X6: 35 TDI | Y6: (5.0,131,120,163) | Z6: 40 TDI | AA6: (5.2,136,140,190) | AB6: advanced, S line | AE6: erhältlich
A7: BMW | B7: 2er Gran Tourer | C7: 216i | F7: 31350 | I7: 6.4 | J7: Benzin | K7: 146 | M7: 6d-TEMP | N7: 5 | O7: 80 | Q7: 109 | S7: AMT6 | T7: 4556 | U7: 1800 | V7: 1608 | W7: 1515 | X7: 218i | Y7: (6.5,146,103,140) | Z7: 220i | AA7: (6.8,154,141,192)
A8: BMW | B8: 1er Limousine | C8: 116d | F8: 31160 | I8: 4.5 | J8: Benzin | K8: 118 | M8: 6d | N8: 5 | O8: 85 | Q8: 115 | S8: M6 | T8: 4319 | U8: 1799 | V8: 1434 | W8: 1375 | X8: 118d | Y8: (4.7,122,11,150)
A9: BMW | B9: 3er Limousine | C9: 318d | F9: 38950 | I9: 4.8 | J9: Benzin | K9: 125 | M9: 6d-TEMP | N9: 5 | O9: 110 | Q9: 150 | S9: M6 | T9: 4709 | U9: 2068 | V9: 1435 | W9: 1520 | X9: 320d | Y9: (4.9,128,140,190) | AE9: Kompakt-Van
A10: BMW | B10: 2er Active Tourer | C10: 216d | F10: 32050 | I10: 4.7 | J10: Benzin | K10: 123 | M10: 6d | N10: 5 | O10: 85 | Q10: 116 | S10: M6 | T10: 4354 | U10: 2039 | V10: 1555 | W10: 1495 | X10: 218d | Y10: (4.9,129,110,150) | Z10: 220d | AA10: (5.1,134,140,190) | AD10: Länge entspricht | AE10: Live | AG10: Als 3-Türer oder | AH10: 5-Türer erhältlich
A11: BMW | B11: 2er Gran Tourer | C11: 216d | F11: 33600 | I11: 4.9 | J11: Benzin | K11: 128 | M11: 6d | N11: 5 | O11: 85 | Q11: 116 | S11: M6 | T11: 4565 | U11: 2038 | V11: 1606 | W11: 1560 | X11: 218d | Y11: (5.1,134,110,150) | Z11: 220d | AA11: (5.3,140,140,190) | AF11: Feel, Shine, Live
A12: BMW | B12: 1er Limousine | C12: 116d | F12: 31160 | I12: 4.5 | J12: Diesel | K12: 118 | M12: 6d | N12: 5 | O12: 85 | Q12: 115 | S12: M6 | T12: 4 319 | U12: 1 799 | V12: 1 434 | W12: 1 375 | X12: 118d | Y12: (4.7,122,11,150)
A13: BMW | B13: 3er Limousine | C13: 318d | F13: 38950 | I13: 4.8 | J13: Diesel | K13: 125 | M13: 6d-TEMP | N13: 5 | O13: 110 | Q13: 150 | S13: M6 | T13: 4 709 | U13: 2 068 | V13: 1 435 | W13: 1 520 | X13: 320d | Y13: (4.9,128,140,190) | AG13: Auch als 7-Sitzer | AH13: erhältlich
A14: BMW | B14: 2er Active Tourer | C14: 216d | F14: 32050 | I14: 4.7 | J14: Diesel | K14: 123 | M14: 6d | N14: 5 | O14: 85 | Q14: 116 | S14: M6 | T14: 4 354 | U14: 2 039 | V14: 1 555 | W14: 1 495 | X14: 218d | Y14: (4.9,129,110,150) | Z14: 220d | AA14: (5.1,134,140,190) | AD14: Länge entspricht
A15: Citroen | B15: C1 | C15: VTi 72 | F15: 11490 | I15: 4.8 | J15: Benzin | K15: 110 | M15: 6d-TEMP | N15: 4 | O15: 53 | Q15: 72 | S15: M5 | T15: 3466 | U15: 1884 | V15: 1460 | W15: 867 | AA15: Feel, Shine, Origins
A16: Citroen | B16: C3 | C16: PureTech 82 | F16: 13390 | I16: 5.7 | J16: Benzin | K16: 127 | M16: 6d-TEMP-EVAP | N16: 5 | O16: 61 | Q16: 83 | S16: M5 | T16: 3996 | U16: 2009 | V16: 1490 | W16: 1037 | X16: PureTech 110 | Y16: (5.8,131,81,110) | AA16: Feel, Shine
A17: Citroen | B17: C3 Aircross | C17: PureTech 110 | D17: S&S | F17: 20320 | I17: 6.2 | J17: Benzin | K17: 141 | M17: 6d-TEMP-EVAP | N17: 5 | O17: 81 | Q17: 110 | S17: M6 | T17: 4154 | U17: 1976 | V17: 1597 | W17: 1247 | X17: PureTech 130 | Y17: (6.6,148,96,130) | AB17: Feel, Shine, C-Series
A18: Citroen | B18: Grand C4 Spacetourer | C18: PureTech 130 | D18: Start&Stop | F18: 28550 | I18: 6.3 | J18: Benzin | K18: 143 | M18: 6d-TEMP-EVAP | N18: 7 | O18: 96 | Q18: 131 | S18: M6 | T18: 4597 | U18: 2117 | V18: 1638 | W18: 1423 | AB18: Feel, Shine
A19: Citroen | B19: C5 Aircross | C19: PureTech 130 | D19: Start&Stop | F19: 26690 | I19: 6.6 | J19: Benzin | K19: 149 | M19: 6d-TEMP | N19: 5 | O19: 96 | Q19: 131 | S19: M6 | T19: 4500 | U19: 2099 | V19: 1654 | W19: 1468 | AB19: Live, Feel | AE19: Spacetourer erhältlich
A20: Citroen | B20: C4 Cactus | C20: BlueHDi 100 | D20: S&S | F20: 20275 | I20: 4.5 | J20: Benzin | K20: 118 | M20: 6d-TEMP | N20: 5 | O20: 75 | Q20: 102 | S20: M6 | T20: 4170 | U20: 1979 | V20: 1480 | W20: 1148 | X20: BlueHDi 120 | Y20: (5.0, 130, 88, 120) | AB20: Feel, Shine
A21: Citroen | B21: C3 Aircross | C21: Blue HDi 100 | D21: S&S | F21: 20790 | I21: 4.7 | J21: Benzin | K21: 123 | M21: 6d-TEMP | N21: 5 | O21: 75 | Q21: 102 | S21: M6 | T21: 4154 | U21: 1976 | V21: 1597 | W21: 1292 | X21: Blue HDi 120 | Y21: (5.2,137,88,120) | AB21: Feel, Shine
A22: Citroen | B22: C4 Spacetourer | C22: BlueHDi 130 | D22: Start&Stop | F22: 28400 | I22: 5 | J22: Benzin | K22: 130 | M22: 6d-TEMP | N22: 5 | O22: 96 | Q22: 130 | S22: M6 | T22: 4438 | U22: 1826 | V22: 1610 | W22: 1410 | AB22: Feel | AF22: Ambiance, Supreme
A23: Citroen | B23: C5 Aircross | C23: BlueHDi 130 | D23: Start&Stop | F23: 29390 | I23: 5.2 | J23: Benzin | K23: 138 | M23: 6d-TEMP | N23: 5 | O23: 96 | Q23: 130 | S23: M6 | T23: 4500 | U23: 1969 | V23: 1654 | W23: 1507 | AB23: Live, Feel, | AC23: Shine, C-Series
A24: Citroen | B24: C3 | C24: BlueHDi 100 | D24: Start&Stop | F24: 18290 | I24: 4.5 | J24: Diesel | K24: 117 | M24: 6d-TEMP | N24: 5 | O24: 75 | Q24: 102 | S24: M5 | T24: 3996 | U24: 2009 | V24: 1474 | W24: 1146 | AA24: Feel, Shine
A25: Citroen | B25: C4 Cactus | C25: BlueHDi 100 | D25: S&S | F25: 20275 | I25: 4.5 | J25: Diesel | K25: 118 | M25: 6d-TEMP | N25: 5 | O25: 75 | Q25: 102 | S25: M6 | T25: 4 170 | U25: 1 979 | V25: 1 480 | W25: 1 148 | X25: BlueHDi 120 | Y25: (5.0, 130, 88, 120) | AB25: Feel, Shine
A26: Citroen | B26: C3 Aircross | C26: Blue HDi 100 | D26: S&S | F26: 20790 | I26: 4.7 | J26: Diesel | K26: 123 | M26: 6d-TEMP | N26: 5 | O26: 75 | Q26: 102 | S26: M6 | T26: 4 154 | U26: 1 976 | V26: 1 597 | W26: 1 292 | X26: Blue HDi 120 | Y26: (5.2,137,88,120) | AB26: Feel, Shine | AE26: erhältlich
A27: Dacia | B27: Logan MCV | C27: SCe 75 S&S | F27: 8590 | I27: 5.7 | J27: Benzin | K27: 129 | M27: 6d-TEMP | N27: 5 | O27: 54 | Q27: 73 | S27: M5 | T27: 4501 | U27: 1994 | V27: 1521 | W27: 1112 | X27: TCe 90 S&S | Y27: (5.9,133,66,90) | AD27: Access, Essential, | AE27: Performance Line
A28: Dacia | B28: Sandero | C28: SCe 75 | F28: 7790 | I28: 5.7 | J28: Benzin | K28: 129 | M28: 6d-TEMP | N28: 5 | O28: 54 | Q28: 73 | S28: M5 | T28: 4069 | U28: 1994 | V28: 1555 | W28: 1052 | X28: TCe 90 | Y28: (5.9,133,66,90) | AB28: Access, Essential, | AC28: Comfort, Stepway, | AD28: Celebration
A29: Dacia | B29: Duster | C29: TCe 100 | F29: 12990 | I29: 6.1 | J29: Benzin | K29: 138 | M29: 6d-TEMP | N29: 5 | O29: 74 | Q29: 100 | S29: M5 | T29: 4341 | U29: 2052 | V29: 1693 | W29: 1191 | X29: TCe 130 | Y29: (6.6,149,96,130) | Z29: TCe 150 | AA29: (7.1,162,110,150) | AB29: Access, Comfort, | AC29: Essential, Prestige, | AD29: Celebration | AE29: Mirror, Lounge, Pop
A30: Dacia | B30: Sandero | C30: Blue dCi 75 | D30: S&S | F30: 11340 | I30: 4.4 | J30: Benzin | K30: 116 | M30: 6d-TEMP | N30: 5 | O30: 55 | Q30: 75 | S30: M5 | T30: 4069 | U30: 1994 | V30: 1555 | W30: 1190 | X30: dCi 95 | Y30: (4.4,116,70,95) | AB30: Comfort, Stepway, | AC30: Celebration
A31: Dacia | B31: Lodgy | C31: Blue dCi 95 | F31: 15350 | I31: 4.8 | J31: Benzin | K31: 126 | M31: 6d-TEMP | N31: 5 | O31: 70 | Q31: 95 | S31: M6 | T31: 4498 | U31: 2004 | V31: 1682 | W31: 1263 | X31: Blue dCi 115 | Y31: (4.8,126,85,115) | AB31: Supreme, Stepway
A32: Dacia | B32: Duster | C32: Blue dCi 95 | F32: 15490 | I32: 4.9 | J32: Benzin | K32: 128 | M32: 6d-TEMP | N32: 5 | O32: 70 | Q32: 95 | S32: M6 | T32: 4341 | U32: 2052 | V32: 1693 | W32: 1314 | X32: Blue dCi 115 | Y32: (4.9,128,85,115) | AB32: Essential, Comfort, | AC32: Prestige, Celebration
A33: Dacia | B33: Dokker | C33: Blue dCi 95 | F33: 14250 | I33: 5 | J33: Benzin | K33: 132 | M33: 6d-TEMP | N33: 5 | O33: 70 | Q33: 95 | S33: M6 | T33: 4363 | U33: 2004 | V33: 1804 | W33: 1368 | AB33: Supreme, Stepway
A34: Dacia | B34: Sandero | C34: Blue dCi 75 | D34: S&S | F34: 11340 | I34: 4.4 | J34: Diesel | K34: 116 | M34: 6d-TEMP | N34: 5 | O34: 55 | Q34: 75 | S34: M5 | T34: 4 069 | U34: 1 994 | V34: 1 555 | W34: 1 190 | X34: dCi 95 | Y34: (4.4,116,70,95) | AB34: Comfort, Stepway, | AC34: Celebration | AE34: (4.9,112,103,140) | AF34: Trend, Titanium, | AG34: ST-Line, Vignale | AI34: Auch als 5-Türer | AJ34: erhältlich
A35: DS Automobiles | B35: DS 7 | C35: BlueHDi 130 | F35: 41290 | I35: 5.2 | J35: Benzin | K35: 136 | M35: 6d-TEMP | N35: 5 | O35: 96 | Q35: 130 | S35: A8 | T35: 4573 | U35: 2098 | V35: 1625 | W35: 1527 | X35: BlueHDI 180 | Y35: (6.1,161,130,180) | AB35: Be Chic, So Chic, | AC35: Performance Line | AF35: Trend, Titanium, | AG35: Active, ST-Line, | AH35: Vignale | AI35: Auch als Kombi | AJ35: erhältlich
A36: Fiat | B36: 500 | C36: 1.2 Fire 70 | D36: Dualogic | F36: 18170 | I36: 5.5 | J36: Benzin | K36: 135 | M36: 6d-TEMP-EVAP | N36: 4 | O36: 51 | Q36: 69 | S36: A5 | T36: 3571 | U36: 1627 | V36: 1488 | W36: 900 | AA36: 500C, 500S | AB36: Lounge, Sport | AC36: Star, Rockstar | AD36: Hybrid-Variante | AE36: (5.5,125,134,182) | AF36: Trend, Titanium, | AG36: ST-Line, Vignale
A37: Fiat | B37: Panda | C37: 1.2 Fire 70 | F37: 12100 | I37: 5.7 | J37: Benzin | K37: 133 | M37: 6d-TEMP-EVAP-ISC | N37: 4 | O37: 51 | Q37: 69 | S37: M5 | T37: 3653 | U37: 1882 | V37: 1551 | W37: 980 | AB37: Easy, Lounge | AE37: Kompakt-Van
A38: Fiat | B38: Tipo Kombi | C38: MultiJet 95 SCR | F38: 21170 | I38: 4.6 | J38: Benzin | K38: 120 | M38: 6d-TEMP-EVAP | N38: 5 | O38: 70 | Q38: 95 | S38: M5 | T38: 4571 | U38: 1792 | V38: 1514 | W38: 1395 | X38: MultiJet 120 SCR | Y38: (5.1,130,88,120) | AB38: Street, Mirror, | AC38: Lounge, S-Design | AE38: Kompakt-Van
A39: Fiat | B39: 500X Urban | C39: 1.6 MultiJet | D39: 95 SCR | F39: 22100 | I39: 4.8 | J39: Benzin | K39: 126 | M39: 6d-TEMP-EVAP-ISC | N39: 5 | O39: 70 | Q39: 95 | S39: M5 | T39: 4264 | U39: 2025 | V39: 1595 | W39: 1320 | X39: 1.6 MultiJet | Y39: (5.2,137,88,120) | AB39: Lounge, Cross, Sport | AD39: Länge entspricht | AE39: Titanium
A40: Fiat | B40: Tipo Kombi | C40: MultiJet 95 SCR | F40: 21170 | I40: 4.6 | J40: Diesel | K40: 120 | M40: 6d-TEMP-EVAP | N40: 5 | O40: 70 | Q40: 95 | S40: M5 | T40: 4 571 | U40: 1 792 | V40: 1 514 | W40: 1 395 | X40: MultiJet 120 SCR | Y40: (5.1,130,88,120) | AB40: Street, Mirror, | AC40: Lounge, S-Design
A41: Fiat | B41: 500X Urban | C41: 1.6 MultiJet | D41: 95 SCR | F41: 22100 | I41: 4.8 | J41: Diesel | K41: 126 | M41: 6d-TEMP-EVAP-ISC | N41: 5 | O41: 70 | Q41: 95 | S41: M5 | T41: 4 264 | U41: 2 025 | V41: 1 595 | W41: 1 320 | X41: 1.6 MultiJet | Y41: (5.2,137,88,120) | AB41: Lounge, Cross, Sport | AD41: Länge entspricht
A42: Ford | B42: Fiesta Coupe | C42: 1.0 Ecoboost | D42: Start&Stop | F42: 15300 | I42: 5.1 | J42: Benzin | K42: 115 | M42: 6d-TEMP-EVAP-ISC | N42: 5 | O42: 70 | Q42: 95 | S42: M6 | T42: 4065 | U42: 1941 | V42: 1466 | W42: 1163 | X42: 1.1l | Y42: (5.3,120,55,75) | Z42: 1.0 Ecoboost | AA42: (5.1,115,70,95) | AB42: 1.0 Ecoboost | AC42: (5.6,127,92,125) | AD42: Trend, Cool-Connect, | AE42: erhältlich
A43: Ford | B43: Focus | C43: 1.0 EcoBoost | F43: 22100 | I43: 5.3 | J43: Benzin | K43: 119 | M43: 6d-TEMP-EVAP-ISC | N43: 5 | O43: 74 | Q43: 100 | S43: M6 | T43: 4378 | U43: 1979 | V43: 1471 | W43: 1322 | X43: 1.0 EcoBoost | Y43: (5.5, 124, 92, 125) | Z43: 1.0 EcoBoost | AA43: (5.9,133,92,125) | AB43: 1.5 EcoBoost | AC43: (6.3,142,110,150) | AD43: Trend, Titanium,
A44: Ford | B44: Focus Turnier | C44: 1.0 EcoBoost | F44: 23600 | I44: 5.3 | J44: Benzin | K44: 119 | M44: 6d-TEMP-EVAP-ISC | N44: 5 | O44: 74 | Q44: 100 | S44: M6 | T44: 4668 | U44: 1979 | V44: 1494 | W44: 1383 | X44: 1.0 EcoBoost | Y44: (5.6,126,92,125) | Z44: 1.5 EcoBoost | AA44: (5.8,132,110,150) | AB44: 1.5 EcoBoost | AC44: (6.0,137,134,182) | AD44: Trend, Titanium, | AE44: Kompakt-Van
A45: Ford | B45: EcoSport | C45: 1.0 EcoBoost | F45: 20300 | I45: 5.9 | J45: Benzin | K45: 134 | M45: 6d-TEMP-EVAP-ISC | N45: 5 | O45: 74 | Q45: 100 | S45: M6 | T45: 4096 | U45: 2057 | V45: 1653 | W45: 1349 | X45: 1.0 EcoBoost | Y45: (6.0,135,92,125) | Z45: 1.0 EcoBoost | AA45: (6.0,136,103,140) | AB45: ST-Line, Trend | AC45: Titanium, | AD45: Cool & Connect | AE45: Kompakt-Van
A46: Ford | B46: Fiesta | C46: 1.5 TDCi | D46: Start&Stop | F46: 16650 | I46: 4.2 | J46: Benzin | K46: 111 | M46: 6d-TEMP-EVAP-ISC | N46: 5 | O46: 63 | Q46: 85 | S46: M6 | T46: 4040 | U46: 1735 | V46: 1476 | W46: 1194 | AB46: Trend, Titanium | AC46: Cool&Connect, | AD46: ST-Line | AF46: Comfort, Elegance, | AG46: Executive, Dynamic, | AH46: Sport
A47: Ford | B47: Focus | C47: 1.5 l EcoBlue | F47: 23650 | I47: 4.5 | J47: Benzin | K47: 117 | M47: 6d-TEMP-EVAP-ISC | N47: 5 | O47: 70 | Q47: 95 | S47: M6 | T47: 4378 | U47: 1825 | V47: 1454 | W47: 1363 | X47: 1.5 EcoBlue | Y47: (4.5,117,88,120) | Z47: 2.0 EcoBlue | AA47: (4.7,124,110,150) | AB47: Trend, Titanium | AC47: ST-Line, Vignale, | AD47: Active, | AE47: Executive
A48: Ford | B48: Puma | C48: 1.5 l EcoBlue | F48: 25890 | I48: 4.5 | J48: Benzin | K48: 118 | M48: 6d-TEMP-EVAP-ISC | N48: 5 | O48: 88 | Q48: 120 | S48: M6 | T48: 4186 | U48: 1930 | V48: 1536 | W48: 1280 | AB48: Titanium, ST-Line
A49: Ford | B49: Focus Turnier | C49: 1.5 EcoBlue | F49: 25150 | I49: 4.5 | J49: Benzin | K49: 119 | M49: 6d-TEMP-EVAP-ISC | N49: 5 | O49: 70 | Q49: 95 | S49: M6 | T49: 4668 | U49: 1979 | V49: 1494 | W49: 1413 | X49: 1.5 EcoBlue | Y49: (4.5,119,88,120) | Z49: 2.0 EcoBlue | AA49: (4.7,124,110,150) | AB49: Trend, Titanium, | AC49: ST-Line, Vignale, | AD49: Active, | AF49: Level 1,2,3,4,5 | AI49: Auch als 3-Türer | AJ49: erhältlich
A50: Ford | B50: Mondeo | C50: 2.0l EcoBlue SCR | F50: 34100 | I50: 4.9 | J50: Benzin | K50: 128 | M50: 6d-TEMP | N50: 5 | O50: 88 | Q50: 120 | S50: M6 | T50: 4871 | U50: 2121 | V50: 1482 | W50: 1707 | X50: 2.0l EcoBlue | Y50: (5.0,131,110,150) | Z50: 2.0l EcoBlue | AA50: (5.3,140,140,190) | AB50: Trend, Titanium, | AC50: ST-Line, Vignale | AF50: Level 2,3,4,5,6
A51: Ford | B51: EcoSport | C51: 1.5 l EcoBlue | F51: 23700 | I51: 4.9 | J51: Benzin | K51: 129 | M51: 6d-TEMP-EVAP-ISC | N51: 5 | O51: 74 | Q51: 100 | S51: M6 | T51: 4096 | U51: 2057 | V51: 1653 | W51: 1395 | X51: 1.5 EcoBlue | Y51: (5.3,138,88,120) | AB51: ST-Line, Titanium | AC51: Cool&Connect | AD51: Höhe entspricht
A52: Ford | B52: Tourneo Courier | C52: 1.5 TDCi S&S | F52: 18142 | I52: 5.4 | J52: Benzin | K52: 141 | M52: 6d-TEMP-EVAP-ISC | N52: 5 | O52: 55 | Q52: 75 | S52: M6 | T52: 4157 | U52: 2112 | V52: 1741 | W52: 1420 | X52: 1.5 TDCi SS | Y52: (5.5,144,74,101) | AB52: Trend, Titanium, Sport | AD52: Höhe entspricht
A53: Ford | B53: Fiesta | C53: 1.5 TDCi | D53: Start&Stop | F53: 16650 | I53: 4.2 | J53: Diesel | K53: 111 | M53: 6d-TEMP-EVAP-ISC | N53: 5 | O53: 63 | Q53: 85 | S53: M6 | T53: 4 040 | U53: 1 735 | V53: 1 476 | W53: 1 194 | AB53: Trend, Titanium | AC53: Cool&Connect, | AD53: ST-Line | AE53: erhältlich
A54: Ford | B54: Focus | C54: 1.5 l EcoBlue | F54: 23650 | I54: 4.5 | J54: Diesel | K54: 117 | M54: 6d-TEMP-EVAP-ISC | N54: 5 | O54: 70 | Q54: 95 | S54: M6 | T54: 4 378 | U54: 1 825 | V54: 1 454 | W54: 1 363 | X54: 1.5 EcoBlue | Y54: (4.5,117,88,120) | Z54: 2.0 EcoBlue | AA54: (4.7,124,110,150) | AB54: Trend, Titanium | AC54: ST-Line, Vignale, | AD54: Active,
A55: Ford | B55: Puma | C55: 1.5 l EcoBlue | F55: 25890 | I55: 4.5 | J55: Diesel | K55: 118 | M55: 6d-TEMP-EVAP-ISC | N55: 5 | O55: 88 | Q55: 120 | S55: M6 | T55: 4 186 | U55: 1 930 | V55: 1 536 | W55: 1 280 | AB55: Titanium, ST-Line
A56: Ford | B56: Focus Turnier | C56: 1.5 EcoBlue | F56: 25150 | I56: 4.5 | J56: Diesel | K56: 119 | M56: 6d-TEMP-EVAP-ISC | N56: 5 | O56: 70 | Q56: 95 | S56: M6 | T56: 4 668 | U56: 1 979 | V56: 1 494 | W56: 1 413 | X56: 1.5 EcoBlue | Y56: (4.5,119,88,120) | Z56: 2.0 EcoBlue | AA56: (4.7,124,110,150) | AB56: Trend, Titanium, | AC56: ST-Line, Vignale, | AD56: Active, | AF56: Gold, Silber, | AG56: Titan, Platin | AI56: Auch als Kombi | AJ56: erhältlich
A57: Ford | B57: Mondeo | C57: 2.0l EcoBlue SCR | F57: 34100 | I57: 4.9 | J57: Diesel | K57: 128 | M57: 6d-TEMP | N57: 5 | O57: 88 | Q57: 120 | S57: M6 | T57: 4 871 | U57: 2 121 | V57: 1 482 | W57: 1 707 | X57: 2.0l EcoBlue | Y57: (5.0,131,110,150) | Z57: 2.0l EcoBlue | AA57: (5.3,140,140,190) | AB57: Trend, Titanium, | AC57: ST-Line, Vignale | AF57: Gold, Silber | AG57: Titan, Platin
A58: Ford | B58: EcoSport | C58: 1.5 l EcoBlue | F58: 23700 | I58: 4.9 | J58: Diesel | K58: 129 | M58: 6d-TEMP-EVAP-ISC | N58: 5 | O58: 74 | Q58: 100 | S58: M6 | T58: 4 096 | U58: 2 057 | V58: 1 653 | W58: 1 395 | X58: 1.5 EcoBlue | Y58: (5.3,138,88,120) | AB58: ST-Line, Titanium | AC58: Cool&Connect | AD58: Höhe entspricht
A59: Ford | B59: Tourneo Courier | C59: 1.5 TDCi S&S | F59: 18142 | I59: 5.4 | J59: Diesel | K59: 141 | M59: 6d-TEMP-EVAP-ISC | N59: 5 | O59: 55 | Q59: 75 | S59: M6 | T59: 4 157 | U59: 2 112 | V59: 1 741 | W59: 1 420 | X59: 1.5 TDCi SS | Y59: (5.5,144,74,101) | AB59: Trend, Titanium, Sport | AD59: Höhe entspricht
A60: Honda | B60: Civic | C60: 1.0 VTEC | D60: Turbo | F60: 22890 | I60: 5.7 | J60: Benzin | K60: 128 | M60: 6d-TEMP | N60: 5 | O60: 93 | Q60: 126 | S60: M6 | T60: 4518 | U60: 2076 | V60: 1434 | W60: 1229 | X60: 1.5 VTEC Turbo | Y60: (6.1,139,134,182) | AD60: Comfort, Elegance, | AE60: erhältlich
A61: Honda | B61: HR-V | C61: 1,5 i-VTEC | F61: 23290 | I61: 6.6 | J61: Benzin | K61: 148 | M61: 6d-TEMP | N61: 5 | O61: 96 | Q61: 131 | S61: M6 | T61: 4294 | U61: 1772 | V61: 1605 | W61: 1243 | AB61: Comfort, Elegance, | AC61: Executive | AF61: Attraction | AG61: Takumi, Revolution
A62: Honda | B62: Civic | C62: 1.6i-DTEC | F62: 24390 | I62: 4.6 | J62: Benzin | K62: 121 | M62: 6d-TEMP | N62: 5 | O62: 88 | Q62: 120 | S62: M6 | T62: 4518 | U62: 2079 | V62: 1434 | W62: 1342 | AB62: Elegance, Executive, | AC62: S, Comfort
A63: Honda | B63: HR-V | C63: 1.6 i-DTEC | F63: 25790 | I63: 5 | J63: Benzin | K63: 132 | M63: 6d-TEMP | N63: 5 | O63: 88 | Q63: 120 | S63: M6 | T63: 4294 | U63: 1772 | V63: 1689 | W63: 1395 | AB63: Comfort. Elegance, | AC63: Executive | AI63: Auch als Combi | AJ63: erhältlich
A64: Honda | B64: Civic | C64: 1.6i-DTEC | F64: 24390 | I64: 4.6 | J64: Diesel | K64: 121 | M64: 6d-TEMP | N64: 5 | O64: 88 | Q64: 120 | S64: M6 | T64: 4 518 | U64: 2 079 | V64: 1 434 | W64: 1 342 | AB64: Elegance, Executive, | AC64: S, Comfort
A65: Hyundai | B65: i10 | C65: 1.0l | F65: 10990 | I65: 4.8 | J65: Benzin | K65: 110 | M65: 6d-TEMP-EVAP | N65: 4 | O65: 49 | Q65: 67 | S65: M5 | T65: 3670 | U65: 1680 | V65: 1480 | W65: 924 | X65: 1.2l (5.2,117,62,84) | AA65: Level 1,2,3,4 | AD65: Auch als 5-Sitzer | AE65: erhältlich
A66: Hyundai | B66: i20 | C66: 1.0 T-GDI | F66: 17190 | I66: 5.5 | J66: Benzin | K66: 126 | M66: 6d-TEMP-EVAP | N66: 5 | O66: 74 | Q66: 100 | S66: M5 | T66: 4035 | U66: 1734 | V66: 1474 | W66: 1065 | X66: 1.25l | Y66: (5.9,133,55,75) | Z66: 1.25l | AA66: (5.8,132,62,84) | AB66: 1.0 TGDI | AC66: (5.6,137,88,120) | AD66: Level 1,2,3,4,5
A67: Hyundai | B67: i30 Combi | C67: 1.0 T-GDI | F67: 20590 | I67: 5.4 | J67: Benzin | K67: 123 | M67: 6d-TEMP-EVAP | N67: 5 | O67: 88 | Q67: 120 | S67: M6 | T67: 4585 | U67: 2039 | V67: 1465 | W67: 1231 | X67: 1.5 DPI | Y67: (6.0,137,81,110) | AD67: Level 2,3,4,5,6
A68: Hyundai | B68: Kona | C68: 1.0 T-GDi | F68: 20690 | I68: 6.2 | J68: Benzin | K68: 142 | M68: 6d-TEMP-EVAP | N68: 5 | O68: 88 | Q68: 120 | S68: M6 | T68: 4165 | U68: 2070 | V68: 1550 | W68: 1223 | AB68: Level 2,3,4,6 | AE68: Kompakt-Van
A69: Hyundai | B69: i30 | C69: 1.6 CRDi | F69: 22590 | I69: 4.6 | J69: Benzin | K69: 118 | M69: 6d-TEMP-EVAP | N69: 5 | O69: 85 | Q69: 115 | S69: M6 | T69: 4340 | U69: 1795 | V69: 1455 | W69: 1313 | AB69: Level 2,3,4,5,6 | AE69: Invite Connect
A70: Hyundai | B70: i30 CW | C70: 1.6 CRDi | F70: 22590 | I70: 4.5 | J70: Benzin | K70: 118 | M70: 6d-TEMP-EVAP | N70: 5 | O70: 85 | Q70: 116 | S70: M6 | T70: 4585 | U70: 2039 | V70: 1465 | W70: 1370 | X70: 1.6 CRDi | Y70: (4.6,120,100,136) | AB70: Level 2,3,4,5,6
A71: Hyundai | B71: Kona | C71: 1.6 CRDi | F71: 22690 | I71: 5 | J71: Benzin | K71: 129 | M71: 6d-TEMP-EVAP | N71: 5 | O71: 85 | Q71: 116 | S71: M6 | T71: 4165 | U71: 2070 | V71: 1550 | W71: 1318 | X71: 1.6 CRDi | Y71: (5.1,134,100,136) | AB71: Level 2,3,4,6
A72: Hyundai | B72: i30 | C72: 1.6 CRDi | F72: 22590 | I72: 4.6 | J72: Diesel | K72: 118 | M72: 6d-TEMP-EVAP | N72: 5 | O72: 85 | Q72: 115 | S72: M6 | T72: 4 340 | U72: 1 795 | V72: 1 455 | W72: 1 313 | AB72: Level 2,3,4,5,6 | AF72: Edition, Dynamic | AG72: Innovation | AI72: Auch als Kombi | AJ72: erhältlich
A73: Hyundai | B73: i30 CW | C73: 1.6 CRDi | F73: 22590 | I73: 4.5 | J73: Diesel | K73: 118 | M73: 6d-TEMP-EVAP | N73: 5 | O73: 85 | Q73: 116 | S73: M6 | T73: 4 585 | U73: 2 039 | V73: 1 465 | W73: 1 370 | X73: 1.6 CRDi | Y73: (4.6,120,100,136) | AB73: Level 2,3,4,5,6 | AF73: Edition, Dynamic, | AG73: Innovation
A74: Hyundai | B74: Kona | C74: 1.6 CRDi | F74: 22690 | I74: 5 | J74: Diesel | K74: 129 | M74: 6d-TEMP-EVAP | N74: 5 | O74: 85 | Q74: 116 | S74: M6 | T74: 4 165 | U74: 2 070 | V74: 1 550 | W74: 1 318 | X74: 1.6 CRDi | Y74: (5.1,134,100,136) | AB74: Level 2,3,4,6 | AF74: Edition, Dynamic, | AG74: Innovation, | AH74: Ultimate | AI74: Auch als Combi | AJ74: erhältlich
A75: KIA | B75: Picanto | C75: 1.0 MPI ISG | F75: 10190 | I75: 5.1 | J75: Benzin | K75: 116 | M75: 6d-TEMP-EVAP | N75: 4 | O75: 49 | Q75: 67 | S75: M5 | T75: 3595 | U75: 1595 | V75: 1485 | W75: 588 | X75: 1.2 MPI ISG | Y75: (5.6,126,62,84) | AA75: Neon, Titan, Silber, | AB75: Gold, GT-Line, X-Line | AD75: Auch als 5-Sitzer | AE75: Edition, Ultimate | AF75: Innovation
A76: KIA | B76: Rio | C76: 1.0 TGDI GPF ISG | F76: 18090 | I76: 5.5 | J76: Benzin | K76: 126 | M76: 6d-TEMP-EVAP | N76: 5 | O76: 74 | Q76: 100 | S76: M5 | T76: 4065 | U76: 1725 | V76: 1450 | W76: 1080 | X76: 1.25 MPI ISG | Y76: (5.8,132,62,84) | Z76: 1.0 TGDI GPF ISG | AA76: (5.8,133,88,120) | AD76: Neon, Titan, Silber, | AE76: Edition, Ultimate | AF76: Innovation
A77: KIA | B77: Ceed | C77: 1.0 TGDI GPF ISG | F77: 17790 | I77: 5.6 | J77: Benzin | K77: 126 | M77: 6d-TEMP-EVAP | N77: 5 | O77: 74 | Q77: 100 | S77: M6 | T77: 4310 | U77: 1800 | V77: 1447 | W77: 1222 | X77: 1.0 TGDI GPF ISG | Y77: (5.6,126,88,120) | Z77: 1.4 TGDI GPF ISG | AA77: (5.9,135,103,140) | AD77: Titan, Silber,Gold | AE77: Innovation
A78: KIA | B78: Ceed SW | C78: 1.0 TGDI GPF ISG | F78: 18990 | I78: 5.6 | J78: Benzin | K78: 127 | M78: 6d-TEMP-EVAP | N78: 5 | O78: 74 | Q78: 100 | S78: M6 | T78: 4600 | U78: 1800 | V78: 1465 | W78: 1259 | X78: 1.4 TGDI ISG | Y78: (5.9,135,103,140) | AD78: Titan, Silber, Gold,
A79: KIA | B79: ceed SW | C79: 1.6 CRDi ISG | F79: 22790 | I79: 4.6 | J79: Benzin | K79: 121 | M79: 6d-TEMP-EVAP | N79: 5 | O79: 85 | Q79: 116 | S79: M6 | T79: 4600 | U79: 1800 | V79: 1465 | W79: 1350 | X79: 1.6 CRDi ISG | Y79: (4.8,125,100,136) | AB79: Gold, Silber | AC79: Titan, Platin, | AD79: GT-Line
A80: KIA | B80: Sportage | C80: 1.6 CRDI SCR | F80: 31190 | I80: 5.3 | J80: Benzin | K80: 135 | M80: 6d-TEMP-EVAP | N80: 5 | O80: 85 | Q80: 116 | S80: M6 | T80: 4485 | U80: 1855 | V80: 1635 | W80: 1534 | X80: 1.6 CRDI SCR | Y80: (5.4,141,100,136) | AB80: Titan, Silber, | AC80: Gold, Platin, | AD80: GT-Line
A81: KIA | B81: ceed SW | C81: 1.6 CRDi ISG | F81: 22790 | I81: 4.6 | J81: Diesel | K81: 121 | M81: 6d-TEMP-EVAP | N81: 5 | O81: 85 | Q81: 116 | S81: M6 | T81: 4 600 | U81: 1 800 | V81: 1 465 | W81: 1 350 | X81: 1.6 CRDi ISG | Y81: (4.8,125,100,136) | AB81: Gold, Silber | AC81: Titan, Platin, | AD81: GT-Line
A82: Mazda | B82: 2 | C82: G75 Life | F82: 14690 | I82: 5.3 | J82: Benzin | K82: 120 | M82: 6d | N82: 5 | O82: 55 | Q82: 75 | S82: M6 | T82: 4070 | U82: 1695 | V82: 1495 | W82: 1100 | X82: G90 | Y82: (5.3,120,66,90) | AD82: Life, Takumi,
A83: Mercedes | B83: A-Klasse | C83: A 180 | F83: 29670 | I83: 5.9 | J83: Benzin | K83: 133 | M83: 6d ISC-FCM | N83: 5 | O83: 100 | Q83: 136 | S83: M6 | T83: 4549 | U83: 1796 | V83: 1446 | W83: 1360 | X83: A 200 | Y83: (5.8,131,120,163)
A84: Mercedes | B84: A-Klasse | C84: 160 d | F84: 29590 | I84: 4.5 | J84: Benzin | K84: 118 | M84: 6d-TEMP-EVAP-ISC | N84: 5 | O84: 70 | Q84: 95 | S84: M6 | T84: 4419 | U84: 1796 | V84: 1440 | W84: 1425 | X84: A180d | Y84: (4.5,118,85,116) | Z84: A200d | AA84: (4.8,125,110,150) | AE84: GT-Line, Signature
A85: Mercedes | B85: CLA-Klasse | C85: 180 d | F85: 35460 | I85: 4.5 | J85: Benzin | K85: 118 | M85: 6d-TEMP-EVAP-ISC | N85: 5 | O85: 85 | Q85: 116 | S85: M6 | T85: 4688 | U85: 1830 | V85: 1439 | W85: 1470 | X85: 200d | Y85: (4.8,125,110,150) | Z85: 220d | AA85: (4.8,127,140,190) | AF85: Active, Style, GT-Line | AG85: Access, Allure | AI85: Auch als Kombi | AJ85: erhältlich
A86: Mercedes | B86: C-Klasse | C86: 200 d | F86: 40470 | I86: 4.8 | J86: Benzin | K86: 127 | M86: 6d-ISC-FCM | N86: 5 | O86: 118 | Q86: 160 | S86: M6 | T86: 4686 | U86: 1810 | V86: 1442 | W86: 1555 | X86: 180d | Y86: (5.0,130,90,122) | Z86: 220d | AA86: (5.0,132,143,194) | AF86: Active, Style, | AG86: Access, Allure
A87: Mercedes | B87: A-Klasse | C87: 160 d | F87: 29590 | I87: 4.5 | J87: Diesel | K87: 118 | M87: 6d-TEMP-EVAP-ISC | N87: 5 | O87: 70 | Q87: 95 | S87: M6 | T87: 4 419 | U87: 1 796 | V87: 1 440 | W87: 1 425 | X87: A180d | Y87: (4.5,118,85,116) | Z87: A200d | AA87: (4.8,125,110,150) | AF87: Active, Allure, | AG87: GT Line | AI87: Auch als Combi | AJ87: erhältlich
A88: Mercedes | B88: CLA-Klasse | C88: 180 d | F88: 35460 | I88: 4.5 | J88: Diesel | K88: 118 | M88: 6d-TEMP-EVAP-ISC | N88: 5 | O88: 85 | Q88: 116 | S88: M6 | T88: 4 688 | U88: 1 830 | V88: 1 439 | W88: 1 470 | X88: 200d | Y88: (4.8,125,110,150) | Z88: 220d | AA88: (4.8,127,140,190)
A89: Mercedes | B89: C-Klasse | C89: 200 d | F89: 40470 | I89: 4.8 | J89: Diesel | K89: 127 | M89: 6d-ISC-FCM | N89: 5 | O89: 118 | Q89: 160 | S89: M6 | T89: 4 686 | U89: 1 810 | V89: 1 442 | W89: 1 555 | X89: 180d | Y89: (5.0,130,90,122) | Z89: 220d | AA89: (5.0,132,143,194) | AE89: Access, GT Line, | AF89: Crossway | AG89: Auch als 7-Sitzer | AH89: erhältlich
A90: Mini | B90: Mini 3-Türer | C90: One First | F90: 19750 | I90: 5.8 | J90: Benzin | K90: 133 | M90: 6d-TEMP | N90: 4 | O90: 55 | Q90: 75 | S90: M6 | T90: 3821 | U90: 1727 | V90: 1414 | W90: 1215 | X90: One (5.0,114,75,102), | Y90: Cooper | Z90: (5.0,115,100,136) | AA90: Salt, Pepper, Chili | AD90: Auch als 5-Türer | AE90: Access, GT Line, | AF90: Crossway | AG90: Auch als 7-Sitzer | AH90: erhältlich
A91: Mini | B91: Countryman | C91: One | F91: 28500 | I91: 4.9 | J91: Benzin | K91: 129 | M91: 6d-TEMP | N91: 5 | O91: 85 | Q91: 116 | S91: M6 | T91: 4299 | U91: 1822 | V91: 1557 | W91: 1505 | X91: Cooper D | Y91: (5.0,130,110,150) | Z91: Cooper SD | AA91: (5.3,139,140,190) | AB91: One, Cooper | AD91: Länge entspricht
A92: Mini | B92: Countryman | C92: One | F92: 28500 | I92: 4.9 | J92: Diesel | K92: 129 | M92: 6d-TEMP | N92: 5 | O92: 85 | Q92: 116 | S92: M6 | T92: 4 299 | U92: 1 822 | V92: 1 557 | W92: 1 505 | X92: Cooper D | Y92: (5.0,130,110,150) | Z92: Cooper SD | AA92: (5.3,139,140,190) | AB92: One, Cooper | AD92: Länge entspricht
A93: MItsubishi | B93: Space Star | C93: 1.0 MIVEC AS&G | F93: 12990 | I93: 5.1 | J93: Benzin | K93: 115 | M93: 6d-TEMP | N93: 5 | O93: 52 | Q93: 71 | S93: M5 | T93: 3795 | U93: 1665 | V93: 1505 | W93: 870 | X93: 1.2 MIVEC AS&G | Y93: (5.3, 121, 59, 80) | AA93: Inform, | AB93: Invite Connect
A94: Nissan | B94: Micra | C94: 1.0 IGT 100 | F94: 15090 | I94: 5.6 | J94: Benzin | K94: 126 | M94: 6d-TEMP | N94: 5 | O94: 74 | Q94: 100 | S94: M5 | T94: 3999 | U94: 1935 | V94: 1455 | W94: 1135 | X94: DIG-T 117 | Y94: (5.9,133,86,117) | AA94: Visia, Acenta, Tekna, | AB94: N-Connecta, | AC94: Visia Plus
A95: Nissan | B95: Juke | C95: DIG-T 117 | F95: 19600 | I95: 5.9 | J95: Benzin | K95: 135 | M95: 6d-TEMP | N95: 5 | O95: 86 | Q95: 117 | S95: M6 | T95: 4210 | U95: 1983 | V95: 1595 | W95: 1182 | AB95: Visia, Acenta, | AC95: N-Connecta, Tekna, | AD95: N-Design | AE95: erhältlich
A96: Opel | B96: Astra | C96: 1.2 Turbo | D96: Direct Injection | F96: 21739 | I96: 5.2 | J96: Benzin | K96: 119 | M96: 6d | N96: 5 | O96: 81 | Q96: 110 | S96: M6 | T96: 4370 | U96: 2042 | V96: 1485 | W96: 1280 | X96: 1.2 TDI | Y96: (5.3,120,96,130) | Z96: 1.2 TDI | AA96: (5.3,120,107,145) | AD96: Edition, GS-Line,
A97: Opel | B97: Corsa | C97: 1.2l | F97: 14999 | I97: 5.4 | J97: Benzin | K97: 123 | M97: 6d | N97: 5 | O97: 55 | Q97: 75 | S97: M5 | T97: 4060 | U97: 1960 | V97: 1433 | W97: 1055 | X97: 1.2 (5.5,124,74,100) | Y97: 1.2 (5.6,128,96,130) | AD97: Edition, Elegance,
A98: Opel | B98: Astra ST | C98: 1.2 Turbo | D98: Direct Injection | F98: 23339 | I98: 5.4 | J98: Benzin | K98: 122 | M98: 6d | N98: 5 | O98: 81 | Q98: 110 | S98: M6 | T98: 4702 | U98: 2040 | V98: 1510 | W98: 1355 | X98: 1.2 TDI | Y98: (5.4,122,96,130) | Z98: 1.2 TDI | AA98: (5.4,122,107,145) | AD98: Edition, GS Line, | AE98: erhältlich
A99: Opel | B99: Insignia | C99: 1.5 Turbo | D99: Direct Injection | F99: 30730 | I99: 6.1 | J99: Benzin | K99: 138 | M99: 6d-TEMP | N99: 5 | O99: 103 | Q99: 140 | S99: M6 | T99: 4897 | U99: 2093 | V99: 1455 | W99: 1441 | X99: 1.5 TDI | Y99: (6.1,138,121,165) | AD99: Edition, Dynamic,
A100: Opel | B100: Crossland X | C100: 1.2l | F100: 19839 | I100: 6.2 | J100: Benzin | K100: 139 | M100: 6d | N100: 5 | O100: 60 | Q100: 81 | S100: M5 | T100: 4212 | U100: 1976 | V100: 1605 | W100: 1174 | X100: 1.2 Turbo | Y100: (6.1,138,81,110) | Z100: 1.2 Turbo | AA100: (5.9,134,96,130) | AB100: Edition, Ultimate | AC100: Innovation | AE100: Allure | AG100: Als 3-Türer oder | AH100: 5-Türer erhältlich
A101: Opel | B101: Grandland X | C101: 1.2 Turbo | F101: 26729 | I101: 6.4 | J101: Benzin | K101: 145 | M101: 6d | N101: 5 | O101: 96 | Q101: 130 | S101: M6 | T101: 4477 | U101: 2098 | V101: 1609 | W101: 1350 | X101: 1.6 Turbo | Y101: (7.2,163,133,181) | AB101: Edition, Ultimate | AC101: Innovation | AE101: Limited, | AF101: La Parisienne | AG101: Höhe entspricht | AH101: Micro-Van
A102: Opel | B102: Corsa | C102: 44317 | F102: 20389 | I102: 4.1 | J102: Benzin | K102: 107 | M102: 6d-TEMP | N102: 5 | O102: 75 | Q102: 102 | S102: M6 | T102: 4060 | U102: 1960 | V102: 1433 | W102: 1165 | AB102: Edition, GS-Line, | AC102: Elegance | AF102: Zen, Limited, | AG102: Intens, Life | AI102: Auch als Kombi | AJ102: erhältlich
A103: Opel | B103: Astra | C103: 1.5 CDTI | F103: 23739 | I103: 4.3 | J103: Benzin | K103: 112 | M103: 6d | N103: 5 | O103: 77 | Q103: 105 | S103: M6 | T103: 4370 | U103: 2042 | V103: 1485 | W103: 1371 | X103: 1.5 CDTI | Y103: (4.4,116,90,122) | AB103: Edition, GS-Line, | AC103: Elegance, Ultimate | AF103: Intens, Life, Bose | AG103: GT-Line
A104: Opel | B104: Astra Sports Tourer | C104: 1.5 CDTI | F104: 25339 | I104: 4.3 | J104: Benzin | K104: 113 | M104: 6d | N104: 5 | O104: 77 | Q104: 105 | S104: M6 | T104: 4702 | U104: 2042 | V104: 1485 | W104: 1395 | X104: 1.5 CDTI | Y104: (4.4,116,90,122) | AB104: Astra, Edition, | AC104: GS Line, Elegance, | AD104: Ultimate
A105: Opel | B105: Insignia | C105: 1.5 CDTI | F105: 32699 | I105: 4.6 | J105: Benzin | K105: 121 | M105: 6d-TEMP | N105: 5 | O105: 90 | Q105: 122 | S105: M6 | T105: 4897 | U105: 2093 | V105: 1455 | W105: 1503 | X105: 2.0 CDTI | Y105: (4.7,122,128,174) | AB105: Edition, Business | AC105: Elegance | AG105: Auch als Grand | AH105: Scenic erhältlich
A106: Opel | B106: Crossland X | C106: 1.5 CDTI | F106: 22349 | I106: 4.7 | J106: Benzin | K106: 123 | M106: 6d-TEMP | N106: 5 | O106: 75 | Q106: 102 | S106: M6 | T106: 4212 | U106: 1976 | V106: 1605 | W106: 1289 | X106: 1.5 CDTI | Y106: (5.2,137,88,120) | AB106: Edition, Innovation, | AC106: Ultimate | AE106: Grandtour erhältlich
A107: Opel | B107: Grandland X | C107: 1.5 CDTI | F107: 29309 | I107: 5.2 | J107: Benzin | K107: 136 | M107: 6d-TEMP | N107: 5 | O107: 96 | Q107: 130 | S107: M6 | T107: 4477 | U107: 2098 | V107: 1609 | W107: 1435 | AB107: Edition, Innovation, | AC107: Ultimate
A108: Opel | B108: Corsa | C108: 44317 | F108: 20389 | I108: 4.1 | J108: Diesel | K108: 107 | M108: 6d-TEMP | N108: 5 | O108: 75 | Q108: 102 | S108: M6 | T108: 4 060 | U108: 1 960 | V108: 1 433 | W108: 1 165 | AB108: Edition, GS-Line, | AC108: Elegance
A109: Opel | B109: Astra | C109: 1.5 CDTI | F109: 23739 | I109: 4.3 | J109: Diesel | K109: 112 | M109: 6d | N109: 5 | O109: 77 | Q109: 105 | S109: M6 | T109: 4 370 | U109: 2 042 | V109: 1 485 | W109: 1 371 | X109: 1.5 CDTI | Y109: (4.4,116,90,122) | AB109: Edition, GS-Line, | AC109: Elegance, Ultimate
A110: Opel | B110: Astra Sports Tourer | C110: 1.5 CDTI | F110: 25339 | I110: 4.3 | J110: Diesel | K110: 113 | M110: 6d | N110: 5 | O110: 77 | Q110: 105 | S110: M6 | T110: 4 702 | U110: 2 042 | V110: 1 485 | W110: 1 395 | X110: 1.5 CDTI | Y110: (4.4,116,90,122) | AB110: Astra, Edition, | AC110: GS Line, Elegance, | AD110: Ultimate
A111: Opel | B111: Insignia | C111: 1.5 CDTI | F111: 32699 | I111: 4.6 | J111: Diesel | K111: 121 | M111: 6d-TEMP | N111: 5 | O111: 90 | Q111: 122 | S111: M6 | T111: 4 897 | U111: 2 093 | V111: 1 455 | W111: 1 503 | X111: 2.0 CDTI | Y111: (4.7,122,128,174) | AB111: Edition, Business | AC111: Elegance | AF111: Style, Xcellence, | AG111: Reference
A112: Peugeot | B112: 208 | C112: PureTech 75 | D112: S&S | F112: 15990 | I112: 5.4 | J112: Benzin | K112: 123 | M112: 6d | N112: 5 | O112: 55 | Q112: 75 | S112: M5 | T112: 4055 | U112: 1960 | V112: 1430 | W112: 1055 | X112: PureTech 100 | Y112: (5.4,123,74,101) | Z112: PureTech 130 | AA112: (5.6,127,96,131) | AD112: Like, Active, Allure | AF112: Style, Xcellence | AI112: Auch als Kombi | AJ112: erhältlich
A113: Peugeot | B113: 308 SW | C113: PureTech 130 | D113: Start&Stop | F113: 23600 | I113: 5.9 | J113: Benzin | K113: 134 | M113: 6d | N113: 5 | O113: 81 | Q113: 110 | S113: M6 | T113: 4585 | U113: 2043 | V113: 1472 | W113: 1205 | X113: PureTech 130 | Y113: (5.8, 130, 96, 131) | AD113: Active, Style,
A114: Peugeot | B114: 508 | C114: PureTech 180 | F114: 42250 | I114: 6.5 | J114: Benzin | K114: 145 | M114: 6d | N114: 5 | O114: 133 | Q114: 181 | S114: A8 | T114: 4750 | U114: 2079 | V114: 1403 | W114: 1420 | AD114: Allure, GT Line | AE114: Xcellence
A115: Peugeot | B115: 3008 | C115: PureTech 130 | F115: 26790 | I115: 6.3 | J115: Benzin | K115: 144 | M115: 6d | N115: 5 | O115: 96 | Q115: 131 | S115: M6 | T115: 4447 | U115: 2098 | V115: 1624 | W115: 1320 | AB115: Allure, Active, | AC115: Access, GT Line
A116: Peugeot | B116: 5008 | C116: PureTech 130 | F116: 28790 | I116: 6.5 | J116: Benzin | K116: 147 | M116: 6d | N116: 5 | O116: 96 | Q116: 131 | S116: M6 | T116: 4641 | U116: 2098 | V116: 1646 | W116: 1410 | AB116: Allure, Active, | AC116: Access, GT Line
A117: Peugeot | B117: 208 | C117: BlueHDi 100 | D117: Start&Stop | F117: 19530 | I117: 4.1 | J117: Benzin | K117: 108 | M117: 6d-TEMP | N117: 5 | O117: 75 | Q117: 102 | S117: M6 | T117: 4055 | U117: 1960 | V117: 1430 | W117: 1165 | AB117: Like, Active, | AC117: Allure, GT Line
A118: Peugeot | B118: 308 | C118: BlueHDi 100 | F118: 23850 | I118: 4.5 | J118: Benzin | K118: 118 | M118: 6d-TEMP | N118: 5 | O118: 75 | Q118: 102 | S118: M6 | T118: 4253 | U118: 2043 | V118: 1457 | W118: 1205 | X118: 1.5 BlueHDi 130 | Y118: (4.5,119,96,131) | AB118: Active, Allure, Access, | AC118: GT-Line, Style | AE118: Style, Monte Carlo | AG118: Auch als Combi | AH118: erhältlich
A119: Peugeot | B119: 508 | C119: BlueHDi 130 | F119: 36750 | I119: 4.7 | J119: Benzin | K119: 120 | M119: 6d-TEMP | N119: 5 | O119: 96 | Q119: 130 | S119: M6 | T119: 4750 | U119: 2079 | V119: 1403 | W119: 1415 | X119: BlueHDI 160 | Y119: (5.5,144,120,163), | Z119: BlueHDI 180 | AA119: (5.7,150,130,177) | AB119: Active, Allure, | AC119: GT Line, GT | AF119: Active, Amibition, | AG119: Style, Monte Carlo
A120: Peugeot | B120: 308 SW | C120: BlueHDi 130 | F120: 27800 | I120: 4.7 | J120: Benzin | K120: 122 | M120: 6d-TEMP | N120: 5 | O120: 96 | Q120: 130 | S120: M6 | T120: 4585 | U120: 2043 | V120: 1472 | W120: 1205 | AB120: Active, Allure, | AC120: GT Line, Access, | AD120: Style | AF120: Sport | AI120: Auch als Rapid | AJ120: Spaceback erhältlich
A121: Peugeot | B121: 2008 | C121: BlueHDi 100 | F121: 25510 | I121: 4.5 | J121: Benzin | K121: 118 | M121: 6d-TEMP | N121: 5 | O121: 75 | Q121: 100 | S121: M6 | T121: 4300 | U121: 1987 | V121: 1530 | W121: 1205 | X121: BlueHDi 130 | Y121: (4.9,129,96,130) | AB121: Allure, Active, | AC121: GT-Line | AD121: Länge entspricht | AE121: shine
A122: Peugeot | B122: 3008 | C122: BlueHDi 130 | F122: 33000 | I122: 5.2 | J122: Benzin | K122: 136 | M122: 6d-TEMP | N122: 5 | O122: 96 | Q122: 130 | S122: M6 | T122: 4447 | U122: 2098 | V122: 1624 | W122: 1417 | X122: BlueHDI 180 | Y122: (6.1,162,130,180) | AB122: Allure, GT Line, | AC122: Active, Crossway
A123: Peugeot | B123: 5008 | C123: BlueHDi 130 | F123: 34900 | I123: 5.3 | J123: Benzin | K123: 137 | M123: 6d-TEMP | N123: 5 | O123: 96 | Q123: 130 | S123: M6 | T123: 4641 | U123: 2098 | V123: 1646 | W123: 1430 | AB123: Allure, GT Line, | AC123: Active, Crossway
A124: Peugeot | B124: 208 | C124: BlueHDi 100 | D124: Start&Stop | F124: 19530 | I124: 4.1 | J124: Diesel | K124: 108 | M124: 6d-TEMP | N124: 5 | O124: 75 | Q124: 102 | S124: M6 | T124: 4 055 | U124: 1 960 | V124: 1 430 | W124: 1 165 | AB124: Like, Active, | AC124: Allure, GT Line
A125: Peugeot | B125: 308 | C125: BlueHDi 100 | F125: 23850 | I125: 4.5 | J125: Diesel | K125: 118 | M125: 6d-TEMP | N125: 5 | O125: 75 | Q125: 102 | S125: M6 | T125: 4 253 | U125: 2 043 | V125: 1 457 | W125: 1 205 | X125: 1.5 BlueHDi 130 | Y125: (4.5,119,96,131) | AB125: Active, Allure, Access, | AC125: GT-Line, Style | AE125: Kompakt-Van
A126: Peugeot | B126: 508 | C126: BlueHDi 130 | F126: 36750 | I126: 4.7 | J126: Diesel | K126: 120 | M126: 6d-TEMP | N126: 5 | O126: 96 | Q126: 130 | S126: M6 | T126: 4 750 | U126: 2 079 | V126: 1 403 | W126: 1 415 | X126: BlueHDI 160 | Y126: (5.5,144,120,163), | Z126: BlueHDI 180 | AA126: (5.7,150,130,177) | AB126: Active, Allure, | AC126: GT Line, GT | AE126: Kompakt-Van
A127: Peugeot | B127: 308 SW | C127: BlueHDi 130 | F127: 27800 | I127: 4.7 | J127: Diesel | K127: 122 | M127: 6d-TEMP | N127: 5 | O127: 96 | Q127: 130 | S127: M6 | T127: 4 585 | U127: 2 043 | V127: 1 472 | W127: 1 205 | AB127: Active, Allure, | AC127: GT Line, Access, | AD127: Style | AE127: x-cite, x-clusiv, | AF127: x-style
A128: Peugeot | B128: 2008 | C128: BlueHDi 100 | F128: 25510 | I128: 4.5 | J128: Diesel | K128: 118 | M128: 6d-TEMP | N128: 5 | O128: 75 | Q128: 100 | S128: M6 | T128: 4 300 | U128: 1 987 | V128: 1 530 | W128: 1 205 | X128: BlueHDi 130 | Y128: (4.9,129,96,130) | AB128: Allure, Active, | AC128: GT-Line | AD128: Länge entspricht
A129: Peugeot | B129: 108 | C129: 1.0 VTi 72 | F129: 12740 | I129: 4.8 | J129: Benzin | K129: 109 | M129: 6d-TEMP | N129: 4 | O129: 53 | Q129: 72 | S129: M5 | T129: 3475 | U129: 1884 | V129: 1460 | W129: 915 | AA129: Active, | AB129: Allure, Collection | AD129: Als 3-Türer oder | AF129: Young, Active, | AG129: Style
A130: Renault | B130: Twingo | C130: SCe 75 | F130: 9990 | I130: 5.3 | J130: Benzin | K130: 119 | M130: 6d-TEMP-EVAP | N130: 4 | O130: 54 | Q130: 74 | S130: M5 | T130: 3615 | U130: 1646 | V130: 1541 | W130: 981 | X130: TCe 95 | Y130: (5.3,119,68,93) | AA130: Life, Intens, Zen | AE130: Highline, Trendline, | AF130: Sky
A131: Renault | B131: Clio | C131: SCe 75 | F131: 12940 | I131: 5.4 | J131: Benzin | K131: 120 | M131: 6d-TEMP-EVAP | N131: 5 | O131: 53 | Q131: 72 | S131: M5 | T131: 4050 | U131: 1988 | V131: 1440 | W131: 1148 | X131: TCe 100 | Y131: (5.1,116,74,100) | Z131: TCe 130 | AA131: (5.7,130,96,130) | AD131: Life, Zen, Intens, | AF131: Comfortline, | AG131: Highline
A132: Renault | B132: Megane Grandtour | C132: TCe 115 | F132: 19290 | I132: 5.9 | J132: Benzin | K132: 135 | M132: 6d-TEMP-EVAP | N132: 5 | O132: 84 | Q132: 115 | S132: M6 | T132: 4626 | U132: 2058 | V132: 1457 | W132: 1231 | X132: TCe 140 | Y132: (6.0,136,103,140) | Z132: TCe 160 | AA132: (6.2,140,117,159) | AD132: Intens, Life, Bose | AF132: Highline, Trendline, | AG132: Comfortline, Rabbit
A133: Renault | B133: Captur | C133: TCe 100 | F133: 18540 | I133: 5.9 | J133: Benzin | K133: 134 | M133: 6d-TEMP | N133: 5 | O133: 74 | Q133: 100 | S133: M5 | T133: 4227 | U133: 2003 | V133: 1576 | W133: 1248 | X133: TCe 130 | Y133: (6.3,141,96,130) | AB133: Life, Zen, Intens, | AC133: Edition One, Initiale | AF133: Highline, Trendline, | AG133: Comfortline, Rabbit
A134: Renault | B134: Kadjar | C134: TCe 140 | F134: 22890 | I134: 6.5 | J134: Benzin | K134: 146 | M134: 6d-TEMP-EVAP | N134: 5 | O134: 103 | Q134: 140 | S134: M6 | T134: 4489 | U134: 2058 | V134: 1607 | W134: 1442 | X134: TCe 160 | Y134: (6.6,150,117,160) | AB134: Life, Zen, Intens, | AC134: Black Edition | AF134: Highline, | AG134: Comfortline
A135: Renault | B135: Scenic | C135: TCe 115 | F135: 21390 | I135: 6.6 | J135: Benzin | K135: 149 | M135: 6d-TEMP | N135: 5 | O135: 85 | Q135: 115 | S135: M6 | T135: 4406 | U135: 2128 | V135: 1653 | W135: 1528 | X135: TCe 140 | Y135: (6.8,153,103,140) | Z135: TCe 160 | AA135: (6.9,155,117,160) | AB135: Zen, Intens, Limited, | AC135: Bose, Initiale
A136: Renault | B136: Clio | C136: Blue dCi 85 | F136: 18790 | I136: 4.2 | J136: Benzin | K136: 109 | M136: 6d-TEMP | N136: 5 | O136: 63 | Q136: 85 | S136: M6 | T136: 4050 | U136: 1988 | V136: 1440 | W136: 1277 | X136: Blue dCi 115 | Y136: (4.2,110,85,115) | AB136: Life, Zen, Intens, | AC136: RS Line
A137: Renault | B137: Megane | C137: Blue dCi 115 | F137: 24090 | I137: 4.5 | J137: Benzin | K137: 117 | M137: 6d-TEMP | N137: 5 | O137: 85 | Q137: 115 | S137: M6 | T137: 4359 | U137: 2058 | V137: 1447 | W137: 1315 | AB137: Life, Zen, Intens, | AC137: Edition One, RS Line | AE137: Highline, Sky | AG137: Auch als 7-Sitzer | AH137: erhältlich
A138: Renault | B138: Megane Grandtour | C138: Blue dCi 115 | F138: 25090 | I138: 4.5 | J138: Benzin | K138: 118 | M138: 6d-TEMP | N138: 5 | O138: 85 | Q138: 116 | S138: M6 | T138: 4626 | U138: 2058 | V138: 1449 | W138: 1315 | AB138: Limited, Intens, | AC138: Bose, GT-Line
A139: Renault | B139: Captur | C139: Blue dCi 115 | F139: 24890 | I139: 4.7 | J139: Benzin | K139: 123 | M139: 6d-TEMP | N139: 5 | O139: 85 | Q139: 115 | S139: M6 | T139: 4227 | U139: 2003 | V139: 1576 | W139: 1490 | AB139: Life, Zen, | AC139: Intens, Edition One | AD139: Länge entspricht
A140: Renault | B140: Kadjar | C140: Blue dCi 115 | F140: 27090 | I140: 5 | J140: Benzin | K140: 131 | M140: 6d-TEMP | N140: 5 | O140: 85 | Q140: 115 | S140: M6 | T140: 4489 | U140: 2058 | V140: 1613 | W140: 1531 | X140: Blue dCi 150 | Y140: (5.5,145,110,150) | AB140: Zen, Intens, | AC140: Black Edition
A141: Renault | B141: Clio | C141: Blue dCi 85 | F141: 18790 | I141: 4.2 | J141: Diesel | K141: 109 | M141: 6d-TEMP | N141: 5 | O141: 63 | Q141: 85 | S141: M6 | T141: 4 050 | U141: 1 988 | V141: 1 440 | W141: 1 277 | X141: Blue dCi 115 | Y141: (4.2,110,85,115) | AB141: Life, Zen, Intens, | AC141: RS Line | AE141: Variant erhältlich
A142: Renault | B142: Megane | C142: Blue dCi 115 | F142: 24090 | I142: 4.5 | J142: Diesel | K142: 117 | M142: 6d-TEMP | N142: 5 | O142: 85 | Q142: 115 | S142: M6 | T142: 4 359 | U142: 2 058 | V142: 1 447 | W142: 1 315 | AB142: Life, Zen, Intens, | AC142: Edition One, RS Line
A143: Renault | B143: Megane Grandtour | C143: Blue dCi 115 | F143: 25090 | I143: 4.5 | J143: Diesel | K143: 118 | M143: 6d-TEMP | N143: 5 | O143: 85 | Q143: 116 | S143: M6 | T143: 4 626 | U143: 2 058 | V143: 1 449 | W143: 1 315 | AB143: Limited, Intens, | AC143: Bose, GT-Line
A144: Renault | B144: Captur | C144: Blue dCi 115 | F144: 24890 | I144: 4.7 | J144: Diesel | K144: 123 | M144: 6d-TEMP | N144: 5 | O144: 85 | Q144: 115 | S144: M6 | T144: 4 227 | U144: 2 003 | V144: 1 576 | W144: 1 490 | AB144: Life, Zen, | AC144: Intens, Edition One | AD144: Länge entspricht | AE144: erhältlich
A145: Seat | B145: Ibiza | C145: 1.0l | F145: 12990 | I145: 5.4 | J145: Benzin | K145: 122 | M145: 6d-TEMP | N145: 5 | O145: 59 | Q145: 80 | S145: M5 | T145: 4059 | U145: 1942 | V145: 1444 | W145: 1099 | X145: 1.0 ECO TSI | Y145: (5.5,123,70,95) | Z145: 1.0 ECO TSI | AA145: (5.4,122,85,115) | AB145: 1.0 (4.9,112,59,80) | AD145: Fast Lane, Style, | AE145: erhältlich
A146: Seat | B146: Leon | C146: 1.0 TSI | F146: 19990 | I146: 5.4 | J146: Benzin | K146: 122 | M146: 6d-TEMP | N146: 5 | O146: 81 | Q146: 110 | S146: M6 | T146: 4282 | U146: 1816 | V146: 1459 | W146: 1202 | AD146: Style, FR
A147: Seat | B147: Arona | C147: 1.0 Eco TSI | F147: 16690 | I147: 5.6 | J147: Benzin | K147: 128 | M147: 6d-TEMP | N147: 5 | O147: 70 | Q147: 95 | S147: M5 | T147: 4138 | U147: 1780 | V147: 1552 | W147: 1180 | X147: 1.0 Eco TSI | Y147: (5.8,131,85,115) | AB147: Style, Xcellence, | AC147: Reference, FR
A148: Seat | B148: Ateca | C148: 1.0 Eco TSI | F148: 16690 | I148: 6.5 | J148: Benzin | K148: 146 | M148: 6d-TEMP | N148: 5 | O148: 85 | Q148: 116 | S148: M6 | T148: 4363 | U148: 2078 | V148: 1601 | W148: 1313 | X148: 1.4 TSI | Y148: (6.4,145,110,150) | AB148: Reference, Style, | AC148: Xcellence
A149: Seat | B149: Alhambra | C149: 1.4 TSI | F149: 40130 | I149: 6.5 | J149: Benzin | K149: 150 | M149: 6d-TEMP | N149: 5 | O149: 110 | Q149: 150 | S149: M6 | T149: 4854 | U149: 2081 | V149: 1720 | W149: 1695 | AB149: Executive, | AC149: Xcellence, FR | AE149: Auch als Combi | AF149: erhältlich | AG149: Auch als Limousine | AH149: erhältlich
A150: Seat | B150: Arona | C150: 1.6 TDI | F150: 19990 | I150: 4.8 | J150: Benzin | K150: 125 | M150: 6d-TEMP | N150: 5 | O150: 70 | Q150: 95 | S150: M5 | T150: 4138 | U150: 1942 | V150: 1543 | W150: 1297 | AB150: Reference, Style, | AC150: Xcellence | AE150: Limousine erhältlich
A151: Seat | B151: Ateca | C151: 1.6 TDI | F151: 25880 | I151: 5 | J151: Benzin | K151: 139 | M151: 6d-TEMP | N151: 5 | O151: 85 | Q151: 116 | S151: M6 | T151: 4363 | U151: 2078 | V151: 1601 | W151: 1428 | X151: 2.0 TDI | Y151: (5.4,142,110,150) | AB151: Reference, Style, | AC151: Xcellence | AG151: 4/5 Türer, | AH151: Sportstourer
A152: Seat | B152: Arona | C152: 1.6 TDI | F152: 19990 | I152: 4.8 | J152: Diesel | K152: 125 | M152: 6d-TEMP | N152: 5 | O152: 70 | Q152: 95 | S152: M5 | T152: 4 138 | U152: 1 942 | V152: 1 543 | W152: 1 297 | AB152: Reference, Style, | AC152: Xcellence | AE152: auch als Combi | AF152: erhältlich
A153: Skoda | B153: Fabia | C153: 1.0 TSI | F153: 13240 | I153: 5.4 | J153: Benzin | K153: 123 | M153: 6d-TEMP-EVAP-ISC | N153: 5 | O153: 70 | Q153: 95 | S153: M5 | T153: 3997 | U153: 1958 | V153: 1467 | W153: 1116 | X153: 1.0 MPI | Y153: (5.8,132,44,60) | AA153: Active, Ambition, | AB153: Style, Monte Carlo | AD153: Auch als Combi | AE153: auch als Combi | AF153: erhältlich
A154: Skoda | B154: Fabia Combi | C154: 1.0 TSI | F154: 13590 | I154: 5.3 | J154: Benzin | K154: 119 | M154: 6d-TEMP-EVAP-ISC | N154: 5 | O154: 70 | Q154: 95 | S154: M5 | T154: 4262 | U154: 1958 | V154: 1488 | W154: 1136 | AD154: Active, Amibition,
A155: Skoda | B155: Scala | C155: 1.0 TSI | F155: 18980 | I155: 5.5 | J155: Benzin | K155: 126 | M155: 6d-TEMP-EVAP-ISC | N155: 5 | O155: 70 | Q155: 95 | S155: M5 | T155: 4362 | U155: 1988 | V155: 1471 | W155: 1192 | X155: 1.0 TSI | Y155: (5.5,124,85,115) | Z155: 1.5 TSI | AA155: (5.7,130,110,150) | AD155: Active, Amibition, | AE155: Spaceback erhältlich
A156: Skoda | B156: Octavia Combi | C156: 1.0 TSI | F156: 26880 | I156: 5.3 | J156: Benzin | K156: 120 | M156: 6d-TEMP-EVAP-ISC | N156: 5 | O156: 84 | Q156: 115 | S156: M6 | T156: 4689 | U156: 1994 | V156: 1468 | W156: 1285 | X156: 1.5 TSI | Y156: (5.7, 129, 110, 150) | AD156: Business, Premium
A157: Skoda | B157: Superb | C157: 1.5 TSI | F157: 33840 | I157: 6.2 | J157: Benzin | K157: 141 | M157: 6d-TEMP-EVAP-ISC | N157: 5 | O157: 110 | Q157: 150 | S157: M6 | T157: 4861 | U157: 1864 | V157: 1458 | W157: 1435 | AD157: Active, Ambition,
A158: Skoda | B158: Karoq | C158: 1.0 TSI | F158: 23980 | I158: 6.3 | J158: Benzin | K158: 142 | M158: 6d-TEMP-EVAP-ISC | N158: 5 | O158: 85 | Q158: 116 | S158: M6 | T158: 4382 | U158: 2025 | V158: 1603 | W158: 1344 | X158: 1.5 TSI | Y158: (6.3,144,110,150) | AB158: City, Amibition, | AC158: Style
A159: Skoda | B159: Octavia Combi | C159: 2.0 l TDI | F159: 29970 | I159: 4.4 | J159: Benzin | K159: 117 | M159: 6d-TEMP-EVAP-ISC | N159: 5 | O159: 85 | Q159: 116 | S159: M6 | T159: 4689 | U159: 1994 | V159: 1468 | W159: 1370 | X159: 2.0 TDI | Y159: (4.6,122,110,150) | AB159: Business, Premium | AE159: Höhe entspricht | AF159: Microvan-Kriterien
A160: Skoda | B160: Kamiq | C160: 1.6l TDI | F160: 24050 | I160: 5 | J160: Benzin | K160: 131 | M160: 6d-TEMP-EVAP-ISC | N160: 5 | O160: 85 | Q160: 115 | S160: M6 | T160: 4241 | U160: 1988 | V160: 1553 | W160: 1336 | AB160: Active, Ambition | AC160: Style, Monte Carlo
A161: Skoda | B161: Octavia Combi | C161: 2.0 l TDI | F161: 29970 | I161: 4.4 | J161: Diesel | K161: 117 | M161: 6d-TEMP-EVAP-ISC | N161: 5 | O161: 85 | Q161: 116 | S161: M6 | T161: 4 689 | U161: 1 994 | V161: 1 468 | W161: 1 370 | X161: 2.0 TDI | Y161: (4.6,122,110,150) | AB161: Business, Premium
A162: Skoda | B162: Kamiq | C162: 1.6l TDI | F162: 24050 | I162: 5 | J162: Diesel | K162: 131 | M162: 6d-TEMP-EVAP-ISC | N162: 5 | O162: 85 | Q162: 115 | S162: M6 | T162: 4 241 | U162: 1 988 | V162: 1 553 | W162: 1 336 | AB162: Active, Ambition | AC162: Style, Monte Carlo
A163: Suzuki | B163: Swift | C163: 1.2 Dualjet | F163: 13490 | I163: 5.1 | J163: Benzin | K163: 115 | M163: 6d-TEMP-EVAP | N163: 5 | O163: 66 | Q163: 90 | S163: M5 | T163: 3840 | U163: 1735 | V163: 1480 | W163: 857 | AA163: Clear, Shine | AE163: Als 3-Türer oder | AF163: 5-Türer erhältlich
A164: Suzuki | B164: Ignis | C164: 1.2 Dualjet AGS | F164: 16390 | I164: 5.6 | J164: Benzin | K164: 126 | M164: 6d-TEMP-EVAP | N164: 4 | O164: 66 | Q164: 90 | S164: A5 | T164: 3700 | U164: 1660 | V164: 1595 | W164: 860 | AB164: Clear, Shine
A165: Suzuki | B165: Vitara | C165: 1.4 DITC | F165: 26490 | I165: 7.4 | J165: Benzin | K165: 167 | M165: 6d-TEMP | N165: 5 | O165: 103 | Q165: 140 | S165: M6 | T165: 4170 | U165: 1775 | V165: 1595 | W165: 1205 | AB165: clear, shine | AE165: Als 3-Türer oder | AF165: 5-Türer erhältlich
A166: Toyota | B166: Aygo | C166: 1.0 VVT-i | F166: 11490 | I166: 5 | J166: Benzin | K166: 112 | M166: 6d-TEMP-EVAP-ISC | N166: 4 | O166: 53 | Q166: 72 | S166: M5 | T166: 3465 | U166: 1615 | V166: 1460 | W166: 840 | AA166: x, x-play, | AB166: x-cite, x-clusiv, | AC166: x-style
A167: Toyota | B167: Yaris | C167: 1.0 VVT-i | F167: 13190 | I167: 5.8 | J167: Benzin | K167: 131 | M167: 6d-TEMP-EVAP-ISC | N167: 5 | O167: 53 | Q167: 72 | S167: M5 | T167: 3945 | U167: 1695 | V167: 1510 | W167: 980 | X167: 1.5 VVT-i | Y167: (6.0,135,82,111) | AA167: Young, Active, | AB167: Lounge
A168: Toyota | B168: Corolla Kombi | C168: 1.2 Turbo | F168: 22290 | I168: 6.2 | J168: Benzin | K168: 140 | M168: 6d-TEMP | N168: 5 | O168: 85 | Q168: 116 | S168: M6 | T168: 4650 | U168: 1790 | V168: 1435 | W168: 1205 | AD168: Young, Active, Style
A169: VW | B169: up! | C169: 1.0l | F169: 12680 | I169: 5.4 | J169: Benzin | K169: 123 | M169: 6d-TEMP-EVAP-ISC | N169: 5 | O169: 44 | Q169: 60 | S169: M5 | T169: 3600 | U169: 1910 | V169: 1504 | W169: 980 | X169: 1.0l | Y169: (5.3,120,85,115) | AA169: black style, | AB169: white style, | AC169: R-Line, GTI
A170: VW | B170: Polo | C170: 1.0 TSI | F170: 15110 | I170: 5.3 | J170: Benzin | K170: 120 | M170: 6d-TEMP-EVAP-ISC | N170: 5 | O170: 85 | Q170: 115 | S170: M6 | T170: 4053 | U170: 1964 | V170: 1461 | W170: 1120 | X170: 1.0 (5.4,123,44,60) | AD170: Comfortline,
A171: VW | B171: Golf | C171: 1.5 TSI ACT | F171: 26990 | I171: 5.4 | J171: Benzin | K171: 122 | M171: 6d-TEMP-EVAP-ISC | N171: 5 | O171: 96 | Q171: 130 | S171: M6 | T171: 4284 | U171: 1789 | V171: 1491 | W171: 1315 | AD171: Life
A172: VW | B172: Golf Variant | C172: 1.0 TSI | F172: 25570 | I172: 5.6 | J172: Benzin | K172: 126 | M172: 6d-TEMP-EVAP-ISC | N172: 5 | O172: 85 | Q172: 116 | S172: M6 | T172: 4567 | U172: 2027 | V172: 1515 | W172: 1300 | X172: 1.5 TSI | Y172: (5.6,128, 96, 131) | Z172: 1.5 TSI | AA172: (5.7, 130, 110, 150) | AD172: Rabbit, Comfortline | AE172: auch als Passat | AF172: Variant erhältlich
A173: VW | B173: Passat | C173: 1.5 TSI ACT | F173: 32590 | I173: 5.8 | J173: Benzin | K173: 133 | M173: 6d-TEMP-EVAP-ISC | N173: 5 | O173: 110 | Q173: 150 | S173: M6 | T173: 4775 | U173: 2083 | V173: 1483 | W173: 1425 | X173: 2.0 TSI | Y173: (7.6,171,140,190) | AD173: Business, Elegance
A174: VW | B174: T-Cross | C174: 1.0 TSI | F174: 19790 | I174: 5.9 | J174: Benzin | K174: 133 | M174: 6d-TEMP-EVAP-ISC | N174: 5 | O174: 70 | Q174: 95 | S174: M5 | T174: 4108 | U174: 1977 | V174: 1584 | W174: 1245 | X174: 1.0 TSI | Y174: (6.0,137,85,115) | AB174: Life, Style
A175: VW | B175: Golf Sportsvan | C175: 1.0 TSI | F175: 27420 | I175: 5.9 | J175: Benzin | K175: 133 | M175: 6d-TEMP-EVAP-ISC | N175: 5 | O175: 85 | Q175: 116 | S175: M6 | T175: 4351 | U175: 2050 | V175: 1613 | W175: 1330 | X175: 1.5 TSI | Y175: (5.7,1130,96,131) | Z175: 1.5 TSI | AA175: (6.5,147,110,150) | AB175: Highline, Comfortline
A176: VW | B176: Golf | C176: 2.0 TDI | F176: 29390 | I176: 4.1 | J176: Benzin | K176: 107 | M176: 6d-TEMP-EVAP-ISC | N176: 5 | O176: 85 | Q176: 115 | S176: M6 | T176: 4284 | U176: 1789 | V176: 1491 | W176: 1380 | AB176: Rabbit, Life, Style | AI176: Ocean Race
A177: VW | B177: Passat Limousine | C177: 2.0 TDI | F177: 36659 | I177: 4.7 | J177: Benzin | K177: 122 | M177: 6d-TEMP-EVAP-ISC | N177: 5 | O177: 110 | Q177: 150 | S177: M6 | T177: 4775 | U177: 2083 | V177: 1483 | W177: 1525 | X177: 1.6 TDI | Y177: (5.4,141,88,120) | AB177: Business, Elegance
A178: VW | B178: T-Roc | C178: 1,6 TDI | F178: 25770 | I178: 5.2 | J178: Benzin | K178: 136 | M178: 6d-TEMP-EVAP-ISC | N178: 5 | O178: 85 | Q178: 115 | S178: M6 | T178: 4234 | U178: 1992 | V178: 1573 | W178: 1395 | X178: 2,0 TDI | Y178: (5.4,141,110,150) | AB178: T-Roc, Design, Sport
A179: VW | B179: Golf Sportsvan | C179: 1.6 TDI | F179: 30120 | I179: 5.2 | J179: Benzin | K179: 136 | M179: 6d-TEMP-EVAP-ISC | N179: 5 | O179: 85 | Q179: 116 | S179: M5 | T179: 4351 | U179: 2050 | V179: 1613 | W179: 1440 | X179: 2.0 TDI | Y179: (5.4,142,110,150) | AB179: Comfortline, | AC179: Highline
A180: VW | B180: Golf | C180: 2.0 TDI | F180: 29390 | I180: 4.1 | J180: Diesel | K180: 107 | M180: 6d-TEMP-EVAP-ISC | N180: 5 | O180: 85 | Q180: 115 | S180: M6 | T180: 4 284 | U180: 1 789 | V180: 1 491 | W180: 1 380 | AB180: Rabbit, Life, Style
A181: VW | B181: Passat Limousine | C181: 2.0 TDI | F181: 36659 | I181: 4.7 | J181: Diesel | K181: 122 | M181: 6d-TEMP-EVAP-ISC | N181: 5 | O181: 110 | Q181: 150 | S181: M6 | T181: 4 775 | U181: 2 083 | V181: 1 483 | W181: 1 525 | X181: 1.6 TDI | Y181: (5.4,141,88,120) | AB181: Business, Elegance
A182: VW | B182: T-Roc | C182: 1,6 TDI | F182: 25770 | I182: 5.2 | J182: Diesel | K182: 136 | M182: 6d-TEMP-EVAP-ISC | N182: 5 | O182: 85 | Q182: 115 | S182: M6 | T182: 4 234 | U182: 1 992 | V182: 1 573 | W182: 1 395 | X182: 2,0 TDI | Y182: (5.4,141,110,150) | AB182: T-Roc, Design, Sport
